DATE OF TRANSACTION,LA DEPARTMENT INCURRING SPEND,BENEFICIARY,GROSS AMOUNT,SUMMARY OF PURPOSEOF SPEND,MERCHANT CATEGORY
28/03/2018,RUTH HOUSE,NOWTV.COM/BILLINGHELP,7.99,EDUC VISITS/HOLS/CAMPS/TOYS,"CABLE, SATELLITE, OTHER PAY TELEVISION, RADIO SVCS"
28/03/2018,WASTE MINIMISATION,PAYPAL  EARTHWISE,32.89,EQUIPMENT,CHILDREN'S AND INFANT'S WEAR STORES
28/03/2018,WASTE MINIMISATION,PAYPAL  EARTHWISE,6.82,EQUIPMENT,CHILDREN'S AND INFANT'S WEAR STORES
28/03/2018,RUTH HOUSE,NOWTV.COM/BILLINGHELP,4.99,EDUC VISITS/HOLS/CAMPS/TOYS,"CABLE, SATELLITE, OTHER PAY TELEVISION, RADIO SVCS"
28/03/2018,NW CARE - LAC,PREMIER INN,68.00,INDEPENDENT LIVING PLACEMENTS,PREMIER INN
28/03/2018,INSURANCE CLAIMS TEAM,ALARM THE PUBLIC RISK,799.20,SUBSCRIPTIONS,SCHOOLS & EDUCATIONAL SVC-NOT ELSEWHERE CLASSIFIED
28/03/2018,ROW VOLUNTEERS WEST                     ,PANTILES SERVICE STATI,10.00,PETROL/DIESEL ALL OFF BUSINESS,SERVICE STATIONS WITH OR WITHOUT ANCILLARY SERVICE
28/03/2018,LOCAL ASSISTANCE SCHEME,WWW.JOHNLEWIS.COM,175.00,FURNITURE,DEPARTMENT STORES
28/03/2018,FAIRCROFT COMMUNITY HOME,AMAZON EU,12.98,BOOKS,DIRECT MARKETING-OTHER DIRECT MARKETERS/NOT ELSEW.
28/03/2018,CENTRAL COMMUNICATIONS,GOOGLE  ADWS2060179426,500.00,PUBLICITY,DIRECT MARKETING-CONTINUITY/SUBSCRIPTION MERCHANTS
28/03/2018,FAMILIES MOLE VALLEY,SAINSBURYS 0764,14.05,PURCHASE OF FOOD (RAW MATERIALS),"GROCERY STORES, SUPERMARKETS"
28/03/2018,RESTORATIVE PRACTICE TEAM,AMAZON UK MARKETPLACE,31.99,EQUIPMENT,BOOK STORES
28/03/2018,LIBRARIES CENTRAL,AMAZON EU,11.98,EQUIPMENT,DIRECT MARKETING-OTHER DIRECT MARKETERS/NOT ELSEW.
28/03/2018,FINANCIAL ASSESSMENTS AND BENEFITS TEAM,WWW.GOV.UK,10.00,FEES,PROFESSIONAL SERVICES-NOT ELSEWHERE CLASSIFIED
28/03/2018,CYWS COMMISSIONING,VESTA VODAFONE,30.00,TELECOMMUNICATION CHARGES,TELECOM INCL PREPAID/RECURRING PHONE SVCS
28/03/2018,ARUNDEL,TESCO STORES 5999,93.51,REFRESHMENT COSTS,"GROCERY STORES, SUPERMARKETS"
28/03/2018,EPSOM & EWELL CMHRS CARE,HMCTS-SURREY125,75.00,FEES,FINES
28/03/2018,SOLD DAY TO DAY OPERATIONS,ASDA SUPERSTORE,15.90,PURCHASE OF FOOD (RAW MATERIALS),"GROCERY STORES, SUPERMARKETS"
28/03/2018,SOLD CATERING,ASDA SUPERSTORE,89.31,PURCHASE OF FOOD (RAW MATERIALS),"GROCERY STORES, SUPERMARKETS"
28/03/2018,RUTH HOUSE,HOBBYCRAFT,9.00,EDUC VISITS/HOLS/CAMPS/TOYS,"ARTIST SUPPLY STORES, CRAFT SHOPS"
28/03/2018,LIBERTAS COMMUNITY HOME,GUILDFORD LOCK & SAFE,54.54,FIXTURES AND FITTINGS,HARDWARE EQUIPMENT AND SUPPLIES
28/03/2018,PHOENIX YC,AMAZON UK MARKETPLACE,42.42,EQUIPMENT,BOOK STORES
28/03/2018,LIBRARIES CENTRAL,AMAZON UK MARKETPLACE,35.45,EQUIPMENT,BOOK STORES
28/03/2018,RUTH HOUSE,3C_ WOKING BOROUGH COU,1.40,VEHICLE RUNNING COSTS,AUTOMOBILE PARKING LOTS AND GARAGES
28/03/2018,DOWNLANDS COUNTRYSIDE PROJECT,GROUND SERV,55.00,EQUIPMENT,LAWN AND GARDEN SUPPLY STORES
28/03/2018,RUTH HOUSE,WILKO WOKING,39.70,EDUC VISITS/HOLS/CAMPS/TOYS,HOUSEHOLD APPLIANCE STORES
28/03/2018,RUTH HOUSE,CUT PRICE WALLPAPER (C,95.88,EQUIPMENT,"GLASS, PAINT, WALLPAPER STORES"
28/03/2018,ROW VOLUNTEERS WEST                     ,METHOLD VEHICLE HIRE,54.00,HIRE OF VEHICLES,AUTOMOBILE RENTAL AGENCY-NOT ELSEWHERE CLASSIFIED
28/03/2018,RUTH HOUSE,POUNDWORLD RETAIL,17.00,EDUC VISITS/HOLS/CAMPS/TOYS,DISCOUNT STORES
28/03/2018,DOWNLANDS COUNTRYSIDE PROJECT,B & Q 1191,6.80,EQUIPMENT,"BUILDING MATERIALS, LUMBER STORES"
28/03/2018,NW CARE - CP & COURT LAC,WWW.ARGOS.CO.UK,28.94,EQUIPMENT,DISCOUNT STORES
28/03/2018,FAIRCROFT COMMUNITY HOME,SAINSBURYS SACAT 0687,20.25,PURCHASE OF FOOD (RAW MATERIALS),"GROCERY STORES, SUPERMARKETS"
28/03/2018,CYWS COMMISSIONING,ROBERT DYAS HOLDNG LTD,21.42,CURRICULUM CONSUMABLES,HARDWARE STORES
28/03/2018,FAMILIES REIGATE AND BANSTREAD,CO-OP GROUP FOOD,8.64,PURCHASE OF FOOD (RAW MATERIALS),"GROCERY STORES, SUPERMARKETS"
28/03/2018,SE CARE - CP & COURT LAC,TRAVELODGE,69.25,INDEPENDENT LIVING PLACEMENTS,TRAVELODGE
28/03/2018,BUS SERVICE PLANNING TEAM,AMAZON EU,22.94,EQUIPMENT,DIRECT MARKETING-OTHER DIRECT MARKETERS/NOT ELSEW.
28/03/2018,RUTH HOUSE,G J HONOUR,408.49,PURCHASE OF FOOD (RAW MATERIALS),"MISC FOOD STORE-CONVENIENCE,MRKT,SPLTY,VENDNG MACS"
28/03/2018,BURBANK COMMUNITY HOME,SAINSBURYS SACAT 0686,7.50,PURCHASE OF FOOD (RAW MATERIALS),"GROCERY STORES, SUPERMARKETS"
28/03/2018,FAMILIES REIGATE AND BANSTREAD,NEW SOUTHERN RAILW,26.75,EDUC VISITS/HOLS/CAMPS/TOYS,PASSENGER RAILWAYS
28/03/2018,DOWNLANDS COUNTRYSIDE PROJECT,AMENITYLANDSOLUTION,62.04,DAY TO DAY MAINTENANCE,LAWN AND GARDEN SUPPLY STORES
28/03/2018,FIRE SERVICES IT,AMAZON UK MARKETPLACE,134.00,COMPUTER HARDWARE,BOOK STORES
28/03/2018,QUADRANT COURT WOKING,WWW.NISBETS.COM,460.05,EQUIPMENT,DIRECT MARKETING-CATALOG MERCHANTS
28/03/2018,LIBERTAS COMMUNITY HOME,SAINSBURYS SACAT 0652,16.30,PURCHASE OF FOOD (RAW MATERIALS),"GROCERY STORES, SUPERMARKETS"
28/03/2018,PE/CDT MAINTENANCE OVERHEADS,BEARINGS AND BELTS,245.71,ITEMS PURCHASED FOR RE-SALE,"ARCHITECTURAL, ENGINEERING, AND SURVEYING SERVICES"
28/03/2018,HILLSIDE,SAINSBURYS 0675,60.65,PURCHASE OF FOOD (RAW MATERIALS),"GROCERY STORES, SUPERMARKETS"
28/03/2018,MALLOW CRESCENT,G LIVE,54.00,PUBLICITY,"THEATRICAL PRODUCERS(EXCL MOTION PIX),TICKET AGNCY"
28/03/2018,DITTONS & CLAYGATE CC,J K PAULL LIMITED,40.00,REFRESHMENT COSTS,"GROCERY STORES, SUPERMARKETS"
28/03/2018,RUTH HOUSE,DOMESTIC & GENERAL,110.88,EQUIPMENT,"INSURANCE SALES,UNDERWRITING,AND PREMIUMS"
28/03/2018,NW TEACHERS,PAYPAL  SPECIALNEED,32.00,NEWSPAPER AND PERIODICALS,PROFESSIONAL SERVICES-NOT ELSEWHERE CLASSIFIED
28/03/2018,NW CARE - LAC,MINICABIT,53.60,NON-STAFF RELATED TRANSPORT COSTS,"COMPUTERS, COMPUTER PERIPHERAL EQUIPMENT, SOFTWARE"
28/03/2018,LOCAL ASSISTANCE SCHEME,WEBSTER FLOORS LTD,235.00,FURNITURE,FLOOR COVERING STORES
28/03/2018,FAIRCROFT COMMUNITY HOME,SCREWFIX DIRECT,81.12,EQUIPMENT,"BUILDING MATERIALS, LUMBER STORES"
28/03/2018,CHMHS RAP TEAM,JAYCEE TROPHIES,"1,630.00",EDUC VISITS/HOLS/CAMPS/TOYS,"GAME, TOY, AND HOBBY SHOPS"
28/03/2018,TARGETED INTERVENTION,TESCO PFS 3783,3.09,EDUC VISITS/HOLS/CAMPS/TOYS,SERVICE STATIONS WITH OR WITHOUT ANCILLARY SERVICE
28/03/2018,CENTRAL COMMUNICATIONS,SPARKOL,21.60,PUBLICITY,COMPUTER SOFTWARE STORES
28/03/2018,FOSTERING SERVICE CENTRAL COSTS,PARTRIDGE & PRINT,71.25,BOOKS,SCHOOLS & EDUCATIONAL SVC-NOT ELSEWHERE CLASSIFIED
28/03/2018,FOSTERING SERVICE CENTRAL COSTS,PARTRIDGE & PRINT,6.60,BOOKS,SCHOOLS & EDUCATIONAL SVC-NOT ELSEWHERE CLASSIFIED
28/03/2018,ACL CENTRAL EXPENDITURE,AMAZON EU,306.17,EQUIPMENT,DIRECT MARKETING-OTHER DIRECT MARKETERS/NOT ELSEW.
28/03/2018,ACL CENTRAL EXPENDITURE,AMAZON EU,26.79,EQUIPMENT,DIRECT MARKETING-OTHER DIRECT MARKETERS/NOT ELSEW.
28/03/2018,LEARNING ON MY DOORSTEP PROJECT,BRIGHTON PRINT CENTRE,694.00,PRINTING,MISCELLANEOUS PUBLISHING AND PRINTING
28/03/2018,LEARNING ON MY DOORSTEP PROJECT,BRIGHTON PRINT CENTRE,324.45,PRINTING,MISCELLANEOUS PUBLISHING AND PRINTING
28/03/2018,TARGETED INTERVENTION,COSTA COFFEE,9.85,EDUC VISITS/HOLS/CAMPS/TOYS,"EATING PLACES, RESTAURANTS"
28/03/2018,ROW VOLUNTEERS WEST                     ,WWW.OFFICESTATIONERY.,11.38,EQUIPMENT,STATIONERY/OFFICE SUPPLIES/PRINTING & WRITING PAP.
28/03/2018,ACL CENTRAL EXPENDITURE,AMAZON EU,25.00,EQUIPMENT,DIRECT MARKETING-OTHER DIRECT MARKETERS/NOT ELSEW.
28/03/2018,ACL CENTRAL EXPENDITURE,AMAZON EU,37.56,EQUIPMENT,DIRECT MARKETING-OTHER DIRECT MARKETERS/NOT ELSEW.
28/03/2018,CHEYNE WALK COMMUNITY HOME,SAINSBURYS TO YOU 0026,252.74,PURCHASE OF FOOD (RAW MATERIALS),"GROCERY STORES, SUPERMARKETS"
28/03/2018,QUADRANT COURT WOKING,SCREWFIX DIRECT,31.98,EQUIPMENT,"BUILDING MATERIALS, LUMBER STORES"
28/03/2018,BURBANK COMMUNITY HOME,SAINSBURYS TO YOU 0686,286.88,PURCHASE OF FOOD (RAW MATERIALS),"GROCERY STORES, SUPERMARKETS"
28/03/2018,SOUTH WEST OUTREACH,SAINSBURYS TO YOU 0652,52.00,PURCHASE OF FOOD (RAW MATERIALS),"GROCERY STORES, SUPERMARKETS"
28/03/2018,SOUTH WEST OUTREACH,SAINSBURYS TO YOU 0652,102.50,PURCHASE OF FOOD (RAW MATERIALS),"GROCERY STORES, SUPERMARKETS"
28/03/2018,HOPE SERVICE - WEST,SAINSBURYS TO YOU 0686,51.36,PURCHASE OF FOOD (RAW MATERIALS),"GROCERY STORES, SUPERMARKETS"
28/03/2018,FOSTERING SERVICE CENTRAL COSTS,AMAZON UK MARKETPLACE,25.69,EQUIPMENT,BOOK STORES
28/03/2018,FOSTERING SERVICE CENTRAL COSTS,AMAZON UK MARKETPLACE,25.69,EQUIPMENT,BOOK STORES
28/03/2018,FOSTERING SERVICE CENTRAL COSTS,AMAZON UK MARKETPLACE,12.37,EQUIPMENT,BOOK STORES
28/03/2018,SPEECH & LANGUAGE THERAPY,AMAZON EU,80.38,BOOKS,DIRECT MARKETING-OTHER DIRECT MARKETERS/NOT ELSEW.
28/03/2018,KARIBU COMMUNITY HOME,AMAZON PRIME,-7.99,EDUC VISITS/HOLS/CAMPS/TOYS,DIRECT MARKETING-CONTINUITY/SUBSCRIPTION MERCHANTS
28/03/2018,CPCS ENGAGEMENT TEAM,AMZ ELECTRICAL2GO_,-21.54,EQUIPMENT,MISCELLANEOUS AND SPECIALTY RETAIL STORES
29/03/2018,FAIRCROFT COMMUNITY HOME,AMAZON UK MARKETPLACE,3.49,EQUIPMENT,BOOK STORES
29/03/2018,IMT CRITICAL ENVIRONMENTS,MILKANDMORE.CO.UK,7.80,REFRESHMENT COSTS,DAIRY PRODUCTS STORES
29/03/2018,BURBANK COMMUNITY HOME,GREEN FLAG MEMBERSHIP,48.44,VEHICLE RUNNING COSTS,TOWING SERVICES
29/03/2018,NW NIL RECOURSE TO PUBLIC FUNDS CARE,THE WOKING HOTEL,931.28,INDEPENDENT LIVING PLACEMENTS,"LODGING-HOTELS,MOTELS,RESORTS-NOT CLASSIFIED"
29/03/2018,LOCAL ASSISTANCE SCHEME,WWW.JOHNLEWIS.COM,199.00,FURNITURE,DEPARTMENT STORES
29/03/2018,SCHOOL GAMES LOC 2015-16                ,AMAZON UK MARKETPLACE,62.85,EQUIPMENT,BOOK STORES
29/03/2018,LOCAL ASSISTANCE SCHEME,WWW.JOHNLEWIS.COM,254.00,FURNITURE,DEPARTMENT STORES
29/03/2018,HILLSIDE,PRIMARK,7.00,"CLOTHING, UNIFORM AND LAUNDRY",FAMILY CLOTHING STORES
29/03/2018,LOCAL ASSISTANCE SCHEME,WWW.JOHNLEWIS.COM,254.00,FURNITURE,DEPARTMENT STORES
29/03/2018,LOCAL ASSISTANCE SCHEME,WWW.JOHNLEWIS.COM,254.00,FURNITURE,DEPARTMENT STORES
29/03/2018,IMT CRITICAL ENVIRONMENTS,MILKANDMORE.CO.UK,-4.68,REFRESHMENT COSTS,DAIRY PRODUCTS STORES
29/03/2018,WASTE MINIMISATION,SQ  BAMBOOTY REAL NAPP,26.97,EQUIPMENT,ACCESSORY AND APPAREL STORES-MISCELLANEOUS
29/03/2018,BURBANK COMMUNITY HOME,3C_ WOKING BOROUGH COU,1.40,"CLOTHING, UNIFORM AND LAUNDRY",AUTOMOBILE PARKING LOTS AND GARAGES
29/03/2018,BURBANK COMMUNITY HOME,NEW LOOK 1792,19.99,"CLOTHING, UNIFORM AND LAUNDRY",WOMEN'S READY TO WEAR STORES
29/03/2018,ARUNDEL,ASDA SUPERSTORE,17.90,REFRESHMENT COSTS,"GROCERY STORES, SUPERMARKETS"
29/03/2018,FAMILIES MOLE VALLEY,TESCO STORE 2812,22.90,PURCHASE OF FOOD (RAW MATERIALS),"GROCERY STORES, SUPERMARKETS"
29/03/2018,WASTE MINIMISATION,WWW.LITTLELAMB.CO.UK,152.00,EQUIPMENT,CHILDREN'S AND INFANT'S WEAR STORES
29/03/2018,BURBANK COMMUNITY HOME,W M MORRISONS,22.62,PURCHASE OF FOOD (RAW MATERIALS),"GROCERY STORES, SUPERMARKETS"
29/03/2018,HERITAGE PUBLIC SERVICE,AMAZON UK MARKETPLACE,44.40,EQUIPMENT,BOOK STORES
29/03/2018,WASTE MINIMISATION,WWW.FILL-YOUR-PANTS.CO,11.85,EQUIPMENT,CHILDREN'S AND INFANT'S WEAR STORES
29/03/2018,WASTE MINIMISATION,CLOSE PARENT LIMITED,35.00,EQUIPMENT,CHILDREN'S AND INFANT'S WEAR STORES
29/03/2018,WASTE MINIMISATION,CLOSE PARENT LIMITED,17.98,EQUIPMENT,CHILDREN'S AND INFANT'S WEAR STORES
29/03/2018,SURREY HILLS AONB,POST OFFICE COUNTER,274.00,POSTAGE AND COURIER CHARGES,POSTAL SERVICES-GOVERNMENT ONLY
29/03/2018,WASTE MINIMISATION,PAYPAL  FYP BABYECO,27.45,EQUIPMENT,CHILDREN'S AND INFANT'S WEAR STORES
29/03/2018,BURBANK COMMUNITY HOME,3C_ WOKING BOROUGH COU,4.20,"CLOTHING, UNIFORM AND LAUNDRY",AUTOMOBILE PARKING LOTS AND GARAGES
29/03/2018,BURBANK COMMUNITY HOME,DEBENHAMS,12.95,"CLOTHING, UNIFORM AND LAUNDRY",DEPARTMENT STORES
29/03/2018,BURBANK COMMUNITY HOME,DEBENHAMS,47.24,"CLOTHING, UNIFORM AND LAUNDRY",DEPARTMENT STORES
29/03/2018,TRAVEL AND TRANSPORT GROUP,WWW.TRANSPORTXTRA.COM,695.00,EQUIPMENT,BUSINESS SERVICES-NOT ELSEWHERE CLASSIFIED
29/03/2018,FAIRCROFT COMMUNITY HOME,JD SPORTS INTERNET,75.00,"CLOTHING, UNIFORM AND LAUNDRY",SPORTING GOODS STORES
29/03/2018,BURBANK COMMUNITY HOME,AUNTIE ANNE S PRETZEL,13.35,REFRESHMENT COSTS,BAKERIES
29/03/2018,BURBANK COMMUNITY HOME,H&M,40.01,"CLOTHING, UNIFORM AND LAUNDRY",MEN'S AND WOMEN'S CLOTHING STORES
29/03/2018,EPSOM & EWELL CMHRS CARE,HMCTS-SURREY125,75.00,FEES,FINES
29/03/2018,WOODLANDS COMMUNITY HOME,TRAVELODGE,75.00,MISCELLANEOUS STAFF TRAVEL,TRAVELODGE
29/03/2018,MALLOW CRESCENT,AMAZON UK MARKETPLACE,17.42,EQUIPMENT,BOOK STORES
29/03/2018,SAP COMPETENCY CENTRE,UKISUG CONF ACCOM,900.00,SUBSISTENCE AND CONFERENCE EXPENSES,"ORGANIZATIONS, MEMBERSHIP-NOT ELSEWHERE CLASSIFIED"
29/03/2018,ACL CENTRAL EXPENDITURE,AMAZON EU,65.61,EQUIPMENT,DIRECT MARKETING-OTHER DIRECT MARKETERS/NOT ELSEW.
29/03/2018,EQUIPMENT SCC BUDGET,FIRSTCHOICE CATERING S,103.88,EQUIPMENT,INDUSTRIAL SUPPLIES NOT ELSEWHERE CLASSIFIED
29/03/2018,HERITAGE ENTERPRISE (SCAU),AMAZON UK MARKETPLACE,5.82,EQUIPMENT,BOOK STORES
29/03/2018,BURBANK COMMUNITY HOME,THE CLARKS SHOP,12.05,"CLOTHING, UNIFORM AND LAUNDRY",SHOE STORES
29/03/2018,WOODLANDS COMMUNITY HOME,WWW.GDHA.COM,145.00,EQUIPMENT,ELECTRICAL PARTS AND EQUIPMENT
29/03/2018,LOWER MOLE COUNTRYSIDE PROJECT,AW CHAMPION LTD,180.77,PURCHASE OF BUILDING MATERIALS,"BUILDING MATERIALS, LUMBER STORES"
29/03/2018,WOODLANDS COMMUNITY HOME,HOMEBASE LTD 084,101.58,DAY TO DAY MAINTENANCE,"BUILDING MATERIALS, LUMBER STORES"
29/03/2018,FIRE & RESCUE COMMUNITY SAFETY,RICHER SOUNDS,358.95,EQUIPMENT,ELECTRONIC SALES
29/03/2018,CHMHS RAP TEAM,WWW.CRYSTAL-AWARDS-SUP,28.90,EDUC VISITS/HOLS/CAMPS/TOYS,"CONTRACTORS,SPECIAL TRADE-NOT ELSEWHERE CLASSIFIED"
29/03/2018,BURBANK COMMUNITY HOME,DVLA VEHICLE TAX,137.50,VEHICLE RUNNING COSTS,GOVERNMENT SERVICES-NOT ELSEWHERE CLASSIFIED
29/03/2018,HR - ASC TRAINING OPEN PROGRAMME,MEDISAVE,35.33,EQUIPMENT,DENTAL/LAB/MED/OPHTHALMIC HOSP EQUIP & SUPPLIES
29/03/2018,ARUNDEL,TESCO STORES 5999,77.02,REFRESHMENT COSTS,"GROCERY STORES, SUPERMARKETS"
29/03/2018,ARUNDEL,TESCO STORES 5999,4.00,REFRESHMENT COSTS,"GROCERY STORES, SUPERMARKETS"
29/03/2018,ARUNDEL,ASDA SUPERSTORE,16.84,REFRESHMENT COSTS,"GROCERY STORES, SUPERMARKETS"
29/03/2018,CHEYNE WALK COMMUNITY HOME,WWW.SPRINGFIT.ORG,62.50,EDUC VISITS/HOLS/CAMPS/TOYS,"CLUBS-CNTRY,MBRSHIP(ATHLET,REC,SPRTS,PRIVATE GOLF"
29/03/2018,WASTE MINIMISATION,PAYPAL  TOTSBOTSLTD,67.96,EQUIPMENT,CHILDREN'S AND INFANT'S WEAR STORES
29/03/2018,WASTE MINIMISATION,PAYPAL  TOTSBOTSLTD,42.95,EQUIPMENT,CHILDREN'S AND INFANT'S WEAR STORES
29/03/2018,SOLD DAY TO DAY OPERATIONS,LIDL UK,5.56,PURCHASE OF FOOD (RAW MATERIALS),"GROCERY STORES, SUPERMARKETS"
29/03/2018,KARIBU COMMUNITY HOME,TESCO STORES-2160,8.95,PURCHASE OF FOOD (RAW MATERIALS),"GROCERY STORES, SUPERMARKETS"
29/03/2018,WOODLANDS COMMUNITY HOME,SAINSBURYS SACAT 0686,12.00,PURCHASE OF FOOD (RAW MATERIALS),"GROCERY STORES, SUPERMARKETS"
29/03/2018,WORKPLACE COMMERCIAL TEAM,IMDB,132.18,PUBLICITY,DIRECT MARKETING-CONTINUITY/SUBSCRIPTION MERCHANTS
29/03/2018,HILLSIDE,SAINSBURYS 0784,34.70,PURCHASE OF FOOD (RAW MATERIALS),"GROCERY STORES, SUPERMARKETS"
29/03/2018,SW CARE - CP & COURT LAC,NCC INCOME,12.00,OTHER COMMUNITY CARE VOL,GOVERNMENT SERVICES-NOT ELSEWHERE CLASSIFIED
29/03/2018,HOLLAND CLOSE RESIDENTIAL HOME,TESCO DIRECT,25.00,COMPUTER SOFTWARE,MISCELLANEOUS AND SPECIALTY RETAIL STORES
29/03/2018,FAMILIES WOKING,THURROCK COUNCIL,404.00,EDUC VISITS/HOLS/CAMPS/TOYS,GOVERNMENT SERVICES-NOT ELSEWHERE CLASSIFIED
29/03/2018,FAMILIES WOKING,THURROCK COUNCIL,404.00,EDUC VISITS/HOLS/CAMPS/TOYS,GOVERNMENT SERVICES-NOT ELSEWHERE CLASSIFIED
29/03/2018,PROPERTY OPERATIONS TEAM,HOMEBASE LTD 290,19.00,PURCHASE OF BUILDING MATERIALS,"BUILDING MATERIALS, LUMBER STORES"
29/03/2018,NW CARE - LAC,TRAVELODGE,74.25,INDEPENDENT LIVING PLACEMENTS,TRAVELODGE
29/03/2018,TRANSPORT,CARDIAC SCIENCE HOLDIN,210.00,OPERATIONAL FIRE EQUIPMENT,DENTAL/LAB/MED/OPHTHALMIC HOSP EQUIP & SUPPLIES
29/03/2018,ACL CENTRAL EXPENDITURE,POST OFFICE COUNTER,7.30,POSTAGE AND COURIER CHARGES,POSTAL SERVICES-GOVERNMENT ONLY
29/03/2018,LOWER MOLE COUNTRYSIDE PROJECT,PARK EPSOM DOWNS,7.50,VEHICLE RUNNING COSTS,SERVICE STATIONS WITH OR WITHOUT ANCILLARY SERVICE
29/03/2018,ORBIS TRAINING PROPERTY,IPF,"1,680.00",TRAINING EXPENSES EXTERNAL GENERAL,"ACCOUNTING, AUDITING AND BOOKKEEPING SERVICES"
29/03/2018,NW CARE - LAC,TRAINLINE,111.70,NON-STAFF RELATED TRANSPORT COSTS,PASSENGER RAILWAYS
29/03/2018,NW CARE - LAC,TRAINLINE,111.70,NON-STAFF RELATED TRANSPORT COSTS,PASSENGER RAILWAYS
29/03/2018,NW CARE - LAC,TRAINLINE,47.50,NON-STAFF RELATED TRANSPORT COSTS,PASSENGER RAILWAYS
29/03/2018,SPEECH & LANGUAGE THERAPY,EB  EXETER NUFFIELD CE,85.02,TRAINING USING EXTERNAL PROVIDERS,BUSINESS SERVICES-NOT ELSEWHERE CLASSIFIED
29/03/2018,RUTH HOUSE,RUTH HOUSE,844.95,PURCHASE OF FOOD (RAW MATERIALS),COMPUTER SOFTWARE STORES
29/03/2018,EXTENDED HOPE,TESCO STORE 2590,158.88,PURCHASE OF FOOD (RAW MATERIALS),"GROCERY STORES, SUPERMARKETS"
29/03/2018,SUPERFAST BROADBAND ECONOMIC DEVELOPMENT,LAYERSHIFT,60.00,COMPUTER SERVICES,COMPUTER NETWORK/INFORMATION SERVICES
29/03/2018,RUTH HOUSE,WWW.PARENTMAIL.CO.,50.00,PURCHASE OF FOOD (RAW MATERIALS),SCHOOLS & EDUCATIONAL SVC-NOT ELSEWHERE CLASSIFIED
29/03/2018,WAVERLEY CMHRS CARE,TRAVELODGE,237.50,FEES,TRAVELODGE
29/03/2018,SPELTHORNE CMHRS CARE,HMCTS-SURREY125,75.00,FEES,FINES
29/03/2018,ROW AREA1 GFD SYH RNY SPL               ,B & Q 1029,84.88,EQUIPMENT,"BUILDING MATERIALS, LUMBER STORES"
29/03/2018,CHEYNE WALK COMMUNITY HOME,WWW.SPRINGFIT.ORG,8.00,EDUC VISITS/HOLS/CAMPS/TOYS,"CLUBS-CNTRY,MBRSHIP(ATHLET,REC,SPRTS,PRIVATE GOLF"
29/03/2018,RUTH HOUSE,ALDI 80 776,279.99,EQUIPMENT,"GROCERY STORES, SUPERMARKETS"
29/03/2018,ACL CENTRAL EXPENDITURE,AMAZON EU,145.71,EQUIPMENT,DIRECT MARKETING-OTHER DIRECT MARKETERS/NOT ELSEW.
29/03/2018,RUTH HOUSE,SAINSBURYS TO YOU 0686,140.20,PURCHASE OF FOOD (RAW MATERIALS),"GROCERY STORES, SUPERMARKETS"
29/03/2018,RUTH HOUSE,SAINSBURYS TO YOU 0686,438.00,PURCHASE OF FOOD (RAW MATERIALS),"GROCERY STORES, SUPERMARKETS"
29/03/2018,BURBANK COMMUNITY HOME,WILKO WOKING,2.20,MEDICAL EXPENSES,HOUSEHOLD APPLIANCE STORES
29/03/2018,HOLLAND CLOSE RESIDENTIAL HOME,TESCO-SELLER_IST_1_240,29.99,COMPUTER HARDWARE,MISCELLANEOUS AND SPECIALTY RETAIL STORES
29/03/2018,HOLLAND CLOSE RESIDENTIAL HOME,TESCO-SELLER_IST_1_240,57.99,EQUIPMENT,MISCELLANEOUS AND SPECIALTY RETAIL STORES
29/03/2018,FIRE & RESCUE COMMUNITY SAFETY,RICHER SOUNDS,-7.95,EQUIPMENT,ELECTRONIC SALES
30/03/2018,PHOENIX YC,AMAZON UK MARKETPLACE,66.69,EQUIPMENT,BOOK STORES
30/03/2018,SOLD CATERING,AMAZON UK MARKETPLACE,22.95,EQUIPMENT,BOOK STORES
30/03/2018,WOODLANDS COMMUNITY HOME,SAINSBURYS PFS0487,28.01,PETROL/DIESEL ALL OFF BUSINESS,SERVICE STATIONS WITH OR WITHOUT ANCILLARY SERVICE
30/03/2018,LIBERTAS COMMUNITY HOME,SAINSBURYS SACAT 0652,17.50,EQUIPMENT,"GROCERY STORES, SUPERMARKETS"
30/03/2018,BURBANK COMMUNITY HOME,HALFORDS 0421,41.00,CAR ALLOWANCES,BICYCLE SHOPS-SALES AND SERVICE
30/03/2018,CHEYNE WALK COMMUNITY HOME,CINEWORLD CRA CP,22.75,EDUC VISITS/HOLS/CAMPS/TOYS,"THEATRICAL PRODUCERS(EXCL MOTION PIX),TICKET AGNCY"
30/03/2018,CHEYNE WALK COMMUNITY HOME,CINEWORLD CRA CP,20.60,EDUC VISITS/HOLS/CAMPS/TOYS,"THEATRICAL PRODUCERS(EXCL MOTION PIX),TICKET AGNCY"
30/03/2018,WOODLANDS COMMUNITY HOME,WILD FUTURES TRADING,21.60,EDUC VISITS/HOLS/CAMPS/TOYS,"ORGANIZATIONS, CHARITABLE AND SOCIAL SERVICES"
30/03/2018,WOODLANDS COMMUNITY HOME,AMAZON EU,7.69,BOOKS,DIRECT MARKETING-OTHER DIRECT MARKETERS/NOT ELSEW.
30/03/2018,WOODLANDS COMMUNITY HOME,PHOTOBOX LIMITED,24.39,EQUIPMENT,MISCELLANEOUS PUBLISHING AND PRINTING
30/03/2018,ARUNDEL,TESCO STORES 5999,119.75,REFRESHMENT COSTS,"GROCERY STORES, SUPERMARKETS"
30/03/2018,WOODLANDS COMMUNITY HOME,PADSTOWSEALIFECOUK,103.00,EDUC VISITS/HOLS/CAMPS/TOYS,"THEATRICAL PRODUCERS(EXCL MOTION PIX),TICKET AGNCY"
30/03/2018,BURBANK COMMUNITY HOME,CASTLE CAR PARK,1.30,"CLOTHING, UNIFORM AND LAUNDRY",GOVERNMENT SERVICES-NOT ELSEWHERE CLASSIFIED
30/03/2018,BURBANK COMMUNITY HOME,T K MAXX,34.99,"CLOTHING, UNIFORM AND LAUNDRY",VARIETY STORES
30/03/2018,BURBANK COMMUNITY HOME,PRIMARK STORES 655,77.50,"CLOTHING, UNIFORM AND LAUNDRY",FAMILY CLOTHING STORES
30/03/2018,LIBERTAS COMMUNITY HOME,SAINSBURYS SACAT 0652,10.50,EQUIPMENT,"GROCERY STORES, SUPERMARKETS"
30/03/2018,LIBERTAS COMMUNITY HOME,SAINSBURYS SACAT 0652,29.88,PURCHASE OF FOOD (RAW MATERIALS),"GROCERY STORES, SUPERMARKETS"
30/03/2018,COVEHAM,SAINSBURYS 0687,18.66,REFRESHMENT COSTS,"GROCERY STORES, SUPERMARKETS"
30/03/2018,ARUNDEL,WM MORRISONS,31.17,REFRESHMENT COSTS,"GROCERY STORES, SUPERMARKETS"
30/03/2018,TRAINING AND DEVELOPMENT,ADOBE SYSTEMS SOFTWARE,"1,416.00",TRAINING EXPENSES EXTERNAL GENERAL,COMPUTER SOFTWARE STORES
30/03/2018,HILLSIDE,TESCO STORE 3149,226.46,PURCHASE OF FOOD (RAW MATERIALS),"GROCERY STORES, SUPERMARKETS"
30/03/2018,WOODLANDS COMMUNITY HOME,AMAZON EU,39.98,LIBRARY RESOURCES,DIRECT MARKETING-OTHER DIRECT MARKETERS/NOT ELSEW.
30/03/2018,RUTH HOUSE,AMAZON EU,149.99,EDUC VISITS/HOLS/CAMPS/TOYS,DIRECT MARKETING-OTHER DIRECT MARKETERS/NOT ELSEW.
30/03/2018,PERFORMANCE TEAM,AMAZON UK MARKETPLACE,25.27,EQUIPMENT,BOOK STORES
31/03/2018,CENTRAL COMMUNICATIONS,FACEBK 9PG74GWZR2,8.36,PUBLICITY,ADVERTISING SERVICES
31/03/2018,CENTRAL COMMUNICATIONS,FACEBK 7PG74GWZR2,378.18,PUBLICITY,ADVERTISING SERVICES
31/03/2018,BURBANK COMMUNITY HOME,W M MORRISONS,22.69,PURCHASE OF FOOD (RAW MATERIALS),"GROCERY STORES, SUPERMARKETS"
31/03/2018,LIBERTAS COMMUNITY HOME,ALDI 65 773,22.77,PURCHASE OF FOOD (RAW MATERIALS),"GROCERY STORES, SUPERMARKETS"
31/03/2018,ACL CENTRAL EXPENDITURE,FACEBK Z5JV8EECB2,128.44,PUBLICITY,ADVERTISING SERVICES
31/03/2018,EXTENDED HOPE,SAINSBURYS 0652,110.25,PURCHASE OF FOOD (RAW MATERIALS),"GROCERY STORES, SUPERMARKETS"
31/03/2018,BURBANK COMMUNITY HOME,3C_ WOKING BOROUGH COU,1.40,"CLOTHING, UNIFORM AND LAUNDRY",AUTOMOBILE PARKING LOTS AND GARAGES
31/03/2018,BURBANK COMMUNITY HOME,MCDONALDS,38.16,PURCHASE OF FOOD (RAW MATERIALS),FAST FOOD RESTAURANTS
31/03/2018,BURBANK COMMUNITY HOME,DEBENHAMS,11.98,EQUIPMENT,DEPARTMENT STORES
31/03/2018,BURBANK COMMUNITY HOME,RYMAN,13.98,STATIONERY,"OFFICE, SCHOOL SUPPLY, AND STATIONERY STORES"
31/03/2018,EMERGENCY DUTY TEAM,TRAVELODGE,49.00,VENUE COSTS (INCLUDING HIRE OF ROOMS),TRAVELODGE
31/03/2018,BURBANK COMMUNITY HOME,W M MORRISONS,7.14,PURCHASE OF FOOD (RAW MATERIALS),"GROCERY STORES, SUPERMARKETS"
31/03/2018,RECRUITMENT,FACEBK D54C6ESQ82,120.33,STAFF ADVERTISING ,ADVERTISING SERVICES
31/03/2018,ACL CENTRAL EXPENDITURE,FACEBK 6FMVBENU82,52.32,PUBLICITY,ADVERTISING SERVICES
31/03/2018,BURBANK COMMUNITY HOME,W M MORRISONS,31.07,PURCHASE OF FOOD (RAW MATERIALS),"GROCERY STORES, SUPERMARKETS"
31/03/2018,MALLOW CRESCENT,SAINSBURYS TO YOU 0652,15.10,PURCHASE OF FOOD (RAW MATERIALS),"GROCERY STORES, SUPERMARKETS"
31/03/2018,MALLOW CRESCENT,SAINSBURYS TO YOU 0652,125.62,PURCHASE OF FOOD (RAW MATERIALS),"GROCERY STORES, SUPERMARKETS"
31/03/2018,CS BUSINESS SUPPORT WEST,AMAZON PRIME,7.99,FEES,DIRECT MARKETING-CONTINUITY/SUBSCRIPTION MERCHANTS
31/03/2018,BURBANK COMMUNITY HOME,BOOTS 5228,4.99,MEDICAL EXPENSES,"DRUG STORES, PHARMACIES"
31/03/2018,HOLLAND CLOSE RESIDENTIAL HOME,TESCO-STORES 6647,155.67,PURCHASE OF FOOD (RAW MATERIALS),"GROCERY STORES, SUPERMARKETS"
31/03/2018,KARIBU COMMUNITY HOME,TESCO STORE 2812,234.59,PURCHASE OF FOOD (RAW MATERIALS),"GROCERY STORES, SUPERMARKETS"
31/03/2018,NW CARE - CP & COURT LAC,WWW.ARGOS.CO.UK,-28.94,EQUIPMENT,DISCOUNT STORES
01/04/2018,HOLLAND CLOSE RESIDENTIAL HOME,KINDLE UNLIMITED,7.99,EQUIPMENT,RECORD SHOPS
01/04/2018,LIBERTAS COMMUNITY HOME,WYE BRIDGE HOUSE,34.67,REFRESHMENT COSTS,"EATING PLACES, RESTAURANTS"
01/04/2018,EXTENDED HOPE,ODEON,4.94,REFRESHMENT COSTS,MOTION PICTURE THEATERS
01/04/2018,HILLSIDE,SOUTHERN CO-OP 0331,18.00,PURCHASE OF FOOD (RAW MATERIALS),DEPARTMENT STORES
01/04/2018,SCHOOL GAMES LOC 2015-16                ,AMAZON UK MARKETPLACE,9.98,EQUIPMENT,BOOK STORES
01/04/2018,FAIRCROFT COMMUNITY HOME,WWW.UKFLAIR.COM,59.97,EDUC VISITS/HOLS/CAMPS/TOYS,"SPORTS APPAREL, RIDING APPAREL STORES"
01/04/2018,SUPERFAST BROADBAND ECONOMIC DEVELOPMENT,GOOGLE  SVCSAPPS_SUPER,13.75,COMPUTER SERVICES,DIRECT MARKETING-CONTINUITY/SUBSCRIPTION MERCHANTS
02/04/2018,CENTRAL COMMUNICATIONS,TIMES NEWSPAPERS LTD,39.00,PUBLICITY,"BOOKS,PERIODICALS AND NEWSPAPERS"
02/04/2018,FAIRCROFT COMMUNITY HOME,KFC,32.44,REFRESHMENT COSTS,FAST FOOD RESTAURANTS
02/04/2018,FAIRCROFT COMMUNITY HOME,MCDONALDS,1.53,REFRESHMENT COSTS,FAST FOOD RESTAURANTS
02/04/2018,FAIRCROFT COMMUNITY HOME,MCDONALDS,10.25,REFRESHMENT COSTS,FAST FOOD RESTAURANTS
02/04/2018,BUS SERVICE PLANNING TEAM,AMAZON EU,45.88,EQUIPMENT,DIRECT MARKETING-OTHER DIRECT MARKETERS/NOT ELSEW.
02/04/2018,SOLD DAY TO DAY OPERATIONS,AMAZON UK MARKETPLACE,52.20,EQUIPMENT,BOOK STORES
02/04/2018,CYWS COMMISSIONING,LIDL UK,6.29,PURCHASE OF FOOD (RAW MATERIALS),"GROCERY STORES, SUPERMARKETS"
02/04/2018,SOLD DAY TO DAY OPERATIONS,POUNDLAND,3.00,EQUIPMENT,DISCOUNT STORES
02/04/2018,SOLD DAY TO DAY OPERATIONS,AMAZON UK MARKETPLACE,25.96,EQUIPMENT,BOOK STORES
02/04/2018,SOLD CATERING,TESCO STORE 2812,17.00,PURCHASE OF FOOD (RAW MATERIALS),"GROCERY STORES, SUPERMARKETS"
02/04/2018,HILLSIDE,LIDL UK,17.51,PURCHASE OF FOOD (RAW MATERIALS),"GROCERY STORES, SUPERMARKETS"
02/04/2018,HILLSIDE,SAINSBURYS 0675,71.25,PURCHASE OF FOOD (RAW MATERIALS),"GROCERY STORES, SUPERMARKETS"
02/04/2018,SOLD DAY TO DAY OPERATIONS,WH SMITH,23.76,EQUIPMENT,NEWS DEALERS AND NEWSSTANDS
02/04/2018,SOLD DAY TO DAY OPERATIONS,ARGOS LTD,359.88,EQUIPMENT,DISCOUNT STORES
02/04/2018,MALLOW CRESCENT,TESCO STORE 2590,11.85,PURCHASE OF FOOD (RAW MATERIALS),"GROCERY STORES, SUPERMARKETS"
02/04/2018,MALLOW CRESCENT,TESCO STORE 2590,86.58,PURCHASE OF FOOD (RAW MATERIALS),"GROCERY STORES, SUPERMARKETS"
02/04/2018,ACL CENTRAL EXPENDITURE,AMAZON EU,71.44,EQUIPMENT,DIRECT MARKETING-OTHER DIRECT MARKETERS/NOT ELSEW.
02/04/2018,MALLOW CRESCENT,TESCO STORE 2590,70.34,PURCHASE OF FOOD (RAW MATERIALS),"GROCERY STORES, SUPERMARKETS"
02/04/2018,MALLOW CRESCENT,SAINSBURYS TO YOU 0652,3.30,PURCHASE OF FOOD (RAW MATERIALS),"GROCERY STORES, SUPERMARKETS"
02/04/2018,MALLOW CRESCENT,SAINSBURYS TO YOU 0652,127.70,PURCHASE OF FOOD (RAW MATERIALS),"GROCERY STORES, SUPERMARKETS"
02/04/2018,LIBERTAS COMMUNITY HOME,SAINSBURYS (2281),138.19,PURCHASE OF FOOD (RAW MATERIALS),"GROCERY STORES, SUPERMARKETS"
02/04/2018,ACL CENTRAL EXPENDITURE,AMAZON EU,23.51,EQUIPMENT,DIRECT MARKETING-OTHER DIRECT MARKETERS/NOT ELSEW.
03/04/2018,SOLD DAY TO DAY OPERATIONS,AMAZON UK MARKETPLACE,32.83,EQUIPMENT,BOOK STORES
03/04/2018,LIBERTAS COMMUNITY HOME,ALTON TOWERS,67.50,REFRESHMENT COSTS,"AMUSEMENT PARKS,CARNIVALS,CIRCUS,FORTUNE TELLERS"
03/04/2018,DOWNLANDS COUNTRYSIDE PROJECT,SCREWFIX DIRECT,59.77,EQUIPMENT,"BUILDING MATERIALS, LUMBER STORES"
03/04/2018,TRANSPORT,AMAZON EU,14.99,STATIONERY,DIRECT MARKETING-OTHER DIRECT MARKETERS/NOT ELSEW.
03/04/2018,TRANSPORT,AMAZON EU,14.99,STATIONERY,DIRECT MARKETING-OTHER DIRECT MARKETERS/NOT ELSEW.
03/04/2018,TRANSPORT,AMAZON EU,14.99,STATIONERY,DIRECT MARKETING-OTHER DIRECT MARKETERS/NOT ELSEW.
03/04/2018,KARIBU COMMUNITY HOME,M&S SIMPLY FOOD,2.60,PURCHASE OF FOOD (RAW MATERIALS),"MISC FOOD STORE-CONVENIENCE,MRKT,SPLTY,VENDNG MACS"
03/04/2018,KARIBU COMMUNITY HOME,HARRY RAMSDENS,11.45,PURCHASE OF FOOD (RAW MATERIALS),"MISC FOOD STORE-CONVENIENCE,MRKT,SPLTY,VENDNG MACS"
03/04/2018,KARIBU COMMUNITY HOME,WWW.GRAVITYFORCE.CO.UK,40.00,EDUC VISITS/HOLS/CAMPS/TOYS,"DANCE HALLS, SCHOOLS, AND STUDIOS"
03/04/2018,WOODLANDS COMMUNITY HOME,AMAZON PRIME,7.99,SUBSCRIPTIONS,DIRECT MARKETING-CONTINUITY/SUBSCRIPTION MERCHANTS
03/04/2018,FAMILIES SPELTHORNE,TESCO STORE 2047,7.72,REFRESHMENT COSTS,"GROCERY STORES, SUPERMARKETS"
03/04/2018,LIBERTAS COMMUNITY HOME,ALTON TOWERS,6.00,NON-STAFF RELATED TRANSPORT COSTS,TOURIST ATTRACTIONS AND EXHIBITS
03/04/2018,S.D. CAMBERLEY F.S. (S HEATH),PAYPAL  ONLINE SALE,71.22,PURCHASE OF BUILDING MATERIALS,HOME SUPPLY WAREHOUSE STORES
03/04/2018,SCHOOL GAMES LOC 2015-16                ,HELLOPRINT,19.74,PRINTING,"QUICK COPY,REPRODUCTION AND BLUEPRINTING SERVICES"
03/04/2018,RUTH HOUSE,WWW.ARGOS.CO.UK,63.94,EQUIPMENT,DISCOUNT STORES
03/04/2018,DOWNLANDS COUNTRYSIDE PROJECT,MOLE COUNTRY STORES,154.95,EQUIPMENT,AGRICULTURAL COOPERATIVES
03/04/2018,FAIRCROFT COMMUNITY HOME,JUMP GIANTS HOLDINGS,72.00,EDUC VISITS/HOLS/CAMPS/TOYS,RECREATION SERVICES (NOT ELSEWHERE CLASSIFIED)
03/04/2018,KARIBU COMMUNITY HOME,WWW.BOOHOO.COM,21.50,"CLOTHING, UNIFORM AND LAUNDRY",MEN'S AND WOMEN'S CLOTHING STORES
03/04/2018,TRAINING AND DEVELOPMENT,WWW.CFOASERVICES.CO.UK,396.00,SUBSISTENCE AND CONFERENCE EXPENSES,"ORGANIZATIONS, MEMBERSHIP-NOT ELSEWHERE CLASSIFIED"
03/04/2018,WOODLANDS COMMUNITY HOME,WWW.ARGOS.CO.UK,399.98,EQUIPMENT,DISCOUNT STORES
03/04/2018,WOODLANDS COMMUNITY HOME,WWW.ARGOS.CO.UK,6.95,EQUIPMENT,DISCOUNT STORES
03/04/2018,WOODLANDS COMMUNITY HOME,WWW.ARGOS.CO.UK,39.98,EQUIPMENT,DISCOUNT STORES
03/04/2018,ARUNDEL,TESCO STORES 5999,130.67,REFRESHMENT COSTS,"GROCERY STORES, SUPERMARKETS"
03/04/2018,ARUNDEL,TESCO STORES 5999,15.96,REFRESHMENT COSTS,"GROCERY STORES, SUPERMARKETS"
03/04/2018,CHAIRMAN,ELSA BROWN FLOWER STYL,25.00,EQUIPMENT,FLORISTS
03/04/2018,PE/CDT MAINTENANCE OVERHEADS,SCREWFIX DIRECT,11.97,EQUIPMENT,"BUILDING MATERIALS, LUMBER STORES"
03/04/2018,FAMILY GROUP CONFERENCES,AMAZON PRIME,7.99,BOOKS,DIRECT MARKETING-CONTINUITY/SUBSCRIPTION MERCHANTS
03/04/2018,ASSET PLANNING - OPERATIONS,WWW.MUDFORDS.CO.UK,386.40,EQUIPMENT,INDUSTRIAL SUPPLIES NOT ELSEWHERE CLASSIFIED
03/04/2018,NE CARE - NON-LAC CP & COURT,MINICABIT,39.59,NON-STAFF RELATED TRANSPORT COSTS,"COMPUTERS, COMPUTER PERIPHERAL EQUIPMENT, SOFTWARE"
03/04/2018,HILLSIDE,TESCO STORES 3149,6.75,PURCHASE OF FOOD (RAW MATERIALS),"GROCERY STORES, SUPERMARKETS"
03/04/2018,BURBANK COMMUNITY HOME,WWW.DOMINOS.CO.UK,19.99,REFRESHMENT COSTS,"EATING PLACES, RESTAURANTS"
03/04/2018,MALLOW CRESCENT,THINK FORD GUILDFO,152.18,VEHICLE REPAIRS AND MAINTENANCE,AUTOMOTIVE SERVICE SHOPS
03/04/2018,PE/CDT MAINTENANCE OVERHEADS,SUK RETAIL LTD,63.95,EQUIPMENT,"OFFICE, SCHOOL SUPPLY, AND STATIONERY STORES"
03/04/2018,SOLD PROFESSIONAL TRAINING AND DEVLPMNT,TRAVELODGE,76.50,VENUE COSTS (INCLUDING HIRE OF ROOMS),TRAVELODGE
03/04/2018,REMA ETHNIC/LANGUAGE MINORITY SUPPORT,WWW.QA.COM,456.00,TRAINING EXPENSES EXTERNAL GENERAL,SCHOOLS & EDUCATIONAL SVC-NOT ELSEWHERE CLASSIFIED
03/04/2018,IMT CRITICAL ENVIRONMENTS,WWW.MILKANDMORE.CO.UK,7.80,REFRESHMENT COSTS,DIRECT MARKETING-CONTINUITY/SUBSCRIPTION MERCHANTS
03/04/2018,HILLSIDE,SAINSBURYS 0675,53.74,PURCHASE OF FOOD (RAW MATERIALS),"GROCERY STORES, SUPERMARKETS"
03/04/2018,PORTAGE SERVICE (SW),AMAZON UK MARKETPLACE,33.91,BOOKS,BOOK STORES
03/04/2018,TS SERVICE MANAGEMENT,GB GROUP PLC,"3,861.00",COMPUTER SERVICES,DIRECT MARKETING-COMBINATION CATALOG/RETAIL MERCH.
03/04/2018,TS SERVICE MANAGEMENT,GB GROUP PLC,"3,861.00",COMPUTER SERVICES,DIRECT MARKETING-COMBINATION CATALOG/RETAIL MERCH.
03/04/2018,PORTAGE SERVICE (SW),AMAZON UK MARKETPLACE,7.78,BOOKS,BOOK STORES
03/04/2018,PORTAGE SERVICE (SW),PAYPAL  ROMPA LTD,173.94,BOOKS,"DURABLE GOODS, NOT ELSEWHERE CLASSIFIED"
03/04/2018,ORBIS HEAD OF PROCUREMENT,WWW.CIPS.ORG,124.00,EXAMINATION FEES,"ORGANIZATIONS, MEMBERSHIP-NOT ELSEWHERE CLASSIFIED"
03/04/2018,NE CARE - LAC,PAYPAL  CHILDRENSLE,25.00,OTHER COMMUNITY CARE VOL,"ORGANIZATIONS, CHARITABLE AND SOCIAL SERVICES"
03/04/2018,HOPE SERVICE - WEST,SAINSBURYS SACAT 0683,62.00,PURCHASE OF FOOD (RAW MATERIALS),"GROCERY STORES, SUPERMARKETS"
03/04/2018,FAMILIES WOKING,DART-CHARGE,6.00,NON-STAFF RELATED TRANSPORT COSTS,"BRIDGE AND ROAD FEES, TOLLS"
03/04/2018,TRANSPORT,PAYPAL  ESPARES LTD,119.22,EQUIPMENT,HARDWARE STORES
03/04/2018,PHOENIX YC TADWORTH,MR SNOB LIMITED,77.94,DAY TO DAY MAINTENANCE,"HAT CLEANING SHOPS, SHOE REPAIR SHOPS, SHOE SHINE"
03/04/2018,CENTRAL COMMUNICATIONS,GOOGLE  ADWS2060179426,500.00,PUBLICITY,DIRECT MARKETING-CONTINUITY/SUBSCRIPTION MERCHANTS
03/04/2018,ASSET PLANNING - OPERATIONS,POST OFFICE COUNTER,29.76,POSTAGE AND COURIER CHARGES,POSTAL SERVICES-GOVERNMENT ONLY
03/04/2018,NE EDUCATION PSYCHOLOGISTS,WWW.RYMAN.CO.UK,53.97,EQUIPMENT,"OFFICE, SCHOOL SUPPLY, AND STATIONERY STORES"
03/04/2018,FAMILIES WOKING,ASDA STORES 4823,183.84,PURCHASE OF FOOD (RAW MATERIALS),"GROCERY STORES, SUPERMARKETS"
03/04/2018,LIBERTAS COMMUNITY HOME,LONGNOR GENERAL STORE,5.09,REFRESHMENT COSTS,"GROCERY STORES, SUPERMARKETS"
03/04/2018,NE CARE - LAC,GRO HM PASSPORT OFFICE,18.50,FEES,GOVERNMENT SERVICES-NOT ELSEWHERE CLASSIFIED
03/04/2018,PROPERTY OPERATIONS TEAM,SCREWFIX GUILDFORD,30.04,PURCHASE OF BUILDING MATERIALS,"BUILDING MATERIALS, LUMBER STORES"
03/04/2018,TRANSPORT,AMAZON UK MARKETPLACE,46.49,VEHICLE REPAIRS AND MAINTENANCE,BOOK STORES
03/04/2018,POLICY AND OPERATIONS TEAM              ,SAS SOFTWARE LTD,"2,085.60",SUBSCRIPTIONS,SCHOOLS & EDUCATIONAL SVC-NOT ELSEWHERE CLASSIFIED
03/04/2018,FAMILY WORKFORCE DEVELOPMENT EAST,SURE 24 LTD,27.71,EQUIPMENT,"CONTRACTORS,SPECIAL TRADE-NOT ELSEWHERE CLASSIFIED"
03/04/2018,EXTENDED HOPE,TESCO STORE 2590,77.95,PURCHASE OF FOOD (RAW MATERIALS),"GROCERY STORES, SUPERMARKETS"
03/04/2018,FAIRMOUNT HOUSE LEATHERHEAD,WWW.RAINBOWSAFETEY.CO.,6.00,EQUIPMENT,MISCELLANEOUS AND SPECIALTY RETAIL STORES
03/04/2018,COVEHAM,SAINSBURYS TO YOU 0687,187.80,REFRESHMENT COSTS,"GROCERY STORES, SUPERMARKETS"
03/04/2018,COUNTYWIDE MANAGED PRINT SERVICE,AMAZON EU,38.39,COMPUTER CONSUMABLES,DIRECT MARKETING-OTHER DIRECT MARKETERS/NOT ELSEW.
03/04/2018,CENTRAL COMMUNICATIONS,HOO HOOTSUITE INC,5.28,PUBLICITY,DIRECT MARKETING-CONTINUITY/SUBSCRIPTION MERCHANTS
03/04/2018,FAIRCROFT COMMUNITY HOME,TESCO STORE 2812,204.26,PURCHASE OF FOOD (RAW MATERIALS),"GROCERY STORES, SUPERMARKETS"
03/04/2018,LIBERTAS COMMUNITY HOME,SAINSBURYS TO YOU 0652,77.15,PURCHASE OF FOOD (RAW MATERIALS),"GROCERY STORES, SUPERMARKETS"
03/04/2018,ACL CENTRAL EXPENDITURE,TESCO DELIVERY SAVER2,6.99,REFRESHMENT COSTS,DIRECT MARKETING-CONTINUITY/SUBSCRIPTION MERCHANTS
03/04/2018,FIRE SERVICES IT,AMAZON EU,54.89,COMPUTER HARDWARE,DIRECT MARKETING-OTHER DIRECT MARKETERS/NOT ELSEW.
03/04/2018,APPLEWOOD,ASDA GROCERIES ONLINE,145.73,PURCHASE OF FOOD (RAW MATERIALS),"GROCERY STORES, SUPERMARKETS"
03/04/2018,COVEHAM,SAINSBURYS TO YOU 0687,-.85,REFRESHMENT COSTS,"GROCERY STORES, SUPERMARKETS"
03/04/2018,CHEYNE WALK COMMUNITY HOME,TESCO STORES 2313,1.00,PURCHASE OF FOOD (RAW MATERIALS),"GROCERY STORES, SUPERMARKETS"
03/04/2018,TRANSPORT,AMAZON UK MARKETPLACE,42.54,STATIONERY,BOOK STORES
03/04/2018,LIBERTAS COMMUNITY HOME,ALTON TOWERS,-35.00,EDUC VISITS/HOLS/CAMPS/TOYS,TOURIST ATTRACTIONS AND EXHIBITS
03/04/2018,APPLEWOOD,ASDA GROCERIES ONLINE,-.57,PURCHASE OF FOOD (RAW MATERIALS),"GROCERY STORES, SUPERMARKETS"
03/04/2018,SOLD CONFRENCE,AMAZON UK MARKETPLACE,34.60,CURRICULUM CONSUMABLES,BOOK STORES
04/04/2018,FAIRCROFT COMMUNITY HOME,TWO RIVERS CAR PK,1.20,NON-STAFF RELATED TRANSPORT COSTS,AUTOMOBILE PARKING LOTS AND GARAGES
04/04/2018,CONSERVATION,SOCIETY FOR THE PR,94.00,SUBSCRIPTIONS,DIRECT MARKETING-OTHER DIRECT MARKETERS/NOT ELSEW.
04/04/2018,WOODLANDS COMMUNITY HOME,3C_ THE ATRIUM CAR PAR,1.90,NON-STAFF RELATED TRANSPORT COSTS,AUTOMOBILE PARKING LOTS AND GARAGES
04/04/2018,NW NIL RECOURSE TO PUBLIC FUNDS CARE,PREMIER INN,534.50,INDEPENDENT LIVING PLACEMENTS,PREMIER INN
04/04/2018,LEGAL EXPENSES CHILD ADULT EDUC TEAM,EYE NETWORK,282.00,LEGAL EXPENSES,ELECTRONIC SALES
04/04/2018,WOODLANDS COMMUNITY HOME,VUE BSL-SITE,117.24,EDUC VISITS/HOLS/CAMPS/TOYS,MOTION PICTURE THEATERS
04/04/2018,LIBERTAS COMMUNITY HOME,TESCO PFS 5414,1.85,PURCHASE OF FOOD (RAW MATERIALS),SERVICE STATIONS WITH OR WITHOUT ANCILLARY SERVICE
04/04/2018,LIBERTAS COMMUNITY HOME,COSTA COFFEE - BUXTON,5.80,REFRESHMENT COSTS,FAST FOOD RESTAURANTS
04/04/2018,FAIRCROFT COMMUNITY HOME,MCDONALDS,26.15,REFRESHMENT COSTS,FAST FOOD RESTAURANTS
04/04/2018,LIBERTAS COMMUNITY HOME,THE BLUE JOHN CAVERN,20.98,3RD PARTY PAYMENTS PRIVATE INDIV,"GIFT, CARD, NOVELTY AND SOUVENIR SHOPS"
04/04/2018,MENTAL HEALTH,ROYAL SOCIETY FOR,45.72,STATIONERY,"ORGANIZATIONS, CHARITABLE AND SOCIAL SERVICES"
04/04/2018,WOODLANDS COMMUNITY HOME,SOFOLOGY LIMITED,129.00,FURNITURE,"EQUIP, FURNITURE, HOME FURNSHNGS STRS (EXCPT APPL)"
04/04/2018,DEMOCRATIC SERVICES TEAM,ESEDIRECT.CO.UK,90.12,FIXTURES AND FITTINGS,"OFFICE, SCHOOL SUPPLY, AND STATIONERY STORES"
04/04/2018,PORTAGE SERVICE (SW),AMAZON UK MARKETPLACE,44.06,BOOKS,BOOK STORES
04/04/2018,SE EDUCATION PSYCHOLOGISTS,WWW.BLACKWELL.CO.UK,28.76,BOOKS,"OFFICE, SCHOOL SUPPLY, AND STATIONERY STORES"
04/04/2018,CHMHS RAP TEAM,AMAZON EU,16.53,EDUC VISITS/HOLS/CAMPS/TOYS,DIRECT MARKETING-OTHER DIRECT MARKETERS/NOT ELSEW.
04/04/2018,FAIRCROFT COMMUNITY HOME,JUMP GIANTS HEATHROW L,7.50,REFRESHMENT COSTS,RECREATION SERVICES (NOT ELSEWHERE CLASSIFIED)
04/04/2018,LIBERTAS COMMUNITY HOME,THE BLUE JOHN CAVERN,60.00,EDUC VISITS/HOLS/CAMPS/TOYS,"GIFT, CARD, NOVELTY AND SOUVENIR SHOPS"
04/04/2018,WOODLANDS COMMUNITY HOME,HOMEBASE LTD 084,62.00,EQUIPMENT,"BUILDING MATERIALS, LUMBER STORES"
04/04/2018,KARIBU COMMUNITY HOME,SAINSBURYS 0683,4.90,PURCHASE OF FOOD (RAW MATERIALS),"GROCERY STORES, SUPERMARKETS"
04/04/2018,KARIBU COMMUNITY HOME,SAINSBURYS 0683,52.00,EQUIPMENT,"GROCERY STORES, SUPERMARKETS"
04/04/2018,CHEYNE WALK COMMUNITY HOME,WM  MORRISON STORE,3.60,PURCHASE OF FOOD (RAW MATERIALS),"GROCERY STORES, SUPERMARKETS"
04/04/2018,HILLSIDE,SAINSBURYS 0784,11.00,PURCHASE OF FOOD (RAW MATERIALS),"GROCERY STORES, SUPERMARKETS"
04/04/2018,FAIRCROFT COMMUNITY HOME,JUMP GIANTS HEATHROW L,5.00,REFRESHMENT COSTS,RECREATION SERVICES (NOT ELSEWHERE CLASSIFIED)
04/04/2018,KARIBU COMMUNITY HOME,ARGOS KILN LANE IN,115.97,EQUIPMENT,DISCOUNT STORES
04/04/2018,ARUNDEL,TESCO STORES 5999,134.92,REFRESHMENT COSTS,"GROCERY STORES, SUPERMARKETS"
04/04/2018,SCHOOL GAMES LOC 2015-16                ,ARGOS RETAIL GROUP,9.99,COMPUTER CONSUMABLES,DISCOUNT STORES
04/04/2018,SOLD CATERING,ASDA SUPERSTORE,63.15,PURCHASE OF FOOD (RAW MATERIALS),"GROCERY STORES, SUPERMARKETS"
04/04/2018,BURBANK COMMUNITY HOME,COSTA COFFEE 43037185,5.60,REFRESHMENT COSTS,FAST FOOD RESTAURANTS
04/04/2018,STAFF OFFICE,TV CASES,131.76,COMPUTER CONSUMABLES,CAMERA AND PHOTOGRAPHIC SUPPLY STORES
04/04/2018,NW NIL RECOURSE TO PUBLIC FUNDS CARE,TRAVELODGE,388.00,INDEPENDENT LIVING PLACEMENTS,TRAVELODGE
04/04/2018,HOPE SERVICE - WEST,THE-WAREHOUSE-ONLI,384.00,CURRICULUM EQUIPMENT AND FURNITURE,"OFFICE, SCHOOL SUPPLY, AND STATIONERY STORES"
04/04/2018,COVEHAM,AMAZON UK MARKETPLACE,40.94,STATIONERY,BOOK STORES
04/04/2018,KARIBU COMMUNITY HOME,MUFFIN BREAK,6.05,PURCHASE OF FOOD (RAW MATERIALS),FAST FOOD RESTAURANTS
04/04/2018,TARGETED INTERVENTION,WWW.SURREY.GOV.UK,12.50,EDUC VISITS/HOLS/CAMPS/TOYS,GOVERNMENT SERVICES-NOT ELSEWHERE CLASSIFIED
04/04/2018,KARIBU COMMUNITY HOME,BOOTS 0809,53.27,EQUIPMENT,"DRUG STORES, PHARMACIES"
04/04/2018,SCHOOL APPEALS,AMAZON UK MARKETPLACE,24.36,CLEANING AND DOMESTIC SUPPLIES,BOOK STORES
04/04/2018,WOODLANDS COMMUNITY HOME,SAINSBURYS 0686,14.20,EQUIPMENT,"GROCERY STORES, SUPERMARKETS"
04/04/2018,WOODLANDS COMMUNITY HOME,SAINSBURYS 0686,18.00,CLEANING MATERIALS,"GROCERY STORES, SUPERMARKETS"
04/04/2018,BURBANK COMMUNITY HOME,WICKES,24.47,DAY TO DAY MAINTENANCE,HOME SUPPLY WAREHOUSE STORES
04/04/2018,KARIBU COMMUNITY HOME,J D SPORTS 674,50.05,"CLOTHING, UNIFORM AND LAUNDRY",SPORTING GOODS STORES
04/04/2018,FAIRCROFT COMMUNITY HOME,SAINSBURYS SACAT 0687,16.50,EQUIPMENT,"GROCERY STORES, SUPERMARKETS"
04/04/2018,FAIRCROFT COMMUNITY HOME,SAINSBURYS SACAT 0687,.70,PURCHASE OF FOOD (RAW MATERIALS),"GROCERY STORES, SUPERMARKETS"
04/04/2018,FAIRCROFT COMMUNITY HOME,SAINSBURYS SACAT 0687,17.75,EQUIPMENT,"GROCERY STORES, SUPERMARKETS"
04/04/2018,LOCAL ASSISTANCE SCHEME,AMAZON EU,140.92,FURNITURE,DIRECT MARKETING-OTHER DIRECT MARKETERS/NOT ELSEW.
04/04/2018,FAIRCROFT COMMUNITY HOME,SAINSBURYS SACAT 0687,14.50,PURCHASE OF FOOD (RAW MATERIALS),"GROCERY STORES, SUPERMARKETS"
04/04/2018,LOCAL ASSISTANCE SCHEME,AMAZON UK MARKETPLACE,161.99,FURNITURE,BOOK STORES
04/04/2018,ASSET PLANNING - OPERATIONS,AMAZON UK MARKETPLACE,9.97,COMPUTER CONSUMABLES,BOOK STORES
04/04/2018,HOPE SERVICE - WEST,SAINSBURYS SACAT(4409),2.40,PURCHASE OF FOOD (RAW MATERIALS),"GROCERY STORES, SUPERMARKETS"
04/04/2018,CHMHS RAP TEAM,LEAD X,110.00,EDUC VISITS/HOLS/CAMPS/TOYS,LIMOUSINES AND TAXICABS
04/04/2018,SOLD ESTATES MANAGEMENT,GUILDFORD LOCK & SAFE,59.24,EQUIPMENT,HARDWARE EQUIPMENT AND SUPPLIES
04/04/2018,COUNTY HALL,TLC (SOUTHERN) LTD,96.55,DAY TO DAY MAINTENANCE,HOUSEHOLD APPLIANCE STORES
04/04/2018,HOPE SERVICE - WEST,SAINSBURYS SACAT(4409),2.90,PURCHASE OF FOOD (RAW MATERIALS),"GROCERY STORES, SUPERMARKETS"
04/04/2018,NE CARE - CP & COURT LAC,SURREY CC CARD PAY,38.00,OTHER COMMUNITY CARE VOL,COMPUTER NETWORK/INFORMATION SERVICES
04/04/2018,HILLSIDE,SAINSBURYS 0675,46.05,PURCHASE OF FOOD (RAW MATERIALS),"GROCERY STORES, SUPERMARKETS"
04/04/2018,PROPERTY OPERATIONS TEAM,ABL HEATING & PLUMBING,8.14,PURCHASE OF BUILDING MATERIALS,"HEATING, PLUMBING, AIR CONDITIONING CONTRACTORS"
04/04/2018,HOPE SERVICE - WEST,THE SCULPTURE PARK,25.00,EDUC VISITS/HOLS/CAMPS/TOYS,TOURIST ATTRACTIONS AND EXHIBITS
04/04/2018,NE CARE - NON-LAC CP & COURT,TRAVELODGE,85.00,FEES,TRAVELODGE
04/04/2018,SOUTH WEST OUTREACH,SAINSBURYS TO YOU 0652,16.95,PURCHASE OF FOOD (RAW MATERIALS),"GROCERY STORES, SUPERMARKETS"
04/04/2018,SOUTH WEST OUTREACH,SAINSBURYS TO YOU 0652,153.44,PURCHASE OF FOOD (RAW MATERIALS),"GROCERY STORES, SUPERMARKETS"
04/04/2018,FAMILIES SPELTHORNE,SAINSBURYS 2174,52.84,REFRESHMENT COSTS,"GROCERY STORES, SUPERMARKETS"
04/04/2018,FAIRCROFT COMMUNITY HOME,TESCO STORE 2812,133.30,EQUIPMENT,"GROCERY STORES, SUPERMARKETS"
04/04/2018,WOODLANDS COMMUNITY HOME,SAINSBURYS TO YOU 0686,9.60,PURCHASE OF FOOD (RAW MATERIALS),"GROCERY STORES, SUPERMARKETS"
04/04/2018,WOODLANDS COMMUNITY HOME,SAINSBURYS TO YOU 0686,101.45,PURCHASE OF FOOD (RAW MATERIALS),"GROCERY STORES, SUPERMARKETS"
04/04/2018,CHEYNE WALK COMMUNITY HOME,TESCO-STORES 6647,207.67,PURCHASE OF FOOD (RAW MATERIALS),"GROCERY STORES, SUPERMARKETS"
04/04/2018,WOODLANDS COMMUNITY HOME,HOMEBASE LTD 084,-58.00,DAY TO DAY MAINTENANCE,"BUILDING MATERIALS, LUMBER STORES"
04/04/2018,NE CARE - LAC,PAYPAL  CHILDRENSLE,-25.00,OTHER COMMUNITY CARE VOL,"ORGANIZATIONS, CHARITABLE AND SOCIAL SERVICES"
04/04/2018,SOLD CONFRENCE,AMAZON UK MARKETPLACE,42.99,CURRICULUM CONSUMABLES,BOOK STORES
04/04/2018,STRATEGIC LEADERSHIP (CEO & ACEO),AMZ AMAZON.CO.UK,-91.59,FIXTURES AND FITTINGS,DIRECT MARKETING-OTHER DIRECT MARKETERS/NOT ELSEW.
05/04/2018,LIBERTAS COMMUNITY HOME,ALTON TOWERS,38.30,REFRESHMENT COSTS,"AMUSEMENT PARKS,CARNIVALS,CIRCUS,FORTUNE TELLERS"
05/04/2018,DEVELOPMENT TEAM,"CLOUD9 IDE, INC",42.76,COMPUTER SERVICES,"COMPUTERS, COMPUTER PERIPHERAL EQUIPMENT, SOFTWARE"
05/04/2018,NW CARE - LAC,HOLIDAY INN EXPRESS,65.00,INDEPENDENT LIVING PLACEMENTS,"LODGING-HOTELS,MOTELS,RESORTS-NOT CLASSIFIED"
05/04/2018,NE CARE - CP & COURT LAC,GRO HM PASSPORT OFFICE,-29.85,OTHER COMMUNITY CARE VOL,GOVERNMENT SERVICES-NOT ELSEWHERE CLASSIFIED
05/04/2018,CHMHS RAP TEAM,ZIZZI GUILDFORD,64.95,EDUC VISITS/HOLS/CAMPS/TOYS,"EATING PLACES, RESTAURANTS"
05/04/2018,SPELTHORNE CMHRS CARE,VERIFONE TAXI/PRIVATE,10.20,TRANSPORT SOCIAL CARE-TAXI,LIMOUSINES AND TAXICABS
05/04/2018,IMT CRITICAL ENVIRONMENTS,MILKANDMORE.CO.UK,7.80,REFRESHMENT COSTS,DAIRY PRODUCTS STORES
05/04/2018,FAMILIES WOKING,ASDA PETROL 4823,20.10,NON-STAFF RELATED TRANSPORT COSTS,SERVICE STATIONS WITH OR WITHOUT ANCILLARY SERVICE
05/04/2018,CHEYNE WALK COMMUNITY HOME,NANDOS CRAWLEY,9.45,PURCHASE OF FOOD (RAW MATERIALS),"EATING PLACES, RESTAURANTS"
05/04/2018,SPELTHORNE CMHRS CARE,VERIFONE TAXI/PRIVATE,46.00,TRANSPORT SOCIAL CARE-TAXI,LIMOUSINES AND TAXICABS
05/04/2018,RUTH HOUSE,BJ SUPPLIES,161.25,EDUC VISITS/HOLS/CAMPS/TOYS,COSMETIC STORES
05/04/2018,CHEYNE WALK COMMUNITY HOME,NANDOS CRAWLEY,76.30,PURCHASE OF FOOD (RAW MATERIALS),"EATING PLACES, RESTAURANTS"
05/04/2018,SERVICE DELIVERY SENIOR MANAGEMENT,AMAZON EU,20.69,BOOKS,DIRECT MARKETING-OTHER DIRECT MARKETERS/NOT ELSEW.
05/04/2018,ARUNDEL,TESCO STORES 5999,81.55,REFRESHMENT COSTS,"GROCERY STORES, SUPERMARKETS"
05/04/2018,SPELTHORNE CMHRS CARE,HMCTS-SURREY125,75.00,FEES,FINES
05/04/2018,RUTH HOUSE,AO RETAIL LIMITED,279.00,EQUIPMENT,HOUSEHOLD APPLIANCE STORES
05/04/2018,FAMILIES ELMBRIDGE,SAINSBURYS 2663,6.55,PURCHASE OF FOOD (RAW MATERIALS),"GROCERY STORES, SUPERMARKETS"
05/04/2018,RUTH HOUSE,WWW.IKEA.COM,696.50,FURNITURE,"EQUIP, FURNITURE, HOME FURNSHNGS STRS (EXCPT APPL)"
05/04/2018,SOLD ESTATES MANAGEMENT,GUILDFORD LOCK & SAFE,41.06,FIXTURES AND FITTINGS,HARDWARE EQUIPMENT AND SUPPLIES
05/04/2018,FAMILIES REIGATE AND BANSTREAD,LIDL UK,29.00,PURCHASE OF FOOD (RAW MATERIALS),"GROCERY STORES, SUPERMARKETS"
05/04/2018,SOLD DAY TO DAY OPERATIONS,B & Q 1029,49.08,EQUIPMENT,"BUILDING MATERIALS, LUMBER STORES"
05/04/2018,SOLD ESTATES MANAGEMENT,B & Q 1076,36.70,DAY TO DAY MAINTENANCE,"BUILDING MATERIALS, LUMBER STORES"
05/04/2018,HERITAGE PUBLIC SERVICE,WICKES BUILDING,52.75,EQUIPMENT,"BUILDING MATERIALS, LUMBER STORES"
05/04/2018,NE CARE - CP & COURT LAC,GRO HM PASSPORT OFFICE,18.50,OTHER COMMUNITY CARE VOL,GOVERNMENT SERVICES-NOT ELSEWHERE CLASSIFIED
05/04/2018,PE/CDT MAINTENANCE OVERHEADS,JOHNSON HEALTH TECH UK,584.62,EQUIPMENT,SPORTING GOODS STORES
05/04/2018,SOLD ESTATES MANAGEMENT,HALFORDS 0763,142.97,EQUIPMENT,BICYCLE SHOPS-SALES AND SERVICE
05/04/2018,CHEYNE WALK COMMUNITY HOME,AMFBOWLING.CO.UK,77.60,PURCHASE OF FOOD (RAW MATERIALS),"CLUBS-CNTRY,MBRSHIP(ATHLET,REC,SPRTS,PRIVATE GOLF"
05/04/2018,NE CARE - CP & COURT LAC,GRO HM PASSPORT OFFICE,29.85,OTHER COMMUNITY CARE VOL,GOVERNMENT SERVICES-NOT ELSEWHERE CLASSIFIED
05/04/2018,FIRE SERVICES IT,AMAZON UK MARKETPLACE,19.57,COMPUTER CONSUMABLES,BOOK STORES
05/04/2018,SOLD ESTATES MANAGEMENT,HALFORDS 0763,35.48,EQUIPMENT,BICYCLE SHOPS-SALES AND SERVICE
05/04/2018,FAMILIES REIGATE AND BANSTREAD,BOOKER LIMITED REDHILL,72.28,CURRICULUM CONSUMABLES,CATERERS
05/04/2018,SOLD ESTATES MANAGEMENT,HALFORDS 0763,14.99,EQUIPMENT,BICYCLE SHOPS-SALES AND SERVICE
05/04/2018,ASSET PLANNING - OPERATIONS,BRITISH STANDARDS,43.20,BOOKS,BUSINESS SERVICES-NOT ELSEWHERE CLASSIFIED
05/04/2018,HOPE SERVICE - WEST,CHESSINGTON GARDEN CTR,12.95,CURRICULUM CONSUMABLES,LAWN AND GARDEN SUPPLY STORES
05/04/2018,EDGE YC WEST EWELL,PES SOUTHERN LTD,69.60,DAY TO DAY MAINTENANCE,ELECTRICAL CONTRACTORS
05/04/2018,MENTAL HEALTH,SLAM NHSFT,200.00,PUBLICITY,NURSING AND PERSONAL CARE FACILITIES
05/04/2018,SCHOOL APPEALS,AMAZON UK MARKETPLACE,21.99,REFRESHMENT COSTS,BOOK STORES
05/04/2018,HOPE SERVICE - WEST,TESCO STORES 6320,9.10,PURCHASE OF FOOD (RAW MATERIALS),"GROCERY STORES, SUPERMARKETS"
05/04/2018,DOWNLANDS COUNTRYSIDE PROJECT,NPORS.COM,30.00,TRAINING EXPENSES EXTERNAL GENERAL,"ASSOCIATIONS-CIVIC, SOCIAL, AND FRATERNAL"
05/04/2018,RESTORATIVE PRACTICE TEAM,SETON,217.14,EQUIPMENT,"DURABLE GOODS, NOT ELSEWHERE CLASSIFIED"
05/04/2018,SPEECH & LANGUAGE THERAPY,WWW.SMARTKIDS2.CO.UK,26.38,EDUC VISITS/HOLS/CAMPS/TOYS,SCHOOLS & EDUCATIONAL SVC-NOT ELSEWHERE CLASSIFIED
05/04/2018,SPEECH & LANGUAGE THERAPY,WWW.ARGOS.CO.UK,33.95,EDUC VISITS/HOLS/CAMPS/TOYS,DISCOUNT STORES
05/04/2018,TARGETED INTERVENTION,SAINSBURYS 0686,6.35,EDUC VISITS/HOLS/CAMPS/TOYS,"GROCERY STORES, SUPERMARKETS"
05/04/2018,MGMT TRAINEE STAFF COSTS,WWW.QA.COM,"1,368.00",TRAINING EXPENSES EXTERNAL GENERAL,SCHOOLS & EDUCATIONAL SVC-NOT ELSEWHERE CLASSIFIED
05/04/2018,HILLSIDE,SAINSBURYS 0675,97.26,PURCHASE OF FOOD (RAW MATERIALS),"GROCERY STORES, SUPERMARKETS"
05/04/2018,PE/CDT MAINTENANCE OVERHEADS,BROXAP LTD,181.97,ITEMS PURCHASED FOR RE-SALE,GENERAL CONTRACTORS/RESIDENTIAL BUILDINGS
05/04/2018,CHMHS RAP TEAM,WWW.ARGOS.CO.UK,130.78,EDUC VISITS/HOLS/CAMPS/TOYS,DISCOUNT STORES
05/04/2018,ORBIS HEAD OF PROCUREMENT,WHITEPAPER.CO.UK,626.40,TRAINING EXPENSES EXTERNAL GENERAL,COMPUTER SOFTWARE STORES
05/04/2018,ORBIS HEAD OF PROCUREMENT,WWW.BHCC-INTERNET,894.00,VENUE COSTS (INCLUDING HIRE OF ROOMS),GOVERNMENT SERVICES-NOT ELSEWHERE CLASSIFIED
05/04/2018,PROPERTY OPERATIONS TEAM,B & Q 1029,4.37,PURCHASE OF BUILDING MATERIALS,"BUILDING MATERIALS, LUMBER STORES"
05/04/2018,YSS YOUTH CENTRE IMPROVEMENTS,TESCO STORES 2812,9.89,REFRESHMENT COSTS,"GROCERY STORES, SUPERMARKETS"
05/04/2018,FAIRCROFT COMMUNITY HOME,PANDORA ESTORE,105.00,3RD PARTY PAYMENTS PRIVATE INDIV,"CLOCK, JEWELRY, WATCH, AND SILVERWARE STORE"
05/04/2018,WOODLANDS COMMUNITY HOME,CONNAUGHT SERVICE,27.29,PETROL/DIESEL ALL OFF BUSINESS,SERVICE STATIONS WITH OR WITHOUT ANCILLARY SERVICE
05/04/2018,PORTAGE SERVICE (SW),AMAZON UK MARKETPLACE,56.96,EDUC VISITS/HOLS/CAMPS/TOYS,BOOK STORES
05/04/2018,PORTAGE SERVICE (SW),AMAZON UK MARKETPLACE,129.79,BOOKS,BOOK STORES
05/04/2018,ACL CENTRAL EXPENDITURE,AMZ TEKBOX LTD,-8.20,EQUIPMENT,MISCELLANEOUS AND SPECIALTY RETAIL STORES
05/04/2018,SOLD ESTATES MANAGEMENT,HALFORDS 0763,-14.99,EQUIPMENT,BICYCLE SHOPS-SALES AND SERVICE
05/04/2018,FAIRCROFT COMMUNITY HOME,AMAZON EU,23.98,EQUIPMENT,DIRECT MARKETING-OTHER DIRECT MARKETERS/NOT ELSEW.
06/04/2018,DEPUTYSHIP TEAM,HAMPSHIRE COUNTY COUNC,-10.00,3RD PARTY PAYMENTS PRIVATE INDIV,GOVERNMENT SERVICES-NOT ELSEWHERE CLASSIFIED
06/04/2018,ACL CENTRAL EXPENDITURE,AMAZON EU,19.24,EQUIPMENT,DIRECT MARKETING-OTHER DIRECT MARKETERS/NOT ELSEW.
06/04/2018,LIBERTAS COMMUNITY HOME,THE MANIFOLD INN,96.85,REFRESHMENT COSTS,"LODGING-HOTELS,MOTELS,RESORTS-NOT CLASSIFIED"
06/04/2018,KARIBU COMMUNITY HOME,SAINSBURYS SACAT 0683,15.10,PURCHASE OF FOOD (RAW MATERIALS),"GROCERY STORES, SUPERMARKETS"
06/04/2018,LOCAL ASSISTANCE SCHEME,WWW.JOHNLEWIS.COM,109.00,FURNITURE,DEPARTMENT STORES
06/04/2018,ASSET STRATEGY & PLANNING MANAGER,TANDRIDGE DISTRICT COU,177.00,FEES,BUSINESS SERVICES-NOT ELSEWHERE CLASSIFIED
06/04/2018,VIRTUAL SERVICE MANAGER,PAYPAL  RAIVEON LTD,"1,128.00",EQUIPMENT,ADVERTISING SERVICES
06/04/2018,DEPUTYSHIP TEAM,HAMPSHIRE COUNTY COUNC,10.00,3RD PARTY PAYMENTS PRIVATE INDIV,GOVERNMENT SERVICES-NOT ELSEWHERE CLASSIFIED
06/04/2018,BURBANK COMMUNITY HOME,IKEA LIMITED,191.50,FURNITURE,"EQUIP, FURNITURE, HOME FURNSHNGS STRS (EXCPT APPL)"
06/04/2018,LEAVING CARE PACKAGES,ISISBEAUTY.CO.UK,"2,457.00",CURRICULUM CONSUMABLES,"COLLEGES, UNIV, PRO SCHOOLS, JUNIOR COLLEGES"
06/04/2018,SOLD DAY TO DAY OPERATIONS,SUPERDRUG STORES PLC,12.40,EQUIPMENT,"DRUG STORES, PHARMACIES"
06/04/2018,SOLD DAY TO DAY OPERATIONS,SAINSBURYS 0517,28.30,EQUIPMENT,"GROCERY STORES, SUPERMARKETS"
06/04/2018,SOLD DAY TO DAY OPERATIONS,WH SMITH,14.47,EQUIPMENT,NEWS DEALERS AND NEWSSTANDS
06/04/2018,SYG 2015                                ,AMAZON UK MARKETPLACE,2.79,EQUIPMENT,BOOK STORES
06/04/2018,LOWER MOLE COUNTRYSIDE PROJECT,PULLINGERS STATIONERS,24.95,EQUIPMENT,"OFFICE, SCHOOL SUPPLY, AND STATIONERY STORES"
06/04/2018,CHMHS RAP TEAM,WEBEX,235.00,EDUC VISITS/HOLS/CAMPS/TOYS,PROFESSIONAL SERVICES-NOT ELSEWHERE CLASSIFIED
06/04/2018,CHMHS RAP TEAM,J & A (INT) LTD,130.14,EDUC VISITS/HOLS/CAMPS/TOYS,STATIONERY/OFFICE SUPPLIES/PRINTING & WRITING PAP.
06/04/2018,SOLD DAY TO DAY OPERATIONS,POUNDLAND,9.70,EQUIPMENT,DISCOUNT STORES
06/04/2018,ARUNDEL,TESCO STORES 5999,133.99,REFRESHMENT COSTS,"GROCERY STORES, SUPERMARKETS"
06/04/2018,LOWER MOLE COUNTRYSIDE PROJECT,AW CHAMPION LTD,33.14,PURCHASE OF BUILDING MATERIALS,"BUILDING MATERIALS, LUMBER STORES"
06/04/2018,CHEYNE WALK COMMUNITY HOME,SUE JANE HAIR AND BEAU,112.50,EQUIPMENT,BARBER AND BEAUTY SHOPS
06/04/2018,RUTH HOUSE,G J HONOUR,286.53,PURCHASE OF FOOD (RAW MATERIALS),"MISC FOOD STORE-CONVENIENCE,MRKT,SPLTY,VENDNG MACS"
06/04/2018,TRANSPORT,HOMEBASE LTD 290,21.39,DAY TO DAY MAINTENANCE,"BUILDING MATERIALS, LUMBER STORES"
06/04/2018,CS BUSINESS SUPPORT EAST,AMAZON EU,12.91,BOOKS,DIRECT MARKETING-OTHER DIRECT MARKETERS/NOT ELSEW.
06/04/2018,SW LOOKED AFTER TEAM,BRITISH A,145.26,MISCELLANEOUS STAFF TRAVEL,BRITISH A
06/04/2018,LIBERTAS COMMUNITY HOME,BLACKWELL MILL CYC,27.00,EDUC VISITS/HOLS/CAMPS/TOYS,BICYCLE SHOPS-SALES AND SERVICE
06/04/2018,HILLSIDE,SAINSBURYS 0675,84.50,PURCHASE OF FOOD (RAW MATERIALS),"GROCERY STORES, SUPERMARKETS"
06/04/2018,WOODLANDS COMMUNITY HOME,HOMEBASE LTD 084,36.00,DAY TO DAY MAINTENANCE,"BUILDING MATERIALS, LUMBER STORES"
06/04/2018,PROPERTY OPERATIONS TEAM,SCREWFIX,23.97,PURCHASE OF BUILDING MATERIALS,"BUILDING MATERIALS, LUMBER STORES"
06/04/2018,YOUTH DEMOCRACY,LUL TICKET MACHINE,7.30,NON-STAFF RELATED TRANSPORT COSTS,PASSENGER RAILWAYS
06/04/2018,LEGAL EXPENSES CHILD ADULT EDUC TEAM,WWW.GOV.UK,10.00,LEGAL EXPENSES,PROFESSIONAL SERVICES-NOT ELSEWHERE CLASSIFIED
06/04/2018,NE CARE - LAC,GRO HM PASSPORT OFFICE,9.25,FEES,GOVERNMENT SERVICES-NOT ELSEWHERE CLASSIFIED
06/04/2018,TARGETED INTERVENTION,LIQUID LEISURE LTD,56.00,EDUC VISITS/HOLS/CAMPS/TOYS,RECREATION SERVICES (NOT ELSEWHERE CLASSIFIED)
06/04/2018,PROPERTY OPERATIONS TEAM,WICKES,15.15,PURCHASE OF BUILDING MATERIALS,HOME SUPPLY WAREHOUSE STORES
06/04/2018,TRANSPORT,DIAMOND GARAGE EQUIPME,297.60,VEHICLE REPAIRS AND MAINTENANCE,AUTOMOTIVE SERVICE SHOPS
06/04/2018,APPLEWOOD,AMAZON UK MARKETPLACE,13.16,EQUIPMENT,BOOK STORES
06/04/2018,EXTENDED HOPE,TESCO STORE 2590,57.86,PURCHASE OF FOOD (RAW MATERIALS),"GROCERY STORES, SUPERMARKETS"
06/04/2018,FAMILY AND FRIENDS FOSTERING TEAM,TRAVELODGE,92.50,NON-STAFF RELATED TRANSPORT COSTS,TRAVELODGE
06/04/2018,NE CP & COURT TEAM,NWS-UK LTD,149.18,EQUIPMENT,INDUSTRIAL SUPPLIES NOT ELSEWHERE CLASSIFIED
06/04/2018,ASYLUM SEEKERS 16-17,ARGOS RETAIL GROUP,89.99,EQUIPMENT,DISCOUNT STORES
06/04/2018,PE/CDT MAINTENANCE OVERHEADS,B & Q 1191,16.00,EQUIPMENT,"BUILDING MATERIALS, LUMBER STORES"
06/04/2018,ASYLUM SEEKERS 16-17,TFL OYST PHOTOCARD,20.00,NON-STAFF RELATED TRANSPORT COSTS,PASSENGER RAILWAYS
06/04/2018,HOPE SERVICE - WEST,SAINSBURYS SACAT(4409),1.10,PURCHASE OF FOOD (RAW MATERIALS),"GROCERY STORES, SUPERMARKETS"
06/04/2018,PE/CDT MAINTENANCE OVERHEADS,SAINSBURYS 0683,16.00,EQUIPMENT,"GROCERY STORES, SUPERMARKETS"
06/04/2018,PROPERTY OPERATIONS TEAM,SCREWFIX DIRECT,22.78,PURCHASE OF BUILDING MATERIALS,"BUILDING MATERIALS, LUMBER STORES"
06/04/2018,PE/CDT MAINTENANCE OVERHEADS,SCREWFIX DIRECT,20.24,EQUIPMENT,"BUILDING MATERIALS, LUMBER STORES"
06/04/2018,RUTH HOUSE,SAINSBURYS TO YOU 0686,81.75,PURCHASE OF FOOD (RAW MATERIALS),"GROCERY STORES, SUPERMARKETS"
06/04/2018,RUTH HOUSE,SAINSBURYS TO YOU 0686,293.10,PURCHASE OF FOOD (RAW MATERIALS),"GROCERY STORES, SUPERMARKETS"
06/04/2018,APPLEWOOD,ASDA GROCERIES ONLINE,235.33,PURCHASE OF FOOD (RAW MATERIALS),"GROCERY STORES, SUPERMARKETS"
06/04/2018,APPLEWOOD,ASDA GROCERIES ONLINE,-1.02,PURCHASE OF FOOD (RAW MATERIALS),"GROCERY STORES, SUPERMARKETS"
07/04/2018,FAIRCROFT COMMUNITY HOME,CHINA CHEF,94.60,REFRESHMENT COSTS,"EATING PLACES, RESTAURANTS"
07/04/2018,BURBANK COMMUNITY HOME,ARGOS LTD,14.40,FURNITURE,DISCOUNT STORES
07/04/2018,LIBERTAS COMMUNITY HOME,LAURETTA'S,2.50,REFRESHMENT COSTS,"EATING PLACES, RESTAURANTS"
07/04/2018,LIBERTAS COMMUNITY HOME,LAURETTA'S,42.15,REFRESHMENT COSTS,"EATING PLACES, RESTAURANTS"
07/04/2018,HOLLAND CLOSE RESIDENTIAL HOME,TESCO-STORES 6647,145.04,PURCHASE OF FOOD (RAW MATERIALS),"GROCERY STORES, SUPERMARKETS"
07/04/2018,CHMHS RAP TEAM,GOOGLE   PLAY,18.40,EDUC VISITS/HOLS/CAMPS/TOYS,BUSINESS SERVICES-NOT ELSEWHERE CLASSIFIED
07/04/2018,HILLSIDE,SAINSBURYS TO YOU 0675,282.25,PURCHASE OF FOOD (RAW MATERIALS),"GROCERY STORES, SUPERMARKETS"
07/04/2018,HILLSIDE,SAINSBURYS TO YOU 0675,32.70,PURCHASE OF FOOD (RAW MATERIALS),"GROCERY STORES, SUPERMARKETS"
07/04/2018,TRANSPORT,AMAZON UK MARKETPLACE,29.95,EQUIPMENT,BOOK STORES
08/04/2018,EXTENDED HOPE,ODEON,29.59,REFRESHMENT COSTS,MOTION PICTURE THEATERS
08/04/2018,EXTENDED HOPE,ODEON,16.15,EDUC VISITS/HOLS/CAMPS/TOYS,MOTION PICTURE THEATERS
08/04/2018,VIRTUAL SCHOOL FOR LAC PUPIL PREMIUM,AMAZON EU,57.94,BOOKS,DIRECT MARKETING-OTHER DIRECT MARKETERS/NOT ELSEW.
08/04/2018,FAIRCROFT COMMUNITY HOME,KFC,8.87,REFRESHMENT COSTS,FAST FOOD RESTAURANTS
08/04/2018,FAIRCROFT COMMUNITY HOME,CAR PARKS SPH,8.00,NON-STAFF RELATED TRANSPORT COSTS,GOVERNMENT SERVICES-NOT ELSEWHERE CLASSIFIED
08/04/2018,YOUTH DEMOCRACY,SELFSERVE TICKET,4.05,NON-STAFF RELATED TRANSPORT COSTS,PASSENGER RAILWAYS
08/04/2018,YOUTH DEMOCRACY,LUL TICKET MACHINE,9.80,NON-STAFF RELATED TRANSPORT COSTS,PASSENGER RAILWAYS
08/04/2018,RUTH HOUSE,AMAZON UK MARKETPLACE,25.15,EQUIPMENT,BOOK STORES
08/04/2018,AP & AR ORBIS NORTH,AMAZON EU,33.60,STATIONERY,DIRECT MARKETING-OTHER DIRECT MARKETERS/NOT ELSEW.
08/04/2018,HOLLAND CLOSE RESIDENTIAL HOME,THORPE PARK RESORT FIN,90.00,EDUC VISITS/HOLS/CAMPS/TOYS,TOURIST ATTRACTIONS AND EXHIBITS
08/04/2018,SOUTH WEST OUTREACH,AMAZON UK MARKETPLACE,11.80,PURCHASE OF FOOD (RAW MATERIALS),BOOK STORES
08/04/2018,IMT CRITICAL ENVIRONMENTS,AMAZON UK MARKETPLACE,7.45,EQUIPMENT,BOOK STORES
08/04/2018,ACL CENTRAL EXPENDITURE,AMAZON UK MARKETPLACE,25.98,EQUIPMENT,BOOK STORES
08/04/2018,IMT CRITICAL ENVIRONMENTS,AMAZON UK MARKETPLACE,5.99,EQUIPMENT,BOOK STORES
08/04/2018,CSF BUSINESS SUPPORT EDUCATION,AMAZON UK MARKETPLACE,24.74,EQUIPMENT,BOOK STORES
08/04/2018,WOODLANDS COMMUNITY HOME,SAINSBURYS TO YOU 0686,9.50,PURCHASE OF FOOD (RAW MATERIALS),"GROCERY STORES, SUPERMARKETS"
08/04/2018,WOODLANDS COMMUNITY HOME,SAINSBURYS TO YOU 0686,136.85,PURCHASE OF FOOD (RAW MATERIALS),"GROCERY STORES, SUPERMARKETS"
08/04/2018,BOOKS - ADULT FICTION                   ,AMAZON EU,38.55,BOOKS,DIRECT MARKETING-OTHER DIRECT MARKETERS/NOT ELSEW.
08/04/2018,DEMOCRATIC SERVICES TEAM,AMAZON EU,55.12,REFRESHMENT COSTS,DIRECT MARKETING-OTHER DIRECT MARKETERS/NOT ELSEW.
08/04/2018,BURBANK COMMUNITY HOME,SAINSBURYS TO YOU 0686,352.78,PURCHASE OF FOOD (RAW MATERIALS),"GROCERY STORES, SUPERMARKETS"
08/04/2018,COVEHAM,AMAZON EU,28.49,EQUIPMENT,DIRECT MARKETING-OTHER DIRECT MARKETERS/NOT ELSEW.
08/04/2018,CENTRAL COMMUNICATIONS,ITUNES.COM/BILL,17.98,PUBLICITY,RECORD SHOPS
08/04/2018,LOCAL DELIVERY GROUP,AMAZON UK MARKETPLACE,19.98,EQUIPMENT,BOOK STORES
08/04/2018,ACCOMMODATION CLEANING AND REFURBISHMENT,AMAZON UK MARKETPLACE,32.00,CLEANING AND DOMESTIC SUPPLIES,BOOK STORES
08/04/2018,ACCOMMODATION CLEANING AND REFURBISHMENT,AMAZON UK MARKETPLACE,64.00,CLEANING AND DOMESTIC SUPPLIES,BOOK STORES
08/04/2018,PORTAGE SERVICE (SW),AMAZON UK MARKETPLACE,33.93,BOOKS,BOOK STORES
08/04/2018,DEMOCRATIC SERVICES TEAM,AMAZON EU,44.61,REFRESHMENT COSTS,DIRECT MARKETING-OTHER DIRECT MARKETERS/NOT ELSEW.
08/04/2018,HILLSIDE,WILKO RETAIL LIMIT,10.00,EQUIPMENT,HOUSEHOLD APPLIANCE STORES
09/04/2018,LOCAL ASSISTANCE SCHEME,WWW.JOHNLEWIS.COM,559.00,FURNITURE,DEPARTMENT STORES
09/04/2018,CENTRAL COMMUNICATIONS,WWW.PRIVATE-EYE.CO.UK,34.00,PUBLICITY,MISCELLANEOUS PUBLISHING AND PRINTING
09/04/2018,FIRE SERVICES IT,AMAZON UK MARKETPLACE,22.99,COMPUTER HARDWARE,BOOK STORES
09/04/2018,SOLD DAY TO DAY OPERATIONS,WWW.MARINESCENE.CO.UK,85.97,EQUIPMENT,MISCELLANEOUS AND SPECIALTY RETAIL STORES
09/04/2018,FAMILIES SPELTHORNE,TESCO STORES-2047,2.20,REFRESHMENT COSTS,"GROCERY STORES, SUPERMARKETS"
09/04/2018,WOODLANDS COMMUNITY HOME,SAINSBURYS SACAT 0686,75.05,EQUIPMENT,"GROCERY STORES, SUPERMARKETS"
09/04/2018,WOODLANDS COMMUNITY HOME,SAINSBURYS SACAT 0686,21.85,PURCHASE OF FOOD (RAW MATERIALS),"GROCERY STORES, SUPERMARKETS"
09/04/2018,SOLD DAY TO DAY OPERATIONS,HOMEBASE LTD 247,6.60,DAY TO DAY MAINTENANCE,"BUILDING MATERIALS, LUMBER STORES"
09/04/2018,WOODLANDS COMMUNITY HOME,TOOLSTATION LTD,17.74,EQUIPMENT,HARDWARE STORES
09/04/2018,WOODLANDS COMMUNITY HOME,WICKES,8.96,EQUIPMENT,HOME SUPPLY WAREHOUSE STORES
09/04/2018,WOODLANDS COMMUNITY HOME,AMAZON UK MARKETPLACE,9.95,EQUIPMENT,BOOK STORES
09/04/2018,TRANSPORT,AMAZON UK MARKETPLACE,7.66,STATIONERY,BOOK STORES
09/04/2018,FAIRCROFT COMMUNITY HOME,WWW.EVERYMAN.COM,56.65,EDUC VISITS/HOLS/CAMPS/TOYS,MOTION PICTURE THEATERS
09/04/2018,LIBERTAS COMMUNITY HOME,AMAZON EU,30.99,3RD PARTY PAYMENTS PRIVATE INDIV,DIRECT MARKETING-OTHER DIRECT MARKETERS/NOT ELSEW.
09/04/2018,KARIBU COMMUNITY HOME,WWW.CREALY.CO.UK,60.00,EDUC VISITS/HOLS/CAMPS/TOYS,"AMUSEMENT PARKS,CARNIVALS,CIRCUS,FORTUNE TELLERS"
09/04/2018,LIBERTAS COMMUNITY HOME,PAYPAL  DIGARTI,15.95,3RD PARTY PAYMENTS PRIVATE INDIV,"ARTIST SUPPLY STORES, CRAFT SHOPS"
09/04/2018,KARIBU COMMUNITY HOME,SAINSBURYS 0683,56.78,PURCHASE OF FOOD (RAW MATERIALS),"GROCERY STORES, SUPERMARKETS"
09/04/2018,CHMHS RAP TEAM,B & Q 1029,316.16,EDUC VISITS/HOLS/CAMPS/TOYS,"BUILDING MATERIALS, LUMBER STORES"
09/04/2018,TRANSPORT,WWW.PRINTEDPAPERPRODUC,46.56,STATIONERY,"OFFICE, SCHOOL SUPPLY, AND STATIONERY STORES"
09/04/2018,WAVERLEY CMHRS CARE,TRAVELODGE,150.10,FEES,TRAVELODGE
09/04/2018,LOWER MOLE COUNTRYSIDE PROJECT,ERNEST DOE / SONS,40.97,EQUIPMENT,MISC/AUTO/AIRCRAFT/FARM EQUIP  NOT ELSEWHERE CLASS
09/04/2018,KARIBU COMMUNITY HOME,BREWERS FAYRE 41013530,28.15,EDUC VISITS/HOLS/CAMPS/TOYS,"EATING PLACES, RESTAURANTS"
09/04/2018,SECTOR MANAGER,WWW.REXINTER.COM,"1,473.78",ITEMS PURCHASED FOR RE-SALE,"GIFT, CARD, NOVELTY AND SOUVENIR SHOPS"
09/04/2018,DOWNLANDS COUNTRYSIDE PROJECT,ABBEYGARDEN.COM,70.34,EQUIPMENT,LAWN AND GARDEN SUPPLY STORES
09/04/2018,REIGATE & BANSTEAD LOCAL CARE OP,WWW.ARGOS.CO.UK,162.94,EQUIPMENT,DISCOUNT STORES
09/04/2018,ACL CENTRAL EXPENDITURE,W P NOTCUTT LTD,507.10,EQUIPMENT,"BUILDING MATERIALS, LUMBER STORES"
09/04/2018,ACL CENTRAL EXPENDITURE,W P NOTCUTT LTD,493.14,EQUIPMENT,"BUILDING MATERIALS, LUMBER STORES"
09/04/2018,IMT CRITICAL ENVIRONMENTS,AMAZON UK MARKETPLACE,91.00,EQUIPMENT,BOOK STORES
09/04/2018,HILLSIDE,SAINSBURYS 0784,4.10,"CLOTHING, UNIFORM AND LAUNDRY","GROCERY STORES, SUPERMARKETS"
09/04/2018,HEAD OF SCHOOLS AND LEARNING,SOAS,300.00,STAFF TRAINING,"COLLEGES, UNIV, PRO SCHOOLS, JUNIOR COLLEGES"
09/04/2018,CHEYNE WALK COMMUNITY HOME,BRIGHTON,93.00,EDUC VISITS/HOLS/CAMPS/TOYS,TOURIST ATTRACTIONS AND EXHIBITS
09/04/2018,BURBANK COMMUNITY HOME,DVLA VEHICLE TAX,142.50,VEHICLE RUNNING COSTS,GOVERNMENT SERVICES-NOT ELSEWHERE CLASSIFIED
09/04/2018,MALLOW CRESCENT,TESCO STORE 2590,6.39,PURCHASE OF FOOD (RAW MATERIALS),"GROCERY STORES, SUPERMARKETS"
09/04/2018,MALLOW CRESCENT,TESCO STORE 2590,93.78,PURCHASE OF FOOD (RAW MATERIALS),"GROCERY STORES, SUPERMARKETS"
09/04/2018,TRANSPORT,AMAZON UK MARKETPLACE,52.26,EQUIPMENT,BOOK STORES
09/04/2018,EDUC CAT NORTH DISTRICT C OVERHEADS,WWW.RYMAN.CO.UK,224.91,EQUIPMENT,"OFFICE, SCHOOL SUPPLY, AND STATIONERY STORES"
09/04/2018,LANGDOWN STAFF COST,WWW.IKEA.COM,435.50,3RD PARTY PAYMENTS PRIVATE INDIV,"EQUIP, FURNITURE, HOME FURNSHNGS STRS (EXCPT APPL)"
09/04/2018,PE/CDT MAINTENANCE OVERHEADS,POTTERYCRAFTS LTD,711.36,ITEMS PURCHASED FOR RE-SALE,CRYSTAL AND GLASSWARE STORES
09/04/2018,PE/CDT MAINTENANCE OVERHEADS,POTTERYCRAFTS LTD,651.36,EQUIPMENT,CRYSTAL AND GLASSWARE STORES
09/04/2018,ACL CENTRAL EXPENDITURE,SHOECARE,34.00,DAY TO DAY MAINTENANCE,"HAT CLEANING SHOPS, SHOE REPAIR SHOPS, SHOE SHINE"
09/04/2018,DOWNLANDS COUNTRYSIDE PROJECT,FAIRALLS (BUILDERS ME,295.06,PURCHASE OF BUILDING MATERIALS,"BUILDING MATERIALS, LUMBER STORES"
09/04/2018,LIBERTAS COMMUNITY HOME,SAINSBURYS SACAT 0652,17.00,EQUIPMENT,"GROCERY STORES, SUPERMARKETS"
09/04/2018,LIBERTAS COMMUNITY HOME,SAINSBURYS SACAT 0652,17.48,PURCHASE OF FOOD (RAW MATERIALS),"GROCERY STORES, SUPERMARKETS"
09/04/2018,LIBERTAS COMMUNITY HOME,SAINSBURYS SACAT 0652,176.62,PURCHASE OF FOOD (RAW MATERIALS),"GROCERY STORES, SUPERMARKETS"
09/04/2018,SOLD DAY TO DAY OPERATIONS,AMAZON UK MARKETPLACE,63.58,EQUIPMENT,BOOK STORES
09/04/2018,FAMILIES SPELTHORNE,TESCO STORE 2047,3.29,REFRESHMENT COSTS,"GROCERY STORES, SUPERMARKETS"
09/04/2018,ARUNDEL,CAFFE NERO HEAD OFFICE,30.90,EDUC VISITS/HOLS/CAMPS/TOYS,"EATING PLACES, RESTAURANTS"
09/04/2018,HILLSIDE,LIDL UK,21.25,PURCHASE OF FOOD (RAW MATERIALS),"GROCERY STORES, SUPERMARKETS"
09/04/2018,PE/CDT MAINTENANCE OVERHEADS,SCREWFIX DIRECT,7.98,EQUIPMENT,"BUILDING MATERIALS, LUMBER STORES"
09/04/2018,QUADRANT COURT WOKING,CURRYS ONLINE,129.99,EQUIPMENT,ELECTRONIC SALES
09/04/2018,TRANSPORT,PAYPAL  SD FIRE,23.79,DAY TO DAY MAINTENANCE,"DURABLE GOODS, NOT ELSEWHERE CLASSIFIED"
09/04/2018,PE/CDT MAINTENANCE OVERHEADS,BEACON ELECTRIC(GUILDF,224.88,EQUIPMENT,ELECTRICAL PARTS AND EQUIPMENT
09/04/2018,SOLD DAY TO DAY OPERATIONS,HAMPSHIREFL,147.47,EQUIPMENT,"FABRIC, NEEDLEWORK, PIECE GOODS, AND SEWING STORES"
09/04/2018,ACL CENTRAL EXPENDITURE,AMAZON EU,39.90,EQUIPMENT,DIRECT MARKETING-OTHER DIRECT MARKETERS/NOT ELSEW.
09/04/2018,RODNEY HOUSE STAFF COST,AMAZON UK MARKETPLACE,104.40,STATIONERY,BOOK STORES
09/04/2018,RODNEY HOUSE STAFF COST,AMAZON UK MARKETPLACE,10.49,STATIONERY,BOOK STORES
09/04/2018,SCHOOL APPEALS,TESCO STORE 3324,38.40,REFRESHMENT COSTS,"GROCERY STORES, SUPERMARKETS"
09/04/2018,ACL CENTRAL EXPENDITURE,PAYPAL  COOKSONGOLD,398.46,EQUIPMENT,"PRECIOUS STONES AND METALS, WATCHES AND JEWELRY"
09/04/2018,ACL CENTRAL EXPENDITURE,AMAZON EU,6.58,EQUIPMENT,DIRECT MARKETING-OTHER DIRECT MARKETERS/NOT ELSEW.
09/04/2018,ACL CENTRAL EXPENDITURE,AMAZON EU,6.58,EQUIPMENT,DIRECT MARKETING-OTHER DIRECT MARKETERS/NOT ELSEW.
09/04/2018,PERFORMANCE TEAM,IPF,450.00,TRAINING EXPENSES EXTERNAL GENERAL,"ACCOUNTING, AUDITING AND BOOKKEEPING SERVICES"
09/04/2018,ACL CENTRAL EXPENDITURE,AMAZON EU,6.58,EQUIPMENT,DIRECT MARKETING-OTHER DIRECT MARKETERS/NOT ELSEW.
09/04/2018,ACL CENTRAL EXPENDITURE,AMAZON EU,6.58,EQUIPMENT,DIRECT MARKETING-OTHER DIRECT MARKETERS/NOT ELSEW.
09/04/2018,WAVERLEY CMHRS CARE,HMCTS-SURREY125,75.00,FEES,FINES
09/04/2018,LOWER MOLE COUNTRYSIDE PROJECT,WICKES,5.99,PURCHASE OF BUILDING MATERIALS,"BUILDING MATERIALS, LUMBER STORES"
09/04/2018,ARUNDEL,TESCO STORES 5999,48.96,REFRESHMENT COSTS,"GROCERY STORES, SUPERMARKETS"
09/04/2018,LOWER MOLE COUNTRYSIDE PROJECT,HALFORDS 0731,24.38,VEHICLE REPAIRS AND MAINTENANCE,BICYCLE SHOPS-SALES AND SERVICE
09/04/2018,SPEECH & LANGUAGE THERAPY,AMAZON UK MARKETPLACE,8.70,EDUC VISITS/HOLS/CAMPS/TOYS,BOOK STORES
09/04/2018,SPEECH & LANGUAGE THERAPY,AMAZON UK MARKETPLACE,133.62,EDUC VISITS/HOLS/CAMPS/TOYS,BOOK STORES
09/04/2018,FAIRCROFT COMMUNITY HOME,TESCO STORE 2812,130.99,PURCHASE OF FOOD (RAW MATERIALS),"GROCERY STORES, SUPERMARKETS"
09/04/2018,COVEHAM,AMAZON EU,19.98,EQUIPMENT,DIRECT MARKETING-OTHER DIRECT MARKETERS/NOT ELSEW.
09/04/2018,MALLOW CRESCENT,TESCO STORE 2590,47.31,PURCHASE OF FOOD (RAW MATERIALS),"GROCERY STORES, SUPERMARKETS"
09/04/2018,CHMHS RAP TEAM,TESCO STORE 2590,41.87,REFRESHMENT COSTS,"GROCERY STORES, SUPERMARKETS"
09/04/2018,MALLOW CRESCENT,SAINSBURYS TO YOU 0652,1.00,PURCHASE OF FOOD (RAW MATERIALS),"GROCERY STORES, SUPERMARKETS"
09/04/2018,MALLOW CRESCENT,SAINSBURYS TO YOU 0652,128.10,PURCHASE OF FOOD (RAW MATERIALS),"GROCERY STORES, SUPERMARKETS"
09/04/2018,COVEHAM,SAINSBURYS TO YOU 0687,162.58,REFRESHMENT COSTS,"GROCERY STORES, SUPERMARKETS"
09/04/2018,MALLOW CRESCENT,SAINSBURYS TO YOU 0652,33.20,PURCHASE OF FOOD (RAW MATERIALS),"GROCERY STORES, SUPERMARKETS"
09/04/2018,MALLOW CRESCENT,SAINSBURYS TO YOU 0652,80.80,PURCHASE OF FOOD (RAW MATERIALS),"GROCERY STORES, SUPERMARKETS"
09/04/2018,COVEHAM,SAINSBURYS TO YOU 0687,76.60,CLEANING MATERIALS,"GROCERY STORES, SUPERMARKETS"
09/04/2018,WOODLANDS COMMUNITY HOME,SAINSBURYS OPT 0487,47.25,PETROL/DIESEL ALL OFF BUSINESS,"FUEL DISPENSER, AUTOMATED"
09/04/2018,CHAIRMAN,AMAZON UK MARKETPLACE,17.60,STATIONERY,BOOK STORES
10/04/2018,LOCAL ASSISTANCE SCHEME,WWW.JOHNLEWIS.COM,628.00,FURNITURE,DEPARTMENT STORES
10/04/2018,LOCAL ASSISTANCE SCHEME,WWW.JOHNLEWIS.COM,284.00,FURNITURE,DEPARTMENT STORES
10/04/2018,LOCAL ASSISTANCE SCHEME,WWW.JOHNLEWIS.COM,39.95,FURNITURE,DEPARTMENT STORES
10/04/2018,LOCAL ASSISTANCE SCHEME,WWW.JOHNLEWIS.COM,429.00,FURNITURE,DEPARTMENT STORES
10/04/2018,NATIONAL TRADING STANDARDS SCAM TEAM,PREMIER INN,155.98,MISCELLANEOUS STAFF TRAVEL,PREMIER INN
10/04/2018,RUTH HOUSE,ASDA STORES 4823,116.50,EQUIPMENT,"GROCERY STORES, SUPERMARKETS"
10/04/2018,RUTH HOUSE,ASDA STORES 4823,36.00,EQUIPMENT,"GROCERY STORES, SUPERMARKETS"
10/04/2018,SOLD ESTATES MANAGEMENT,LAWN AND POWER LIMITED,299.99,EQUIPMENT,LAWN AND GARDEN SUPPLY STORES
10/04/2018,KARIBU COMMUNITY HOME,ODEON,34.95,EDUC VISITS/HOLS/CAMPS/TOYS,MOTION PICTURE THEATERS
10/04/2018,KARIBU COMMUNITY HOME,MCDONALDS,13.70,PURCHASE OF FOOD (RAW MATERIALS),FAST FOOD RESTAURANTS
10/04/2018,ACL CENTRAL EXPENDITURE,AMAZON UK MARKETPLACE,278.04,EQUIPMENT,BOOK STORES
10/04/2018,KARIBU COMMUNITY HOME,H&M,24.03,"CLOTHING, UNIFORM AND LAUNDRY",MEN'S AND WOMEN'S CLOTHING STORES
10/04/2018,ACL CENTRAL EXPENDITURE,AMAZON UK MARKETPLACE,109.99,EQUIPMENT,BOOK STORES
10/04/2018,HOLLAND CLOSE RESIDENTIAL HOME,AMAZON EU,5.90,EDUC VISITS/HOLS/CAMPS/TOYS,DIRECT MARKETING-OTHER DIRECT MARKETERS/NOT ELSEW.
10/04/2018,CHEYNE WALK COMMUNITY HOME,CURRYS ONLINE,599.99,FIXTURES AND FITTINGS,ELECTRONIC SALES
10/04/2018,BURBANK COMMUNITY HOME,SHELL OTTERSHW 842,3.30,REFRESHMENT COSTS,SERVICE STATIONS WITH OR WITHOUT ANCILLARY SERVICE
10/04/2018,KARIBU COMMUNITY HOME,MCDONALDS,12.50,EDUC VISITS/HOLS/CAMPS/TOYS,FAST FOOD RESTAURANTS
10/04/2018,FIRE SERVICES IT,AMAZON EU,176.90,COMPUTER HARDWARE,DIRECT MARKETING-OTHER DIRECT MARKETERS/NOT ELSEW.
10/04/2018,FAMILIES SPELTHORNE,TESCO STORES-2047,2.50,CLEANING MATERIALS,"GROCERY STORES, SUPERMARKETS"
10/04/2018,RECRUITMENT,POWTOON,619.35,FEES,COMPUTER SOFTWARE STORES
10/04/2018,SE CARE - LAC,PROVINCIAL COUNTY HOTE,55.00,INDEPENDENT LIVING PLACEMENTS,"BAR,LOUNGE,DISCO,NIGHTCLUB,TAVERN-ALCOHOLIC DRINKS"
10/04/2018,NE CARE - CP & COURT LAC,WWW.ELMBRIDGE.GOV.UK,189.00,OTHER COMMUNITY CARE VOL,GOVERNMENT SERVICES-NOT ELSEWHERE CLASSIFIED
10/04/2018,ACCESS AND PROGRESSION,ROYAL BOROUGH OF KINGS,244.80,FEES,GOVERNMENT SERVICES-NOT ELSEWHERE CLASSIFIED
10/04/2018,C&C DIRECTORATE SUPPORT,WWW.ICO.GOV.UK,35.00,SUBSCRIPTIONS,GOVERNMENT SERVICES-NOT ELSEWHERE CLASSIFIED
10/04/2018,WOODLANDS COMMUNITY HOME,SAINSBURYS 0686,39.00,EQUIPMENT,"GROCERY STORES, SUPERMARKETS"
10/04/2018,WOODLANDS COMMUNITY HOME,SAINSBURYS 0686,9.85,PURCHASE OF FOOD (RAW MATERIALS),"GROCERY STORES, SUPERMARKETS"
10/04/2018,WOODLANDS COMMUNITY HOME,SAINSBURYS 0686,162.91,PURCHASE OF FOOD (RAW MATERIALS),"GROCERY STORES, SUPERMARKETS"
10/04/2018,SOLD DAY TO DAY OPERATIONS,SAILBOATS.CO.UK,59.44,EQUIPMENT,BOAT DEALERS
10/04/2018,PROPERTY OPERATIONS TEAM,WICKES 260,53.54,PURCHASE OF BUILDING MATERIALS,HOME SUPPLY WAREHOUSE STORES
10/04/2018,VIRTUAL SCHOOL FOR LAC PUPIL PREMIUM,EB  INTEGRATED SUPPORT,50.00,SUBSISTENCE AND CONFERENCE EXPENSES,BUSINESS SERVICES-NOT ELSEWHERE CLASSIFIED
10/04/2018,LOCAL ASSISTANCE SCHEME,TESCO - SELLER_IST_1_2,219.99,FURNITURE,MISCELLANEOUS AND SPECIALTY RETAIL STORES
10/04/2018,VIRTUAL SERVICE MANAGER,AMAZON UK MARKETPLACE,39.00,FIXTURES AND FITTINGS,BOOK STORES
10/04/2018,RUTH HOUSE,AMAZON UK MARKETPLACE,3.03,EQUIPMENT,BOOK STORES
10/04/2018,LOCAL ASSISTANCE SCHEME,AMAZON UK MARKETPLACE,32.97,FURNITURE,BOOK STORES
10/04/2018,WOODLANDS COMMUNITY HOME,HOMEBASE LTD 084,23.40,DAY TO DAY MAINTENANCE,"BUILDING MATERIALS, LUMBER STORES"
10/04/2018,LOCAL ASSISTANCE SCHEME,TESCO - SELLER_IST_1_2,219.99,FURNITURE,MISCELLANEOUS AND SPECIALTY RETAIL STORES
10/04/2018,ACL CENTRAL EXPENDITURE,AMAZON UK MARKETPLACE,13.99,EQUIPMENT,BOOK STORES
10/04/2018,SOLD ESTATES MANAGEMENT,B & Q 1029,55.22,DAY TO DAY MAINTENANCE,"BUILDING MATERIALS, LUMBER STORES"
10/04/2018,TARGETED INTERVENTION,GARSONS GARDEN CENTRE,5.50,EDUC VISITS/HOLS/CAMPS/TOYS,FAST FOOD RESTAURANTS
10/04/2018,SW AREA SEN MANAGEMENT TEAM,AMAZON UK MARKETPLACE,39.99,EQUIPMENT,BOOK STORES
10/04/2018,SOLD ESTATES MANAGEMENT,AW CHAMPION LTD,159.01,DAY TO DAY MAINTENANCE,"BUILDING MATERIALS, LUMBER STORES"
10/04/2018,FAIRCROFT COMMUNITY HOME,IQ ORTHODONTICS LIMITE,42.00,EQUIPMENT,"DENTISTS, ORTHODONTISTS"
10/04/2018,LEGAL SUPPORT TEAM,MARKS&SPENCER PLC,30.50,REFRESHMENT COSTS,"GROCERY STORES, SUPERMARKETS"
10/04/2018,HOPE SERVICE - WEST,SAINSBURYS SACAT(4409),1.10,PURCHASE OF FOOD (RAW MATERIALS),"GROCERY STORES, SUPERMARKETS"
10/04/2018,HOPE SERVICE - WEST,SAINSBURYS SACAT 0683,52.10,PURCHASE OF FOOD (RAW MATERIALS),"GROCERY STORES, SUPERMARKETS"
10/04/2018,STRATEGIC DIRECTOR,VIRGIN TRAINS,131.60,MISCELLANEOUS STAFF TRAVEL,PASSENGER RAILWAYS
10/04/2018,HOPE SERVICE - WEST,AMAZON EU,41.90,CURRICULUM EQUIPMENT AND FURNITURE,DIRECT MARKETING-OTHER DIRECT MARKETERS/NOT ELSEW.
10/04/2018,SOLD DAY TO DAY OPERATIONS,AMAZON UK MARKETPLACE,23.59,EQUIPMENT,BOOK STORES
10/04/2018,HILLSIDE,SAINSBURYS 0675,68.46,PURCHASE OF FOOD (RAW MATERIALS),"GROCERY STORES, SUPERMARKETS"
10/04/2018,FAIRCROFT COMMUNITY HOME,CHESSINGTON WORLD,15.00,EDUC VISITS/HOLS/CAMPS/TOYS,"AMUSEMENT PARKS,CARNIVALS,CIRCUS,FORTUNE TELLERS"
10/04/2018,RBDM - GENERAL,STATIONERY OFFICE BOOK,63.00,EQUIPMENT,BOOK STORES
10/04/2018,ARUNDEL,ASDA SUPERSTORE,219.00,EQUIPMENT,"GROCERY STORES, SUPERMARKETS"
10/04/2018,ARUNDEL,ASDA SUPERSTORE,24.00,CLEANING MATERIALS,"GROCERY STORES, SUPERMARKETS"
10/04/2018,ACL CENTRAL EXPENDITURE,AMAZON UK MARKETPLACE,38.99,EQUIPMENT,BOOK STORES
10/04/2018,ACL CENTRAL EXPENDITURE,AMAZON UK MARKETPLACE,10.89,EQUIPMENT,BOOK STORES
10/04/2018,APPLEWOOD,AUTOGLASS,139.70,VEHICLE REPAIRS AND MAINTENANCE,"AUTOMOTIVE PARTS, ACCESSORIES STORES"
10/04/2018,ACL CENTRAL EXPENDITURE,PROOPSBROTH,66.40,EQUIPMENT,"GAME, TOY, AND HOBBY SHOPS"
10/04/2018,LEGAL EXPENSES CHILD ADULT EDUC TEAM,EYE NETWORK,402.00,LEGAL EXPENSES,ELECTRONIC SALES
10/04/2018,FAIRCROFT COMMUNITY HOME,TESCO STORE 2812,119.60,PURCHASE OF FOOD (RAW MATERIALS),"GROCERY STORES, SUPERMARKETS"
10/04/2018,SOLD CATERING,TESCO STORES,13.98,PURCHASE OF FOOD (RAW MATERIALS),"GROCERY STORES, SUPERMARKETS"
10/04/2018,LIBRARIES CENTRAL,AMAZON EU AMAZON.CO.UK,-4.75,FURNITURE,MISCELLANEOUS AND SPECIALTY RETAIL STORES
10/04/2018,LOCAL ASSISTANCE SCHEME,AMAZON EU,247.83,EQUIPMENT,DIRECT MARKETING-OTHER DIRECT MARKETERS/NOT ELSEW.
10/04/2018,WOODLANDS COMMUNITY HOME,NETFLIX.COM,7.99,EDUC VISITS/HOLS/CAMPS/TOYS,"CABLE, SATELLITE, OTHER PAY TELEVISION, RADIO SVCS"
11/04/2018,BURBANK COMMUNITY HOME,3C_ THE ATRIUM CAR PAR,4.90,MISCELLANEOUS STAFF TRAVEL,AUTOMOBILE PARKING LOTS AND GARAGES
11/04/2018,CHEYNE WALK COMMUNITY HOME,KAWAIISHOP,71.95,"CLOTHING, UNIFORM AND LAUNDRY",MEN'S AND WOMEN'S CLOTHING STORES
11/04/2018,NW NIL RECOURSE TO PUBLIC FUNDS CARE,PREMIER INN,579.00,INDEPENDENT LIVING PLACEMENTS,PREMIER INN
11/04/2018,NW NIL RECOURSE TO PUBLIC FUNDS CARE,THE WOKING HOTEL,931.28,INDEPENDENT LIVING PLACEMENTS,"LODGING-HOTELS,MOTELS,RESORTS-NOT CLASSIFIED"
11/04/2018,DEVELOPMENT TEAM,GITHUB.COM  6BH7W,31.26,COMPUTER SERVICES,"COMPUTERS, COMPUTER PERIPHERAL EQUIPMENT, SOFTWARE"
11/04/2018,NATIONAL TRADING STANDARDS SCAM TEAM,PREMIER INN,-155.98,MISCELLANEOUS STAFF TRAVEL,PREMIER INN
11/04/2018,CHEYNE WALK COMMUNITY HOME,WWW.MCMEXPOGROUP.COM,37.98,EDUC VISITS/HOLS/CAMPS/TOYS,MISCELLANEOUS AND SPECIALTY RETAIL STORES
11/04/2018,RUTH HOUSE,AMAZON UK MARKETPLACE,8.66,EDUC VISITS/HOLS/CAMPS/TOYS,BOOK STORES
11/04/2018,RUTH HOUSE,AMAZON EU,14.75,EQUIPMENT,DIRECT MARKETING-OTHER DIRECT MARKETERS/NOT ELSEW.
11/04/2018,RUTH HOUSE,AMAZON UK MARKETPLACE,16.16,EDUC VISITS/HOLS/CAMPS/TOYS,BOOK STORES
11/04/2018,LOWER MOLE COUNTRYSIDE PROJECT,SAFETYSHOP,16.62,EQUIPMENT,"DURABLE GOODS, NOT ELSEWHERE CLASSIFIED"
11/04/2018,COUNTY HALL,AMAZON UK MARKETPLACE,21.99,DAY TO DAY MAINTENANCE,BOOK STORES
11/04/2018,COUNTY HALL,AMAZON UK MARKETPLACE,21.99,DAY TO DAY MAINTENANCE,BOOK STORES
11/04/2018,COUNTY HALL,AMAZON UK MARKETPLACE,21.99,DAY TO DAY MAINTENANCE,BOOK STORES
11/04/2018,COUNTY HALL,AMAZON UK MARKETPLACE,21.99,DAY TO DAY MAINTENANCE,BOOK STORES
11/04/2018,BURBANK COMMUNITY HOME,TESCO STORES-2025,9.50,EQUIPMENT,"GROCERY STORES, SUPERMARKETS"
11/04/2018,COUNTY HALL,AMAZON UK MARKETPLACE,79.57,EQUIPMENT,BOOK STORES
11/04/2018,COUNTY HALL,AMAZON UK MARKETPLACE,21.99,DAY TO DAY MAINTENANCE,BOOK STORES
11/04/2018,COUNTY HALL,AMAZON UK MARKETPLACE,21.99,DAY TO DAY MAINTENANCE,BOOK STORES
11/04/2018,BURBANK COMMUNITY HOME,TESCO STORES-2025,22.54,REFRESHMENT COSTS,"GROCERY STORES, SUPERMARKETS"
11/04/2018,BURBANK COMMUNITY HOME,FRANKIE & BENNYS 5799,47.65,REFRESHMENT COSTS,"EATING PLACES, RESTAURANTS"
11/04/2018,FAIRCROFT COMMUNITY HOME,CREAMS,23.80,REFRESHMENT COSTS,"EATING PLACES, RESTAURANTS"
11/04/2018,CHEYNE WALK COMMUNITY HOME,THORPE PARK RESORT FIN,277.00,EDUC VISITS/HOLS/CAMPS/TOYS,TOURIST ATTRACTIONS AND EXHIBITS
11/04/2018,HEAD OF CHILDREN'S SERVICE,WWW.PAPAJOHNS.CO.U,87.96,REFRESHMENT COSTS,"EATING PLACES, RESTAURANTS"
11/04/2018,SOLD CATERING,ASDA SUPERSTORE,52.77,PURCHASE OF FOOD (RAW MATERIALS),"GROCERY STORES, SUPERMARKETS"
11/04/2018,COVEHAM,MARKS&SPENCER PLC,59.00,"CLOTHING, UNIFORM AND LAUNDRY","GROCERY STORES, SUPERMARKETS"
11/04/2018,RUTH HOUSE,AMAZON UK MARKETPLACE,17.47,EDUC VISITS/HOLS/CAMPS/TOYS,BOOK STORES
11/04/2018,TRANSPORT,AMAZON UK MARKETPLACE,27.35,EQUIPMENT,BOOK STORES
11/04/2018,RUTH HOUSE,AMAZON UK MARKETPLACE,10.45,EDUC VISITS/HOLS/CAMPS/TOYS,BOOK STORES
11/04/2018,FAMILIES ELMBRIDGE,SAINSBURYS LOC4116,12.20,REFRESHMENT COSTS,"GROCERY STORES, SUPERMARKETS"
11/04/2018,TRANSPORT,AMAZON UK MARKETPLACE,365.76,OPERATIONAL FIRE EQUIPMENT,BOOK STORES
11/04/2018,TRANSPORT,AMAZON UK MARKETPLACE,46.70,OPERATIONAL FIRE EQUIPMENT,BOOK STORES
11/04/2018,SW SECTION 17 CARE,SP   STYLISH SAUCE,99.99,OTHER COMMUNITY CARE VOL,"EQUIP, FURNITURE, HOME FURNSHNGS STRS (EXCPT APPL)"
11/04/2018,GODALMING YC,STARBUCKS,2.55,PURCHASE OF FOOD (RAW MATERIALS),FAST FOOD RESTAURANTS
11/04/2018,ARUNDEL,TESCO STORES 5999,136.78,REFRESHMENT COSTS,"GROCERY STORES, SUPERMARKETS"
11/04/2018,MGMT - ORBIS (MANAGEMENT TEAM & SUPPORT),CUSTOMER THERMOMETER,86.35,FEES,COMPUTER SOFTWARE STORES
11/04/2018,TRAVEL AND TRANSPORT GROUP,WESTMINSTER FORUM,276.00,TRAINING EXPENSES EXTERNAL GENERAL,"CONSULTING, MANAGEMENT, AND PUBLIC RELATIONS SVCS"
11/04/2018,TRANSPORT,KENDON PACKAGING GROUP,263.16,OPERATIONAL FIRE EQUIPMENT,"OFFICE, SCHOOL SUPPLY, AND STATIONERY STORES"
11/04/2018,CHMHS RAP TEAM,MICROSOFT  STORE,"2,999.00",EQUIPMENT,DIGITAL GOODS GAMES
11/04/2018,KARIBU COMMUNITY HOME,WEYMOUTH AND PORTLAND,4.00,NON-STAFF RELATED TRANSPORT COSTS,AUTOMOBILE PARKING LOTS AND GARAGES
11/04/2018,BURBANK COMMUNITY HOME,3C_ WOKING BOROUGH COU,4.20,EDUC VISITS/HOLS/CAMPS/TOYS,AUTOMOBILE PARKING LOTS AND GARAGES
11/04/2018,TRANSPORT,GEOGRAPHERS A-Z MAP CO,90.67,OPERATIONAL FIRE EQUIPMENT,"OFFICE, SCHOOL SUPPLY, AND STATIONERY STORES"
11/04/2018,ACL CENTRAL EXPENDITURE,RUDGWICK METALS LT,110.58,EQUIPMENT,"ROOFING AND SIDING, SHEET METAL WORK CONTRACTORS"
11/04/2018,BURBANK COMMUNITY HOME,WILKO WOKING,5.00,EQUIPMENT,HOUSEHOLD APPLIANCE STORES
11/04/2018,KARIBU COMMUNITY HOME,THE GALLEY BISTRO,42.00,PURCHASE OF FOOD (RAW MATERIALS),"BAR,LOUNGE,DISCO,NIGHTCLUB,TAVERN-ALCOHOLIC DRINKS"
11/04/2018,SW CARE - CP & COURT LAC,SURREY CC CARD PAY,10.00,OTHER COMMUNITY CARE VOL,COMPUTER NETWORK/INFORMATION SERVICES
11/04/2018,LOCAL DELIVERY GROUP,AMAZON UK MARKETPLACE,9.50,EQUIPMENT,BOOK STORES
11/04/2018,BURBANK COMMUNITY HOME,MAGIC CASTLE,18.50,EDUC VISITS/HOLS/CAMPS/TOYS,CHILD CARE SERVICES
11/04/2018,FAIRCROFT COMMUNITY HOME,LLOYDS AT SAINSBURYS,5.99,EQUIPMENT,"GROCERY STORES, SUPERMARKETS"
11/04/2018,DOWNLANDS COUNTRYSIDE PROJECT,MOLE COUNTRY STORES,212.16,EQUIPMENT,AGRICULTURAL COOPERATIVES
11/04/2018,CHMHS RAP TEAM,HTTP://WWW.GALATENT.CO,735.00,EDUC VISITS/HOLS/CAMPS/TOYS,MISCELLANEOUS AND SPECIALTY RETAIL STORES
11/04/2018,FAMILIES EPSOM AND EWELL,WWW.TRAVELCOVER.CO.UK,115.00,VEHICLE INSURANCE,"INSURANCE SALES,UNDERWRITING,AND PREMIUMS"
11/04/2018,FAIRMOUNT HOUSE LEATHERHEAD,SCREWFIX DIR.LTD,19.99,EQUIPMENT,"BUILDING MATERIALS, LUMBER STORES"
11/04/2018,ORBIS HR RELATIONSHIP TEAMS,WHITEPAPER.CO.UK,208.80,SUBSISTENCE AND CONFERENCE EXPENSES,COMPUTER SOFTWARE STORES
11/04/2018,SECTOR MANAGER,FAYE (UK) LTD,533.45,ITEMS PURCHASED FOR RE-SALE,MEN'S AND WOMEN'S CLOTHING STORES
11/04/2018,TRANSPORT,TOOLSTATION LTD,23.45,DAY TO DAY MAINTENANCE,HARDWARE STORES
11/04/2018,KARIBU COMMUNITY HOME,WEYMOUTH AND PORTLAND,6.00,NON-STAFF RELATED TRANSPORT COSTS,AUTOMOBILE PARKING LOTS AND GARAGES
11/04/2018,BRAMLEY LIBRARY,AMAZON UK MARKETPLACE,19.74,EQUIPMENT,BOOK STORES
11/04/2018,HOPE SERVICE - WEST,TEAMSPORT MITCHAM,120.00,EDUC VISITS/HOLS/CAMPS/TOYS,"AMUSEMENT PARKS,CARNIVALS,CIRCUS,FORTUNE TELLERS"
11/04/2018,FAMILIES TANDRIDGE,WWW.MCMEXPOGROUP.COM,448.27,EDUC VISITS/HOLS/CAMPS/TOYS,MISCELLANEOUS AND SPECIALTY RETAIL STORES
11/04/2018,NE EDUCATION PSYCHOLOGISTS,AMAZON UK MARKETPLACE,11.95,EQUIPMENT,BOOK STORES
11/04/2018,RUTH HOUSE,WWW.NISBETS.COM,434.25,FURNITURE,DIRECT MARKETING-CATALOG MERCHANTS
11/04/2018,SE CARE - NON-LAC CP & COURT,AMFBOWLING.CO.UK,24.56,OTHER COMMUNITY CARE VOL,"CLUBS-CNTRY,MBRSHIP(ATHLET,REC,SPRTS,PRIVATE GOLF"
11/04/2018,ACL CENTRAL EXPENDITURE,GUILDFORD CALOR CENTRE,51.25,EQUIPMENT,HOUSEHOLD APPLIANCE STORES
11/04/2018,BURBANK COMMUNITY HOME,COSTA COFFEE 43037185,13.75,REFRESHMENT COSTS,FAST FOOD RESTAURANTS
11/04/2018,FAMILIES EPSOM AND EWELL,DVLA VEHICLE TAX,93.25,VEHICLE RUNNING COSTS,GOVERNMENT SERVICES-NOT ELSEWHERE CLASSIFIED
11/04/2018,ACL CENTRAL EXPENDITURE,AMAZON EU,24.71,EQUIPMENT,DIRECT MARKETING-OTHER DIRECT MARKETERS/NOT ELSEW.
11/04/2018,IMT PRODUCTION APPLICATIONS TEAM,AMAZON UK MARKETPLACE,43.96,STATIONERY,BOOK STORES
11/04/2018,HOPE SERVICE - WEST,CAFE ROUGE,7.50,REFRESHMENT COSTS,"EATING PLACES, RESTAURANTS"
11/04/2018,CHMHS RAP TEAM,BUBBLEGUM BALLOONS,645.00,EDUC VISITS/HOLS/CAMPS/TOYS,MISCELLANEOUS HOUSE FURNISHING SPECIALTY SHOPS
11/04/2018,LOWER MOLE COUNTRYSIDE PROJECT,SCREWFIX DIRECT,84.99,EQUIPMENT,"BUILDING MATERIALS, LUMBER STORES"
11/04/2018,TRANSPORT,PAYPAL  PCW PAYPAL,299.99,EQUIPMENT,ELECTRONIC SALES
11/04/2018,ACL CENTRAL EXPENDITURE,MYLANDS,560.03,EQUIPMENT,"GLASS, PAINT, WALLPAPER STORES"
11/04/2018,TRANSPORT,PAYPAL  AO RETAIL,109.00,EQUIPMENT,ELECTRONIC SALES
11/04/2018,WOODLANDS COMMUNITY HOME,ARGOS RETAIL GROUP,57.99,EQUIPMENT,DISCOUNT STORES
11/04/2018,ACL CENTRAL EXPENDITURE,AMAZON UK MARKETPLACE,38.19,EQUIPMENT,BOOK STORES
11/04/2018,HILLSIDE,SAINSBURYS 0675,53.15,PURCHASE OF FOOD (RAW MATERIALS),"GROCERY STORES, SUPERMARKETS"
11/04/2018,ACL CENTRAL EXPENDITURE,AMAZON UK MARKETPLACE,43.80,EQUIPMENT,BOOK STORES
11/04/2018,ACL CENTRAL EXPENDITURE,AMAZON UK MARKETPLACE,12.73,EQUIPMENT,BOOK STORES
11/04/2018,ACL CENTRAL EXPENDITURE,AMAZON UK MARKETPLACE,66.40,EQUIPMENT,BOOK STORES
11/04/2018,RUTH HOUSE,AMAZON UK MARKETPLACE,12.35,EDUC VISITS/HOLS/CAMPS/TOYS,BOOK STORES
11/04/2018,IMT CRITICAL ENVIRONMENTS,MILK&MORE,23.90,REFRESHMENT COSTS,DAIRY PRODUCTS STORES
11/04/2018,HOPE SERVICE - WEST,SAINSBURYS SACAT(4409),5.50,NEWSPAPER AND PERIODICALS,"GROCERY STORES, SUPERMARKETS"
11/04/2018,EXTENDED HOPE,TESCO STORE 2590,114.91,PURCHASE OF FOOD (RAW MATERIALS),"GROCERY STORES, SUPERMARKETS"
11/04/2018,QUADRANT COURT WOKING,WWW.POSTURITE.CO.UK,83.94,EQUIPMENT,OFFICE AND COMMERCIAL FURNITURE
11/04/2018,SOUTH WEST OUTREACH,SAINSBURYS TO YOU 0652,26.31,PURCHASE OF FOOD (RAW MATERIALS),"GROCERY STORES, SUPERMARKETS"
11/04/2018,SOUTH WEST OUTREACH,SAINSBURYS TO YOU 0652,137.30,PURCHASE OF FOOD (RAW MATERIALS),"GROCERY STORES, SUPERMARKETS"
11/04/2018,CHEYNE WALK COMMUNITY HOME,TESCO-STORES 6647,200.53,EDUC VISITS/HOLS/CAMPS/TOYS,"GROCERY STORES, SUPERMARKETS"
11/04/2018,COUNTY HALL,AMAZON UK MARKETPLACE,23.00,DAY TO DAY MAINTENANCE,BOOK STORES
11/04/2018,LOCAL DELIVERY GROUP,AMAZON EU,15.70,EQUIPMENT,DIRECT MARKETING-OTHER DIRECT MARKETERS/NOT ELSEW.
11/04/2018,OCCUPATIONAL HEALTH,AMAZON EU,149.95,EQUIPMENT,DIRECT MARKETING-OTHER DIRECT MARKETERS/NOT ELSEW.
11/04/2018,ACL CENTRAL EXPENDITURE,AMZ PROOPS BROTHERS LT,-66.40,EQUIPMENT,MISCELLANEOUS AND SPECIALTY RETAIL STORES
11/04/2018,COUNTY HALL,AMAZON UK MARKETPLACE,218.00,EQUIPMENT,BOOK STORES
11/04/2018,ACL CENTRAL EXPENDITURE,AMAZON UK MARKETPLACE,4.98,EQUIPMENT,BOOK STORES
12/04/2018,DEPUTYSHIP TEAM,HAMPSHIRE COUNTY COUNC,-10.00,3RD PARTY PAYMENTS PRIVATE INDIV,GOVERNMENT SERVICES-NOT ELSEWHERE CLASSIFIED
12/04/2018,ASSET PLANNING - OPERATIONS,EDWARDS/PREC.PLUS,87.67,EQUIPMENT,HOUSEHOLD APPLIANCE STORES
12/04/2018,CHILDREN'S RIGHTS TEAM,W M MORRISONS,2.00,REFRESHMENT COSTS,"GROCERY STORES, SUPERMARKETS"
12/04/2018,CHILDREN'S RIGHTS TEAM,W M MORRISONS,37.96,REFRESHMENT COSTS,"GROCERY STORES, SUPERMARKETS"
12/04/2018,LIBRARIES CENTRAL,AMAZON UK MARKETPLACE,21.54,EQUIPMENT,BOOK STORES
12/04/2018,CHEYNE WALK COMMUNITY HOME,MCDONALDS,32.10,PURCHASE OF FOOD (RAW MATERIALS),FAST FOOD RESTAURANTS
12/04/2018,ACL CENTRAL EXPENDITURE,AMAZON UK MARKETPLACE,15.89,EQUIPMENT,BOOK STORES
12/04/2018,FAMILIES MOLE VALLEY,TESCO STORES 2812,6.25,PURCHASE OF FOOD (RAW MATERIALS),"GROCERY STORES, SUPERMARKETS"
12/04/2018,BURBANK COMMUNITY HOME,HARRY RAMSDENS LTD-BRI,86.14,REFRESHMENT COSTS,"EATING PLACES, RESTAURANTS"
12/04/2018,IMT CRITICAL ENVIRONMENTS,MILK&MORE,7.80,REFRESHMENT COSTS,DAIRY PRODUCTS STORES
12/04/2018,SOUTH WEST OUTREACH,SAINSBURYS SACAT 0652,9.00,PURCHASE OF FOOD (RAW MATERIALS),"GROCERY STORES, SUPERMARKETS"
12/04/2018,CHEYNE WALK COMMUNITY HOME,THORPE PARK RESORT,33.00,PURCHASE OF FOOD (RAW MATERIALS),"AMUSEMENT PARKS,CARNIVALS,CIRCUS,FORTUNE TELLERS"
12/04/2018,DEPUTYSHIP TEAM,HAMPSHIRE COUNTY COUNC,10.00,3RD PARTY PAYMENTS PRIVATE INDIV,GOVERNMENT SERVICES-NOT ELSEWHERE CLASSIFIED
12/04/2018,EXTENDED HOPE,SAINSBURYS SACAT 0652,7.00,CURRICULUM CONSUMABLES,"GROCERY STORES, SUPERMARKETS"
12/04/2018,EXTENDED HOPE,SAINSBURYS SACAT 0652,45.34,PURCHASE OF FOOD (RAW MATERIALS),"GROCERY STORES, SUPERMARKETS"
12/04/2018,ARUNDEL,ASDA SUPERSTORE,29.00,EQUIPMENT,"GROCERY STORES, SUPERMARKETS"
12/04/2018,ARUNDEL,ASDA SUPERSTORE,33.39,REFRESHMENT COSTS,"GROCERY STORES, SUPERMARKETS"
12/04/2018,SURREY ARTS PROJECT,AMAZON EU,32.70,STATIONERY,DIRECT MARKETING-OTHER DIRECT MARKETERS/NOT ELSEW.
12/04/2018,ROW VOLUNTEERS WEST                     ,AMAZON UK MARKETPLACE,7.99,PURCHASE OF BUILDING MATERIALS,BOOK STORES
12/04/2018,ROW VOLUNTEERS WEST                     ,AMAZON UK MARKETPLACE,99.75,EQUIPMENT,BOOK STORES
12/04/2018,ROW VOLUNTEERS WEST                     ,AMAZON UK MARKETPLACE,131.58,EQUIPMENT,BOOK STORES
12/04/2018,ACL CENTRAL EXPENDITURE,WWW.TOOLSTATION.COM,35.91,EQUIPMENT,HARDWARE STORES
12/04/2018,FAIRCROFT COMMUNITY HOME,HEADS UP BARBER,13.00,EQUIPMENT,BARBER AND BEAUTY SHOPS
12/04/2018,SOLD MANAGEMENT AND OVERHEADS,AMAZON UK MARKETPLACE,15.99,FURNITURE,BOOK STORES
12/04/2018,NATIONAL TRADING STANDARDS SCAM TEAM,AIRBNB,253.59,MISCELLANEOUS STAFF TRAVEL,"LODGING-HOTELS,MOTELS,RESORTS-NOT CLASSIFIED"
12/04/2018,FAMILIES ELMBRIDGE,SAINSBURYS 2663,8.80,PURCHASE OF FOOD (RAW MATERIALS),"GROCERY STORES, SUPERMARKETS"
12/04/2018,ACL CENTRAL EXPENDITURE,SOUTH WESTERN IND PLAS,226.53,EQUIPMENT,"INSULATION,MASONRY,PLSTER,STONEWRK,TILESET CNTRCTR"
12/04/2018,LINK MANAGEMENT TEAM,AMAZON UK MARKETPLACE,34.48,STATIONERY,BOOK STORES
12/04/2018,NE CARE - NON-LAC CP & COURT,TRAVELODGE,346.65,VENUE COSTS (INCLUDING HIRE OF ROOMS),TRAVELODGE
12/04/2018,NW CARE - LAC,GRO HM PASSPORT OFFICE,9.25,CHILDREN ACT SEC 17 PAYMENTS,GOVERNMENT SERVICES-NOT ELSEWHERE CLASSIFIED
12/04/2018,EDGE YC WEST EWELL,SELDONS LOCKSMITH,238.62,DAY TO DAY MAINTENANCE,"DETECTVE/PROTECTVE AGNCY,SECURITY SRVS, ARMOR CARS"
12/04/2018,NW CARE - LAC,SENSORY DIRECT,146.29,EQUIPMENT,"GAME, TOY, AND HOBBY SHOPS"
12/04/2018,SOLD ESTATES MANAGEMENT,SCREWFIX DIR. LTD,9.98,DAY TO DAY MAINTENANCE,"BUILDING MATERIALS, LUMBER STORES"
12/04/2018,ACL CENTRAL EXPENDITURE,SJASUPLIES,71.82,EQUIPMENT,"ORGANIZATIONS, CHARITABLE AND SOCIAL SERVICES"
12/04/2018,KARIBU COMMUNITY HOME,THE CLOCK TOWER CAKERY,17.90,PURCHASE OF FOOD (RAW MATERIALS),"EATING PLACES, RESTAURANTS"
12/04/2018,CHMHS RAP TEAM,MIXAM UK LTD,26.40,PUBLICITY,MISCELLANEOUS PUBLISHING AND PRINTING
12/04/2018,CHEYNE WALK COMMUNITY HOME,THORPE PARK RESORT,77.70,EDUC VISITS/HOLS/CAMPS/TOYS,RECREATION SERVICES (NOT ELSEWHERE CLASSIFIED)
12/04/2018,KARIBU COMMUNITY HOME,EAST DEVON DISTRICT CO,3.00,NON-STAFF RELATED TRANSPORT COSTS,AUTOMOBILE PARKING LOTS AND GARAGES
12/04/2018,ACL CENTRAL EXPENDITURE,AMAZON UK MARKETPLACE,69.99,EQUIPMENT,BOOK STORES
12/04/2018,CHEYNE WALK COMMUNITY HOME,WWW.IKEA.COM,279.00,FIXTURES AND FITTINGS,"EQUIP, FURNITURE, HOME FURNSHNGS STRS (EXCPT APPL)"
12/04/2018,CENTRAL COMMUNICATIONS,GOOGLE  ADWS2060179426,500.00,PUBLICITY,DIRECT MARKETING-CONTINUITY/SUBSCRIPTION MERCHANTS
12/04/2018,BURBANK COMMUNITY HOME,CO-OP GROUP 500302,5.59,PURCHASE OF FOOD (RAW MATERIALS),"GROCERY STORES, SUPERMARKETS"
12/04/2018,BURBANK COMMUNITY HOME,MIND WOKING,5.50,"CLOTHING, UNIFORM AND LAUNDRY","ORGANIZATIONS, CHARITABLE AND SOCIAL SERVICES"
12/04/2018,TRANSPORT,PAYPAL  BIMI LTD,440.00,FURNITURE,DEPARTMENT STORES
12/04/2018,TRANSPORT,PAYPAL  YOUR HOME,13.99,EQUIPMENT,HARDWARE STORES
12/04/2018,BURBANK COMMUNITY HOME,BHCC-PAYPHONEPARKING,16.10,EDUC VISITS/HOLS/CAMPS/TOYS,AUTOMOBILE PARKING LOTS AND GARAGES
12/04/2018,SE EDUCATION PSYCHOLOGISTS,AMAZON UK MARKETPLACE,4.18,EQUIPMENT,BOOK STORES
12/04/2018,NW CARE - LAC,WWW.FREEDOM-LEISURE.CO,27.93,CHILDREN ACT SEC 17 PAYMENTS,RECREATION SERVICES (NOT ELSEWHERE CLASSIFIED)
12/04/2018,CHEYNE WALK COMMUNITY HOME,THORPE PARK /ENT/,110.00,EDUC VISITS/HOLS/CAMPS/TOYS,"AMUSEMENT PARKS,CARNIVALS,CIRCUS,FORTUNE TELLERS"
12/04/2018,WEST CWD LAC CARE,CUMBRIA COUNTY COU,32.50,FEES,INFORMATION RETRIEVAL SERVICES
12/04/2018,SW CARE - NON-LAC CP & COURT,SURREY CC CARD PAY,11.00,OTHER COMMUNITY CARE VOL,COMPUTER NETWORK/INFORMATION SERVICES
12/04/2018,CHEYNE WALK COMMUNITY HOME,PICSOLVE INTERNATIONAL,30.00,EDUC VISITS/HOLS/CAMPS/TOYS,PHOTOGRAPHIC STUDIOS
12/04/2018,HILLSIDE,SAINSBURYS 0675,67.35,PURCHASE OF FOOD (RAW MATERIALS),"GROCERY STORES, SUPERMARKETS"
12/04/2018,HILLSIDE,SAINSBURYS 0675,7.20,PURCHASE OF FOOD (RAW MATERIALS),"GROCERY STORES, SUPERMARKETS"
12/04/2018,ACL CENTRAL EXPENDITURE,WIX.COM,111.75,PUBLICITY,DIGITAL GOODS SOFTWARE APPLICATIONS
12/04/2018,MASH,AMAZON UK MARKETPLACE,23.82,EQUIPMENT,BOOK STORES
12/04/2018,FIRE SERVICES IT,AMAZON UK MARKETPLACE,11.98,COMPUTER HARDWARE,BOOK STORES
12/04/2018,MASH,AMAZON EU,18.98,PURCHASE OF FOOD (RAW MATERIALS),DIRECT MARKETING-OTHER DIRECT MARKETERS/NOT ELSEW.
12/04/2018,HOPE SERVICE - WEST,SAINSBURYS SACAT(4409),2.25,PURCHASE OF FOOD (RAW MATERIALS),"GROCERY STORES, SUPERMARKETS"
12/04/2018,MASH,AMAZON EU,96.70,PURCHASE OF FOOD (RAW MATERIALS),DIRECT MARKETING-OTHER DIRECT MARKETERS/NOT ELSEW.
12/04/2018,MASH,AMAZON EU,37.96,PURCHASE OF FOOD (RAW MATERIALS),DIRECT MARKETING-OTHER DIRECT MARKETERS/NOT ELSEW.
12/04/2018,ACL CENTRAL EXPENDITURE,AMAZON UK MARKETPLACE,23.58,EQUIPMENT,BOOK STORES
12/04/2018,ACL CENTRAL EXPENDITURE,AMAZON EU,13.61,EQUIPMENT,DIRECT MARKETING-OTHER DIRECT MARKETERS/NOT ELSEW.
12/04/2018,PERMANENTLY SURPLUS LAND,SETON,160.32,EQUIPMENT,"DURABLE GOODS, NOT ELSEWHERE CLASSIFIED"
12/04/2018,ACL CENTRAL EXPENDITURE,AMAZON UK MARKETPLACE,33.50,EQUIPMENT,BOOK STORES
12/04/2018,HOPE SERVICE - WEST,CO-OP GROUP FOOD,1.54,REFRESHMENT COSTS,"GROCERY STORES, SUPERMARKETS"
12/04/2018,FAIRCROFT COMMUNITY HOME,SAINSBURYS 0687,66.05,PURCHASE OF FOOD (RAW MATERIALS),"GROCERY STORES, SUPERMARKETS"
12/04/2018,COUNTY HALL,THERAMPPEOPLE,174.00,ADAPTATIONS,"DURABLE GOODS, NOT ELSEWHERE CLASSIFIED"
12/04/2018,CHEYNE WALK COMMUNITY HOME,TESCO-STORES 6647,84.90,EQUIPMENT,"GROCERY STORES, SUPERMARKETS"
12/04/2018,ACL CENTRAL EXPENDITURE,TESCO STORE 2160,171.83,REFRESHMENT COSTS,"GROCERY STORES, SUPERMARKETS"
12/04/2018,CHILDREN'S RIGHTS TEAM,SAINSBURYS TO YOU 0683,51.00,REFRESHMENT COSTS,"GROCERY STORES, SUPERMARKETS"
12/04/2018,SOLD DAY TO DAY OPERATIONS,AMAZON UK MARKETPLACE,15.98,EQUIPMENT,BOOK STORES
12/04/2018,LOCAL DELIVERY GROUP,AMAZON EU,19.99,EQUIPMENT,DIRECT MARKETING-OTHER DIRECT MARKETERS/NOT ELSEW.
12/04/2018,ACL CENTRAL EXPENDITURE,TESCO STORE 2160,-2.00,REFRESHMENT COSTS,"GROCERY STORES, SUPERMARKETS"
12/04/2018,NW NIL RECOURSE TO PUBLIC FUNDS CARE,TRAVELODGE,-319.00,INDEPENDENT LIVING PLACEMENTS,TRAVELODGE
12/04/2018,CSF AN HUB,WWW.FRONTLINECLUB.COM,-165.00,STAFF TRAINING,"LODGING-HOTELS,MOTELS,RESORTS-NOT CLASSIFIED"
13/04/2018,FOSTERING SERVICE CENTRAL COSTS,WWW.CORAM.ORG.UK,93.65,BOOKS,"ORGANIZATIONS, CHARITABLE AND SOCIAL SERVICES"
13/04/2018,IMT MODERN WORKER,MSFT  <E01005JOBT>,242.01,COMPUTER SERVICES,"COMPUTERS, COMPUTER PERIPHERAL EQUIPMENT, SOFTWARE"
13/04/2018,TRANSPORT,AMAZON UK MARKETPLACE,21.00,OPERATIONAL FIRE EQUIPMENT,BOOK STORES
13/04/2018,SOLD DAY TO DAY OPERATIONS,AMAZON UK MARKETPLACE,8.22,EQUIPMENT,BOOK STORES
13/04/2018,KARIBU COMMUNITY HOME,ARGOS KILN LANE IN,20.99,EQUIPMENT,DISCOUNT STORES
13/04/2018,KARIBU COMMUNITY HOME,ARGOS KILN LANE IN,21.97,EQUIPMENT,DISCOUNT STORES
13/04/2018,RUTH HOUSE,BEECH MOUNT EXECUTIVE,15.45,REFRESHMENT COSTS,"LODGING-HOTELS,MOTELS,RESORTS-NOT CLASSIFIED"
13/04/2018,CHEYNE WALK COMMUNITY HOME,TROWELL S/W BK,16.07,REFRESHMENT COSTS,"EATING PLACES, RESTAURANTS"
13/04/2018,KARIBU COMMUNITY HOME,CO-OP GROUP 310385,5.48,EDUC VISITS/HOLS/CAMPS/TOYS,"GROCERY STORES, SUPERMARKETS"
13/04/2018,CHEYNE WALK COMMUNITY HOME,ART.COM/ALLPOSTERS.COM,14.44,EQUIPMENT,MISCELLANEOUS AND SPECIALTY RETAIL STORES
13/04/2018,KARIBU COMMUNITY HOME,MCDONALDS,14.59,PURCHASE OF FOOD (RAW MATERIALS),FAST FOOD RESTAURANTS
13/04/2018,RUTH HOUSE,MAYFORD MOTORS,300.00,HIRE OF VEHICLES,"AUTO & TRUCK DLRS-SALES,SVC, REPRS,PRTS, & LEASING"
13/04/2018,SURREY WASTE PARTNERSHIP,AMAZON UK MARKETPLACE,9.98,EQUIPMENT,BOOK STORES
13/04/2018,SOLD DAY TO DAY OPERATIONS,AMAZON UK MARKETPLACE,14.95,EQUIPMENT,BOOK STORES
13/04/2018,KARIBU COMMUNITY HOME,ODEON/BOOKIT,36.50,EDUC VISITS/HOLS/CAMPS/TOYS,MOTION PICTURE THEATERS
13/04/2018,RUTH HOUSE,SJASUPLIES,65.80,EQUIPMENT,"ORGANIZATIONS, CHARITABLE AND SOCIAL SERVICES"
13/04/2018,ROW VOLUNTEERS WEST                     ,AMAZON UK MARKETPLACE,31.80,EQUIPMENT,BOOK STORES
13/04/2018,RUTH HOUSE,ISHOP,267.84,EQUIPMENT,ORTHOPEDIC GOODS-ARTIFICIAL LIMB STORES
13/04/2018,LOCAL ASSISTANCE SCHEME,WWW.JOHNLEWIS.COM,175.00,FURNITURE,DEPARTMENT STORES
13/04/2018,ARUNDEL,TESCO STORES 5999,122.70,REFRESHMENT COSTS,"GROCERY STORES, SUPERMARKETS"
13/04/2018,COVEHAM,AMAZON UK MARKETPLACE,42.72,EQUIPMENT,BOOK STORES
13/04/2018,IMT MODERN WORKER,MSFT  <E01005JSKM>,409.24,COMPUTER SERVICES,"COMPUTERS, COMPUTER PERIPHERAL EQUIPMENT, SOFTWARE"
13/04/2018,LINK MANAGEMENT TEAM,AMAZON UK MARKETPLACE,2.29,STATIONERY,BOOK STORES
13/04/2018,SOLD DAY TO DAY OPERATIONS,CARD FACTORY,34.43,EQUIPMENT,"GIFT, CARD, NOVELTY AND SOUVENIR SHOPS"
13/04/2018,SOLD DAY TO DAY OPERATIONS,SAINSBURYS SACAT 0517,20.75,EQUIPMENT,"GROCERY STORES, SUPERMARKETS"
13/04/2018,COUNTY HALL,HOMEBASE LTD 127,10.05,DAY TO DAY MAINTENANCE,"BUILDING MATERIALS, LUMBER STORES"
13/04/2018,SOLD CONFRENCE,ANGLO AMERICAN BOO,100.64,CURRICULUM CONSUMABLES,BOOK STORES
13/04/2018,TRAINING LEGAL SERVICES,EB  39 ESSEX CHAMBERS-,60.00,TRAINING EXPENSES EXTERNAL GENERAL,BUSINESS SERVICES-NOT ELSEWHERE CLASSIFIED
13/04/2018,SOLD DAY TO DAY OPERATIONS,POUNDLAND,6.60,EQUIPMENT,DISCOUNT STORES
13/04/2018,COVEHAM,AMAZON UK MARKETPLACE,1.94,EQUIPMENT,BOOK STORES
13/04/2018,SE CARE - CP & COURT LAC,SURREY CC CARD PAY,31.00,CHILDREN ACT SEC 17 PAYMENTS,COMPUTER NETWORK/INFORMATION SERVICES
13/04/2018,ACL CENTRAL EXPENDITURE,AMAZON PRIME,7.99,EQUIPMENT,DIRECT MARKETING-CONTINUITY/SUBSCRIPTION MERCHANTS
13/04/2018,LOCAL ASSISTANCE SCHEME,WWW.JOHNLEWIS.COM,254.00,FURNITURE,DEPARTMENT STORES
13/04/2018,WOODLANDS COMMUNITY HOME,SAINSBURYS 0686,25.00,EQUIPMENT,"GROCERY STORES, SUPERMARKETS"
13/04/2018,WOODLANDS COMMUNITY HOME,SAINSBURYS 0686,7.00,CLEANING MATERIALS,"GROCERY STORES, SUPERMARKETS"
13/04/2018,BURBANK COMMUNITY HOME,EPSOM AND EWELL PARKIN,2.60,EDUC VISITS/HOLS/CAMPS/TOYS,AUTOMOBILE PARKING LOTS AND GARAGES
13/04/2018,HOPE SERVICE - WEST,SAINSBURYS SACAT 0683,48.05,PURCHASE OF FOOD (RAW MATERIALS),"GROCERY STORES, SUPERMARKETS"
13/04/2018,BURBANK COMMUNITY HOME,EPSOM AND EWELL PARKIN,2.60,EDUC VISITS/HOLS/CAMPS/TOYS,AUTOMOBILE PARKING LOTS AND GARAGES
13/04/2018,ACL CENTRAL EXPENDITURE,WWW.TIRANTI.CO.UK,103.69,EQUIPMENT,"ARTIST SUPPLY STORES, CRAFT SHOPS"
13/04/2018,RUTH HOUSE,G J HONOUR,189.69,PURCHASE OF FOOD (RAW MATERIALS),"MISC FOOD STORE-CONVENIENCE,MRKT,SPLTY,VENDNG MACS"
13/04/2018,FAMILIES MOLE VALLEY,TESCO STORES 5371,31.10,PURCHASE OF FOOD (RAW MATERIALS),"GROCERY STORES, SUPERMARKETS"
13/04/2018,TRANSPORT,TAIL LIFT SERVICES (ST,363.60,VEHICLE REPAIRS AND MAINTENANCE,AUTOMOTIVE BODY REPAIR SHOPS
13/04/2018,TRANSPORT DEVELOPMENT CONTROL,AMAZON UK MARKETPLACE,37.20,COMPUTER HARDWARE,BOOK STORES
13/04/2018,HOPE SERVICE - WEST,MARWELL WILDLIFE,50.99,EDUC VISITS/HOLS/CAMPS/TOYS,TOURIST ATTRACTIONS AND EXHIBITS
13/04/2018,ACL CENTRAL EXPENDITURE,SP   PHOTOSYMBOLS LTD,302.40,PUBLICITY,COMPUTER SOFTWARE STORES
13/04/2018,BURBANK COMMUNITY HOME,TICKETMASTER UK,37.15,EDUC VISITS/HOLS/CAMPS/TOYS,"THEATRICAL PRODUCERS(EXCL MOTION PIX),TICKET AGNCY"
13/04/2018,ORBIS HR PROGRAMME AND PERFORMANCE,AMAZON UK MARKETPLACE,29.70,EQUIPMENT,BOOK STORES
13/04/2018,CLOSED LANDFILL,STATIONERY OFFICE BOOK,9.00,EQUIPMENT,BOOK STORES
13/04/2018,SOLD CATERING,SAINSBURYS SACAT 0680,3.00,PURCHASE OF FOOD (RAW MATERIALS),"GROCERY STORES, SUPERMARKETS"
13/04/2018,HILLSIDE,SAINSBURYS 0675,27.25,PURCHASE OF FOOD (RAW MATERIALS),"GROCERY STORES, SUPERMARKETS"
13/04/2018,HILLSIDE,SAINSBURYS 0675,4.40,PURCHASE OF FOOD (RAW MATERIALS),"GROCERY STORES, SUPERMARKETS"
13/04/2018,SOLD ESTATES MANAGEMENT,WWW.CABP.CO.UK,15.95,"CLOTHING, UNIFORM AND LAUNDRY","BUILDING MATERIALS, LUMBER STORES"
13/04/2018,LIBERTAS COMMUNITY HOME,SAINSBURYS SACAT 0652,18.60,PURCHASE OF FOOD (RAW MATERIALS),"GROCERY STORES, SUPERMARKETS"
13/04/2018,LIBERTAS COMMUNITY HOME,SAINSBURYS SACAT 0652,10.35,EQUIPMENT,"GROCERY STORES, SUPERMARKETS"
13/04/2018,LIBERTAS COMMUNITY HOME,SAINSBURYS SACAT 0652,124.62,PURCHASE OF FOOD (RAW MATERIALS),"GROCERY STORES, SUPERMARKETS"
13/04/2018,HOLLAND CLOSE RESIDENTIAL HOME,TESCO STORES 5601,50.91,PURCHASE OF FOOD (RAW MATERIALS),"GROCERY STORES, SUPERMARKETS"
13/04/2018,HILLSIDE,TESCO STORE 3149,261.72,PURCHASE OF FOOD (RAW MATERIALS),"GROCERY STORES, SUPERMARKETS"
13/04/2018,SOLD ESTATES MANAGEMENT,SCREWFIX DIRECT,9.99,DAY TO DAY MAINTENANCE,"BUILDING MATERIALS, LUMBER STORES"
13/04/2018,ACL CENTRAL EXPENDITURE,DIGITAL ID,16.68,PRINTING,"COMPUTERS, COMPUTER PERIPHERAL EQUIPMENT, SOFTWARE"
13/04/2018,RUTH HOUSE,MAYFORD MOTORS,60.00,HIRE OF VEHICLES,"AUTO & TRUCK DLRS-SALES,SVC, REPRS,PRTS, & LEASING"
13/04/2018,RUTH HOUSE,SAINSBURYS TO YOU 0686,56.10,PURCHASE OF FOOD (RAW MATERIALS),"GROCERY STORES, SUPERMARKETS"
13/04/2018,RUTH HOUSE,SAINSBURYS TO YOU 0686,537.80,PURCHASE OF FOOD (RAW MATERIALS),"GROCERY STORES, SUPERMARKETS"
13/04/2018,TRANSPORT,AMAZON EU,167.93,OPERATIONAL FIRE EQUIPMENT,DIRECT MARKETING-OTHER DIRECT MARKETERS/NOT ELSEW.
13/04/2018,WOODLANDS COMMUNITY HOME,SAINSBURYS TO YOU 0686,6.05,PURCHASE OF FOOD (RAW MATERIALS),"GROCERY STORES, SUPERMARKETS"
13/04/2018,WOODLANDS COMMUNITY HOME,SAINSBURYS TO YOU 0686,56.00,PURCHASE OF FOOD (RAW MATERIALS),"GROCERY STORES, SUPERMARKETS"
13/04/2018,APPLEWOOD,ASDA GROCERIES ONLINE,169.75,PURCHASE OF FOOD (RAW MATERIALS),"GROCERY STORES, SUPERMARKETS"
13/04/2018,ARUNDEL,TESCO STORE 3539,-1.38,REFRESHMENT COSTS,"GROCERY STORES, SUPERMARKETS"
13/04/2018,DOWNLANDS COUNTRYSIDE PROJECT,AMAZON EU,245.40,EQUIPMENT,DIRECT MARKETING-OTHER DIRECT MARKETERS/NOT ELSEW.
13/04/2018,APPLEWOOD,ASDA GROCERIES ONLINE,-.51,PURCHASE OF FOOD (RAW MATERIALS),"GROCERY STORES, SUPERMARKETS"
13/04/2018,ROW VOLUNTEERS WEST                     ,AMAZON UK MARKETPLACE,41.10,EQUIPMENT,BOOK STORES
13/04/2018,COVEHAM,AMAZON UK MARKETPLACE,11.60,EQUIPMENT,BOOK STORES
14/04/2018,SOLD DAY TO DAY OPERATIONS,AMAZON UK MARKETPLACE,5.84,EQUIPMENT,BOOK STORES
14/04/2018,RUTH HOUSE,WELCOME BREAK,11.13,EDUC VISITS/HOLS/CAMPS/TOYS,"MISC FOOD STORE-CONVENIENCE,MRKT,SPLTY,VENDNG MACS"
14/04/2018,LOCAL ASSISTANCE SCHEME,WWW.JOHNLEWIS.COM,202.00,FURNITURE,DEPARTMENT STORES
14/04/2018,WOODLANDS COMMUNITY HOME,MEIS KITCHEN,27.70,PURCHASE OF FOOD (RAW MATERIALS),FAST FOOD RESTAURANTS
14/04/2018,WOODLANDS COMMUNITY HOME,3C_ THE ATRIUM CAR PAR,2.20,NON-STAFF RELATED TRANSPORT COSTS,AUTOMOBILE PARKING LOTS AND GARAGES
14/04/2018,WOODLANDS COMMUNITY HOME,3C_ THE ATRIUM CAR PAR,2.20,NON-STAFF RELATED TRANSPORT COSTS,AUTOMOBILE PARKING LOTS AND GARAGES
14/04/2018,SOLD DAY TO DAY OPERATIONS,AMAZON UK MARKETPLACE,14.34,EQUIPMENT,BOOK STORES
14/04/2018,HILLSIDE,SAINSBURYS SACAT 0680,12.00,PURCHASE OF FOOD (RAW MATERIALS),"GROCERY STORES, SUPERMARKETS"
14/04/2018,HILLSIDE,SAINSBURYS SACAT 0680,2.20,PURCHASE OF FOOD (RAW MATERIALS),"GROCERY STORES, SUPERMARKETS"
14/04/2018,NW CARE - NON-LAC CP & COURT,NATIONAL EXPRESS LIMIT,74.70,NON-STAFF RELATED TRANSPORT COSTS,BUS LINES
14/04/2018,RUTH HOUSE,AMAZON UK MARKETPLACE,83.88,"CLOTHING, UNIFORM AND LAUNDRY",BOOK STORES
14/04/2018,DITTONS LIBRARY,AMAZON UK MARKETPLACE,8.75,REFRESHMENT COSTS,BOOK STORES
14/04/2018,RUTH HOUSE,AMAZON UK MARKETPLACE,53.92,"CLOTHING, UNIFORM AND LAUNDRY",BOOK STORES
14/04/2018,DITTONS LIBRARY,AMAZON EU,21.41,REFRESHMENT COSTS,DIRECT MARKETING-OTHER DIRECT MARKETERS/NOT ELSEW.
14/04/2018,COVEHAM,AMAZON UK MARKETPLACE,3.51,EDUC VISITS/HOLS/CAMPS/TOYS,BOOK STORES
14/04/2018,SOLD CONFRENCE,ASDA SUPERSTORE,40.00,CURRICULUM CONSUMABLES,"GROCERY STORES, SUPERMARKETS"
14/04/2018,"SE REF, ASS & INT SERVICE - HUB 1",TRAVELODGE,165.00,OTHER COMMUNITY CARE PRIV,TRAVELODGE
14/04/2018,WOODLANDS COMMUNITY HOME,VUE BSL-ATM,49.16,EDUC VISITS/HOLS/CAMPS/TOYS,MOTION PICTURE THEATERS
14/04/2018,WOODLANDS COMMUNITY HOME,SAINSBURYS LOC (4898),7.10,PURCHASE OF FOOD (RAW MATERIALS),"GROCERY STORES, SUPERMARKETS"
14/04/2018,RUTH HOUSE,AMAZON UK MARKETPLACE,13.48,EDUC VISITS/HOLS/CAMPS/TOYS,BOOK STORES
14/04/2018,RUTH HOUSE,QUAYSIDE CAFE,15.45,EDUC VISITS/HOLS/CAMPS/TOYS,FAST FOOD RESTAURANTS
14/04/2018,KARIBU COMMUNITY HOME,WILKO RETAIL LIMIT,116.20,EQUIPMENT,HOUSEHOLD APPLIANCE STORES
14/04/2018,KARIBU COMMUNITY HOME,STARBUCKS,10.95,PURCHASE OF FOOD (RAW MATERIALS),"EATING PLACES, RESTAURANTS"
14/04/2018,KARIBU COMMUNITY HOME,WAITROSE 104,41.82,PURCHASE OF FOOD (RAW MATERIALS),"GROCERY STORES, SUPERMARKETS"
14/04/2018,RUTH HOUSE,IZ  BIG HERITAGE,7.50,EDUC VISITS/HOLS/CAMPS/TOYS,OTHER SERVICES (NOT ELSEWHERE CLASSIFIED)
14/04/2018,KARIBU COMMUNITY HOME,SUPERDRUG STORES PLC,9.03,EQUIPMENT,"DRUG STORES, PHARMACIES"
14/04/2018,BURBANK COMMUNITY HOME,3C_ WOKING BOROUGH COU,2.80,MISCELLANEOUS STAFF TRAVEL,AUTOMOBILE PARKING LOTS AND GARAGES
14/04/2018,BURBANK COMMUNITY HOME,WATERSTONES,24.03,3RD PARTY PAYMENTS PRIVATE INDIV,BOOK STORES
14/04/2018,HILLSIDE,SAINSBURYS SACAT 0784,9.60,PURCHASE OF FOOD (RAW MATERIALS),"GROCERY STORES, SUPERMARKETS"
14/04/2018,BURBANK COMMUNITY HOME,GREGGS PLC,7.05,PURCHASE OF FOOD (RAW MATERIALS),"EATING PLACES, RESTAURANTS"
14/04/2018,BURBANK COMMUNITY HOME,SPORTSDIRECT 174,6.49,"CLOTHING, UNIFORM AND LAUNDRY",SPORTING GOODS STORES
14/04/2018,BURBANK COMMUNITY HOME,BOOTS 2142,1.45,PURCHASE OF FOOD (RAW MATERIALS),"DRUG STORES, PHARMACIES"
14/04/2018,HOLLAND CLOSE RESIDENTIAL HOME,TESCO-STORES 6647,181.16,PURCHASE OF FOOD (RAW MATERIALS),"GROCERY STORES, SUPERMARKETS"
14/04/2018,MASH,AMZ AMAZON.CO.UK,-18.98,PURCHASE OF FOOD (RAW MATERIALS),DIRECT MARKETING-OTHER DIRECT MARKETERS/NOT ELSEW.
15/04/2018,HOLLAND CLOSE RESIDENTIAL HOME,PRODUCT SUPPORT AG,6.99,SUBSCRIPTIONS,DIRECT MARKETING-CONTINUITY/SUBSCRIPTION MERCHANTS
15/04/2018,LOCAL ASSISTANCE SCHEME,WWW.JOHNLEWIS.COM,51.95,FURNITURE,DEPARTMENT STORES
15/04/2018,LOCAL ASSISTANCE SCHEME,WWW.JOHNLEWIS.COM,66.00,FURNITURE,DEPARTMENT STORES
15/04/2018,VIRTUAL SCHOOL FOR LAC PUPIL PREMIUM,AMAZON EU,252.49,STATIONERY,DIRECT MARKETING-OTHER DIRECT MARKETERS/NOT ELSEW.
15/04/2018,FAIRCROFT COMMUNITY HOME,AMAZON DIGITAL SVCS,3.99,EDUC VISITS/HOLS/CAMPS/TOYS,RECORD SHOPS
15/04/2018,RUTH HOUSE,NOWTV.COM/BILLINGHELP,33.99,EDUC VISITS/HOLS/CAMPS/TOYS,"CABLE, SATELLITE, OTHER PAY TELEVISION, RADIO SVCS"
15/04/2018,SOLD CATERING,AMAZON UK MARKETPLACE,38.97,EQUIPMENT,BOOK STORES
15/04/2018,RUTH HOUSE,AMAZON UK MARKETPLACE,155.94,"CLOTHING, UNIFORM AND LAUNDRY",BOOK STORES
15/04/2018,FAIRCROFT COMMUNITY HOME,MCDONALDS,31.43,REFRESHMENT COSTS,FAST FOOD RESTAURANTS
15/04/2018,CHEYNE WALK COMMUNITY HOME,CURRYS,126.94,EQUIPMENT,ELECTRONIC SALES
15/04/2018,CHEYNE WALK COMMUNITY HOME,TESCO STORE 2560,15.00,TELECOMMUNICATION CHARGES,"GROCERY STORES, SUPERMARKETS"
15/04/2018,HILLSIDE,AMAZON PRIME,7.99,EDUC VISITS/HOLS/CAMPS/TOYS,DIRECT MARKETING-CONTINUITY/SUBSCRIPTION MERCHANTS
15/04/2018,ACL CENTRAL EXPENDITURE,AMAZON UK MARKETPLACE,43.73,EQUIPMENT,BOOK STORES
15/04/2018,FAIRCROFT COMMUNITY HOME,ODEON/BOOKIT,54.00,EDUC VISITS/HOLS/CAMPS/TOYS,MOTION PICTURE THEATERS
15/04/2018,ORBIS HR PROGRAMME AND PERFORMANCE,AMAZON UK MARKETPLACE,20.98,EQUIPMENT,BOOK STORES
15/04/2018,LOCAL DELIVERY GROUP,AMAZON EU,203.10,EQUIPMENT,DIRECT MARKETING-OTHER DIRECT MARKETERS/NOT ELSEW.
15/04/2018,LOCAL DELIVERY GROUP,AMAZON EU,17.05,EQUIPMENT,DIRECT MARKETING-OTHER DIRECT MARKETERS/NOT ELSEW.
15/04/2018,LIBERTAS COMMUNITY HOME,DVLA DRIVER ONLINE,34.00,NON-STAFF RELATED TRANSPORT COSTS,GOVERNMENT SERVICES-NOT ELSEWHERE CLASSIFIED
15/04/2018,TRANSPORT,AMAZON EU,13.50,OPERATIONAL FIRE EQUIPMENT,DIRECT MARKETING-OTHER DIRECT MARKETERS/NOT ELSEW.
15/04/2018,LOCAL DELIVERY GROUP,AMAZON EU,35.98,EQUIPMENT,DIRECT MARKETING-OTHER DIRECT MARKETERS/NOT ELSEW.
16/04/2018,NW CARE - LAC,GRO HM PASSPORT OFFICE,-9.25,OTHER COMMUNITY CARE VOL,GOVERNMENT SERVICES-NOT ELSEWHERE CLASSIFIED
16/04/2018,FAMILIES EPSOM AND EWELL,VICEROY CAR HIRE,64.00,TRANSPORT SOCIAL CARE-TAXI,LIMOUSINES AND TAXICABS
16/04/2018,RODNEY HOUSE STAFF COST,UK HOLIDAYS IN THE SUN,96.30,3RD PARTY PAYMENTS PRIVATE INDIV,TRAVEL AGENCIES AND TOUR OPERATORS
16/04/2018,NW CARE - LAC,PREMIER INN,432.00,INDEPENDENT LIVING PLACEMENTS,PREMIER INN
16/04/2018,SOLD DAY TO DAY OPERATIONS,AMAZON UK MARKETPLACE,19.33,EQUIPMENT,BOOK STORES
16/04/2018,"SE REF, ASS & INT SERVICE - HUB 1",TRAVELODGE,100.50,OTHER COMMUNITY CARE PRIV,TRAVELODGE
16/04/2018,FAMILIES SPELTHORNE,SAINSBURYS LOC4117,4.60,REFRESHMENT COSTS,"GROCERY STORES, SUPERMARKETS"
16/04/2018,FAMILIES GUILDFORD,SAINSBURYS 0686,1.95,REFRESHMENT COSTS,"GROCERY STORES, SUPERMARKETS"
16/04/2018,RUTH HOUSE,WWW.VETUK.CO.UK,46.60,EQUIPMENT,PET SHOPS - PET FOODS AND SUPPLIES
16/04/2018,CHEYNE WALK COMMUNITY HOME,KFC,25.74,REFRESHMENT COSTS,FAST FOOD RESTAURANTS
16/04/2018,FAMILIES REIGATE AND BANSTREAD,COSTA COFFEE,7.75,REFRESHMENT COSTS,FAST FOOD RESTAURANTS
16/04/2018,FAMILIES ELMBRIDGE,SAINSBURYS SACAT 2663,7.00,REFRESHMENT COSTS,"GROCERY STORES, SUPERMARKETS"
16/04/2018,HEAD OF CHILDREN'S SERVICE,EB  HOW SAFE ARE OUR C,269.00,STAFF TRAINING,BUSINESS SERVICES-NOT ELSEWHERE CLASSIFIED
16/04/2018,PHOENIX YC,TESCO STORE 3235,45.52,PURCHASE OF FOOD (RAW MATERIALS),"GROCERY STORES, SUPERMARKETS"
16/04/2018,DITTONS LIBRARY,AMAZON UK MARKETPLACE,10.54,REFRESHMENT COSTS,BOOK STORES
16/04/2018,LIBERTAS COMMUNITY HOME,MARTIN MCCOLL,57.57,NEWSPAPER AND PERIODICALS,"MISC FOOD STORE-CONVENIENCE,MRKT,SPLTY,VENDNG MACS"
16/04/2018,FAMILIES TANDRIDGE,SAINSBURYS LOC4137,1.65,PURCHASE OF FOOD (RAW MATERIALS),"GROCERY STORES, SUPERMARKETS"
16/04/2018,FAMILIES TANDRIDGE,SAINSBURYS LOC4137,3.75,PURCHASE OF FOOD (RAW MATERIALS),"GROCERY STORES, SUPERMARKETS"
16/04/2018,HOPE SERVICE - WEST,SAINSBURYS 0683,47.50,PURCHASE OF FOOD (RAW MATERIALS),"GROCERY STORES, SUPERMARKETS"
16/04/2018,SECTOR MANAGER,CILIP.ORG.UK,60.00,TRAINING EXPENSES EXTERNAL GENERAL,"CLUBS-CNTRY,MBRSHIP(ATHLET,REC,SPRTS,PRIVATE GOLF"
16/04/2018,BURBANK COMMUNITY HOME,AMAZON UK MARKETPLACE,15.99,EQUIPMENT,BOOK STORES
16/04/2018,CHMHS RAP TEAM,TESCO-STORES 2590,6.00,EDUC VISITS/HOLS/CAMPS/TOYS,"GROCERY STORES, SUPERMARKETS"
16/04/2018,ACL CENTRAL EXPENDITURE,MOSAICTRADERUK,102.60,EQUIPMENT,"ARTIST SUPPLY STORES, CRAFT SHOPS"
16/04/2018,RUTH HOUSE,NOWTV.COM/BILLINGHELP,3.99,EDUC VISITS/HOLS/CAMPS/TOYS,"CABLE, SATELLITE, OTHER PAY TELEVISION, RADIO SVCS"
16/04/2018,CORPORATE GROUP - LEGAL SERVICES,AMAZON UK MARKETPLACE,121.98,EQUIPMENT,BOOK STORES
16/04/2018,CORPORATE GROUP - LEGAL SERVICES,AMAZON UK MARKETPLACE,121.99,EQUIPMENT,BOOK STORES
16/04/2018,CHEYNE WALK COMMUNITY HOME,COUNTY MALL CAR PARK,2.50,NON-STAFF RELATED TRANSPORT COSTS,AUTOMOBILE PARKING LOTS AND GARAGES
16/04/2018,CORPORATE GROUP - LEGAL SERVICES,AMAZON UK MARKETPLACE,121.99,EQUIPMENT,BOOK STORES
16/04/2018,FAMILIES ELMBRIDGE,WILKO RETAIL LIMIT,7.00,COMPUTER CONSUMABLES,HOUSEHOLD APPLIANCE STORES
16/04/2018,TARGETED INTERVENTION,SQUIRES GARDEN CENTRE,4.10,EDUC VISITS/HOLS/CAMPS/TOYS,LAWN AND GARDEN SUPPLY STORES
16/04/2018,RUTH HOUSE,AMAZON UK MARKETPLACE,13.00,EDUC VISITS/HOLS/CAMPS/TOYS,BOOK STORES
16/04/2018,LOWER MOLE COUNTRYSIDE PROJECT,SJASUPLIES,72.44,EQUIPMENT,"ORGANIZATIONS, CHARITABLE AND SOCIAL SERVICES"
16/04/2018,TARGETED INTERVENTION,STARBUCKS,11.70,EDUC VISITS/HOLS/CAMPS/TOYS,FAST FOOD RESTAURANTS
16/04/2018,CHEYNE WALK COMMUNITY HOME,STARBUCKS CRAWLEY,8.94,REFRESHMENT COSTS,"EATING PLACES, RESTAURANTS"
16/04/2018,FIRE SERVICES IT,AMAZON UK MARKETPLACE,5.98,COMPUTER HARDWARE,BOOK STORES
16/04/2018,CHEYNE WALK COMMUNITY HOME,SANBEI CRAWLEY,40.00,EQUIPMENT,TELECOMMUNICATION EQUIPMENT INCL TELEPHONE SALES
16/04/2018,LOWER MOLE COUNTRYSIDE PROJECT,SAFETYSHOP,67.52,EQUIPMENT,"DURABLE GOODS, NOT ELSEWHERE CLASSIFIED"
16/04/2018,CHMHS RAP TEAM,PP DPDP,390.83,PUBLICITY,MEN'S AND BOY'S CLOTHING AND ACCESSORIES STORES
16/04/2018,TARGETED INTERVENTION,BLETCHINGLEY GOLF CLUB,4.50,EDUC VISITS/HOLS/CAMPS/TOYS,SPORTING GOODS STORES
16/04/2018,THE BRIDGE LEATHERHEAD,TIMPSON LTD,20.00,DAY TO DAY MAINTENANCE,"HAT CLEANING SHOPS, SHOE REPAIR SHOPS, SHOE SHINE"
16/04/2018,SW CARE - CP & COURT LAC,SURREY CC CARD PAY,11.00,OTHER COMMUNITY CARE VOL,COMPUTER NETWORK/INFORMATION SERVICES
16/04/2018,SW CARE - CP & COURT LAC,SURREY CC CARD PAY,11.00,OTHER COMMUNITY CARE VOL,COMPUTER NETWORK/INFORMATION SERVICES
16/04/2018,TARGETED INTERVENTION,STARBUCKS,5.15,EDUC VISITS/HOLS/CAMPS/TOYS,FAST FOOD RESTAURANTS
16/04/2018,SW CARE - CP & COURT LAC,SURREY CC CARD PAY,11.00,OTHER COMMUNITY CARE VOL,COMPUTER NETWORK/INFORMATION SERVICES
16/04/2018,SW CARE - CP & COURT LAC,SURREY CC CARD PAY,11.00,OTHER COMMUNITY CARE VOL,COMPUTER NETWORK/INFORMATION SERVICES
16/04/2018,SW CARE - CP & COURT LAC,SURREY CC CARD PAY,11.00,OTHER COMMUNITY CARE VOL,COMPUTER NETWORK/INFORMATION SERVICES
16/04/2018,CORPORATE GROUP - LEGAL SERVICES,AMAZON UK MARKETPLACE,170.91,EQUIPMENT,BOOK STORES
16/04/2018,CORPORATE GROUP - LEGAL SERVICES,AMAZON UK MARKETPLACE,61.03,EQUIPMENT,BOOK STORES
16/04/2018,CORPORATE GROUP - LEGAL SERVICES,AMAZON UK MARKETPLACE,64.50,EQUIPMENT,BOOK STORES
16/04/2018,PROPERTY OPERATIONS TEAM,BUNNINGS WAREHOUSE,50.66,PURCHASE OF BUILDING MATERIALS,"BUILDING MATERIALS, LUMBER STORES"
16/04/2018,ASSET PLANNING - OPERATIONS,COLE-PARMER,46.74,EQUIPMENT,INDUSTRIAL SUPPLIES NOT ELSEWHERE CLASSIFIED
16/04/2018,CORPORATE GROUP - LEGAL SERVICES,AMAZON UK MARKETPLACE,605.93,EQUIPMENT,BOOK STORES
16/04/2018,CORPORATE GROUP - LEGAL SERVICES,AMAZON UK MARKETPLACE,200.12,EQUIPMENT,BOOK STORES
16/04/2018,CORPORATE GROUP - LEGAL SERVICES,AMAZON UK MARKETPLACE,150.66,EQUIPMENT,BOOK STORES
16/04/2018,CORPORATE GROUP - LEGAL SERVICES,AMAZON UK MARKETPLACE,150.65,EQUIPMENT,BOOK STORES
16/04/2018,COVEHAM,SUSSEX&SURREY CARE CNT,76.60,DAY TO DAY MAINTENANCE,"HEARING AIDS-SALES, SERVICE, SUPPLY STORES"
16/04/2018,TARGETED INTERVENTION,AMAZON PRIME,7.99,EDUC VISITS/HOLS/CAMPS/TOYS,DIRECT MARKETING-CONTINUITY/SUBSCRIPTION MERCHANTS
16/04/2018,MID OUTREACH,TRAINLINE,129.00,MISCELLANEOUS STAFF TRAVEL,PASSENGER RAILWAYS
16/04/2018,NW TEACHERS,WWW.ELKLAN.CO.UK,495.00,STAFF TRAINING,SCHOOLS & EDUCATIONAL SVC-NOT ELSEWHERE CLASSIFIED
16/04/2018,PROPERTY OPERATIONS TEAM,WICKES,51.39,PURCHASE OF BUILDING MATERIALS,"BUILDING MATERIALS, LUMBER STORES"
16/04/2018,COVEHAM,SAINSBURYS TO YOU 0687,177.01,REFRESHMENT COSTS,"GROCERY STORES, SUPERMARKETS"
16/04/2018,LIBERTAS COMMUNITY HOME,SAINSBURYS SACAT 0652,6.50,EQUIPMENT,"GROCERY STORES, SUPERMARKETS"
16/04/2018,LIBERTAS COMMUNITY HOME,SAINSBURYS SACAT 0652,9.80,PURCHASE OF FOOD (RAW MATERIALS),"GROCERY STORES, SUPERMARKETS"
16/04/2018,LIBERTAS COMMUNITY HOME,SAINSBURYS SACAT 0652,121.47,PURCHASE OF FOOD (RAW MATERIALS),"GROCERY STORES, SUPERMARKETS"
16/04/2018,HILLSIDE,LIDL UK CAMBERLEY,26.80,PURCHASE OF FOOD (RAW MATERIALS),"GROCERY STORES, SUPERMARKETS"
16/04/2018,SOLD ESTATES MANAGEMENT,TRAVIS PERKINS,53.28,DAY TO DAY MAINTENANCE,"BUILDING MATERIALS, LUMBER STORES"
16/04/2018,TRANSPORT,PAYPAL  4YOURHOME,25.48,DAY TO DAY MAINTENANCE,"ANTIQUE SHOPS-SALES,REPAIRS,RESTORATION SERVICES"
16/04/2018,IMT CRITICAL ENVIRONMENTS,AMAZON EU,24.00,EQUIPMENT,DIRECT MARKETING-OTHER DIRECT MARKETERS/NOT ELSEW.
16/04/2018,IMT CRITICAL ENVIRONMENTS,AMAZON EU,24.00,EQUIPMENT,DIRECT MARKETING-OTHER DIRECT MARKETERS/NOT ELSEW.
16/04/2018,IMT CRITICAL ENVIRONMENTS,AMAZON EU,24.00,EQUIPMENT,DIRECT MARKETING-OTHER DIRECT MARKETERS/NOT ELSEW.
16/04/2018,IMT CRITICAL ENVIRONMENTS,AMAZON EU,24.00,EQUIPMENT,DIRECT MARKETING-OTHER DIRECT MARKETERS/NOT ELSEW.
16/04/2018,IMT CRITICAL ENVIRONMENTS,AMAZON EU,24.00,EQUIPMENT,DIRECT MARKETING-OTHER DIRECT MARKETERS/NOT ELSEW.
16/04/2018,NW CARE - LAC,GRO HM PASSPORT OFFICE,9.25,OTHER COMMUNITY CARE VOL,GOVERNMENT SERVICES-NOT ELSEWHERE CLASSIFIED
16/04/2018,LIBERTAS COMMUNITY HOME,BT PAY BY PHONE,67.07,TELECOMMUNICATION CHARGES,TELECOM INCL PREPAID/RECURRING PHONE SVCS
16/04/2018,FAMILIES SPELTHORNE,WAITROSE 652,6.45,REFRESHMENT COSTS,"GROCERY STORES, SUPERMARKETS"
16/04/2018,MALLOW CRESCENT,SAINSBURYS TO YOU 0652,132.60,PURCHASE OF FOOD (RAW MATERIALS),"GROCERY STORES, SUPERMARKETS"
16/04/2018,ACL CENTRAL EXPENDITURE,AMAZON UK MARKETPLACE,12.99,EQUIPMENT,BOOK STORES
16/04/2018,MALLOW CRESCENT,TESCO STORE 2590,13.12,PURCHASE OF FOOD (RAW MATERIALS),"GROCERY STORES, SUPERMARKETS"
16/04/2018,MALLOW CRESCENT,TESCO STORE 2590,86.13,PURCHASE OF FOOD (RAW MATERIALS),"GROCERY STORES, SUPERMARKETS"
16/04/2018,HILLSIDE,SAINSBURYS 0784,21.75,PURCHASE OF FOOD (RAW MATERIALS),"GROCERY STORES, SUPERMARKETS"
16/04/2018,ACL CENTRAL EXPENDITURE,SP   CANNONS UK,356.80,EQUIPMENT,COMPUTER SOFTWARE STORES
16/04/2018,TRAINING AND DEVELOPMENT,DSA THEORY TEST,37.00,TRAINING EXPENSES EXTERNAL GENERAL,GOVERNMENT SERVICES-NOT ELSEWHERE CLASSIFIED
16/04/2018,EXTENDED HOPE,TESCO STORE 2590,113.76,PURCHASE OF FOOD (RAW MATERIALS),"GROCERY STORES, SUPERMARKETS"
16/04/2018,ARUNDEL,TESCO STORES 5999,115.10,CLEANING MATERIALS,"GROCERY STORES, SUPERMARKETS"
16/04/2018,ACL CENTRAL EXPENDITURE,TESCO STORE 2160,158.60,REFRESHMENT COSTS,"GROCERY STORES, SUPERMARKETS"
16/04/2018,ACL CENTRAL EXPENDITURE,TESCO STORE 3149,164.10,REFRESHMENT COSTS,"GROCERY STORES, SUPERMARKETS"
16/04/2018,HOPE SERVICE - WEST,SAINSBURYS TO YOU 0686,198.98,PURCHASE OF FOOD (RAW MATERIALS),"GROCERY STORES, SUPERMARKETS"
16/04/2018,FAIRCROFT COMMUNITY HOME,TESCO STORE 2812,134.83,PURCHASE OF FOOD (RAW MATERIALS),"GROCERY STORES, SUPERMARKETS"
16/04/2018,MALLOW CRESCENT,SAINSBURYS TO YOU 0652,13.70,PURCHASE OF FOOD (RAW MATERIALS),"GROCERY STORES, SUPERMARKETS"
16/04/2018,MALLOW CRESCENT,SAINSBURYS TO YOU 0652,113.40,PURCHASE OF FOOD (RAW MATERIALS),"GROCERY STORES, SUPERMARKETS"
16/04/2018,ACL CENTRAL EXPENDITURE,TESCO STORE 2160,-1.80,REFRESHMENT COSTS,"GROCERY STORES, SUPERMARKETS"
16/04/2018,KARIBU COMMUNITY HOME,EPSOM & EWELL BOROUGH,1.00,NON-STAFF RELATED TRANSPORT COSTS,GOVERNMENT SERVICES-NOT ELSEWHERE CLASSIFIED
16/04/2018,RUTH HOUSE,AMAZON UK MARKETPLACE,14.30,EDUC VISITS/HOLS/CAMPS/TOYS,BOOK STORES
17/04/2018,NW CARE - CP & COURT LAC,PREMIER INN,83.49,INDEPENDENT LIVING PLACEMENTS,PREMIER INN
17/04/2018,MEMBERS EXPENSES (INCL ALLOWANCES),MERCURE BURFORD BRIDGE,"1,275.00",TRAINING EXPENSES EXTERNAL GENERAL,"LODGING-HOTELS,MOTELS,RESORTS-NOT CLASSIFIED"
17/04/2018,SOLD DAY TO DAY OPERATIONS,DECATHLON UK,399.98,EQUIPMENT,SPORTING GOODS STORES
17/04/2018,IMT CRITICAL ENVIRONMENTS,RS COMPONENTS,96.19,COMPUTER CONSUMABLES,ELECTRICAL PARTS AND EQUIPMENT
17/04/2018,FAIRCROFT COMMUNITY HOME,CAR PARKS SPH,3.50,NON-STAFF RELATED TRANSPORT COSTS,GOVERNMENT SERVICES-NOT ELSEWHERE CLASSIFIED
17/04/2018,COVEHAM,AMAZON UK MARKETPLACE,33.99,FIXTURES AND FITTINGS,BOOK STORES
17/04/2018,FAMILIES MOLE VALLEY,ONE STOP 1414,4.30,PURCHASE OF FOOD (RAW MATERIALS),"GROCERY STORES, SUPERMARKETS"
17/04/2018,FAIRCROFT COMMUNITY HOME,WH SMITH TRAVEL,5.65,REFRESHMENT COSTS,NEWS DEALERS AND NEWSSTANDS
17/04/2018,LIBERTAS COMMUNITY HOME,SAINSBURYS SACAT 0687,22.05,EQUIPMENT,"GROCERY STORES, SUPERMARKETS"
17/04/2018,LIBERTAS COMMUNITY HOME,SAINSBURYS SACAT 0687,10.20,PURCHASE OF FOOD (RAW MATERIALS),"GROCERY STORES, SUPERMARKETS"
17/04/2018,HOPE SERVICE - WEST,AMAZON UK MARKETPLACE,7.96,CURRICULUM CONSUMABLES,BOOK STORES
17/04/2018,HOPE SERVICE - WEST,AMAZON UK MARKETPLACE,5.75,CURRICULUM CONSUMABLES,BOOK STORES
17/04/2018,HOPE SERVICE - WEST,AMAZON UK MARKETPLACE,21.90,CURRICULUM CONSUMABLES,BOOK STORES
17/04/2018,HOPE SERVICE - WEST,AMAZON UK MARKETPLACE,3.23,CURRICULUM CONSUMABLES,BOOK STORES
17/04/2018,HOPE SERVICE - WEST,AMAZON UK MARKETPLACE,4.59,CURRICULUM CONSUMABLES,BOOK STORES
17/04/2018,ACL CENTRAL EXPENDITURE,WAITROSE 181,2.96,REFRESHMENT COSTS,"GROCERY STORES, SUPERMARKETS"
17/04/2018,WOODLANDS COMMUNITY HOME,WWW.OFFICEMONSTER.,14.40,FIXTURES AND FITTINGS,"OFFICE, SCHOOL SUPPLY, AND STATIONERY STORES"
17/04/2018,RYLSTON WEYBRIDGE,AMAZON EU,14.14,EQUIPMENT,DIRECT MARKETING-OTHER DIRECT MARKETERS/NOT ELSEW.
17/04/2018,SOLD DAY TO DAY OPERATIONS,SUMUP   MAHIDO,499.00,DAY TO DAY MAINTENANCE,HEALTH  AND BEAUTY SPAS
17/04/2018,STRATEGIC NETWORK RESILIENCE,PAYPAL  GEOLOGICALS,90.00,BOOKS,"ORGANIZATIONS, CHARITABLE AND SOCIAL SERVICES"
17/04/2018,TARGETED INTERVENTION,POST OFFICE COUNTER,67.00,STATIONERY,POSTAL SERVICES-GOVERNMENT ONLY
17/04/2018,DRAMA WARDROBE,GEM DRY CLEANING,475.15,"CLOTHING, UNIFORM AND LAUNDRY",DRY CLEANERS
17/04/2018,MASH,MILK & MORE OFFLINE,230.10,PURCHASE OF FOOD (RAW MATERIALS),"MISC FOOD STORE-CONVENIENCE,MRKT,SPLTY,VENDNG MACS"
17/04/2018,ROW VOLUNTEERS WEST                     ,METHOLD VEHICLE HIRE,54.00,HIRE OF VEHICLES,AUTOMOBILE RENTAL AGENCY-NOT ELSEWHERE CLASSIFIED
17/04/2018,ROW VOLUNTEERS WEST                     ,SHELL BURNT CM 199,10.01,PETROL/DIESEL ALL OFF BUSINESS,SERVICE STATIONS WITH OR WITHOUT ANCILLARY SERVICE
17/04/2018,ACL CENTRAL EXPENDITURE,BONACIA,18.50,CURRIC BOOKS,BOOK STORES
17/04/2018,FAMILIES MOLE VALLEY,VISTAPRINT,203.77,PUBLICITY,MISCELLANEOUS PUBLISHING AND PRINTING
17/04/2018,WOODLANDS COMMUNITY HOME,SAINSBURYS 0686,27.00,UPKEEP OF GROUNDS,"GROCERY STORES, SUPERMARKETS"
17/04/2018,WOODLANDS COMMUNITY HOME,SAINSBURYS 0686,23.00,PURCHASE OF FOOD (RAW MATERIALS),"GROCERY STORES, SUPERMARKETS"
17/04/2018,WOODLANDS COMMUNITY HOME,SAINSBURYS 0686,135.89,PURCHASE OF FOOD (RAW MATERIALS),"GROCERY STORES, SUPERMARKETS"
17/04/2018,WOODLANDS COMMUNITY HOME,SAINSBURYS 0686,2.85,EQUIPMENT,"GROCERY STORES, SUPERMARKETS"
17/04/2018,TARGETED INTERVENTION,3C_ WOKING BOROUGH COU,2.80,EDUC VISITS/HOLS/CAMPS/TOYS,AUTOMOBILE PARKING LOTS AND GARAGES
17/04/2018,WOODLANDS COMMUNITY HOME,SAINSBURYS 0686,29.99,EQUIPMENT,"GROCERY STORES, SUPERMARKETS"
17/04/2018,WOODLANDS COMMUNITY HOME,SAINSBURYS 0686,34.16,EQUIPMENT,"GROCERY STORES, SUPERMARKETS"
17/04/2018,ACCOMMODATION CLEANING AND REFURBISHMENT,WWW.IKEA.COM,217.50,"CLOTHING, UNIFORM AND LAUNDRY","EQUIP, FURNITURE, HOME FURNSHNGS STRS (EXCPT APPL)"
17/04/2018,LIBERTAS COMMUNITY HOME,CARD FACTORY,40.00,EDUC VISITS/HOLS/CAMPS/TOYS,"GIFT, CARD, NOVELTY AND SOUVENIR SHOPS"
17/04/2018,FAMILIES WOKING,AMAZON UK MARKETPLACE,15.93,EQUIPMENT,BOOK STORES
17/04/2018,ACCOMMODATION CLEANING AND REFURBISHMENT,AMAZON UK MARKETPLACE,111.84,"CLOTHING, UNIFORM AND LAUNDRY",BOOK STORES
17/04/2018,CHMHS RAP TEAM,G LIVE,"3,110.00",VENUE COSTS (INCLUDING HIRE OF ROOMS),"EATING PLACES, RESTAURANTS"
17/04/2018,SOLD ESTATES MANAGEMENT,FARNCOMBE BOAT HOUSE,266.25,VEHICLE RUNNING COSTS,BOAT LEASES AND BOAT RENTALS
17/04/2018,SOLD ESTATES MANAGEMENT,FARNCOMBE BOAT HOUSE,50.00,DAY TO DAY MAINTENANCE,BOAT LEASES AND BOAT RENTALS
17/04/2018,TARGETED INTERVENTION,STARBUCKS,6.95,EDUC VISITS/HOLS/CAMPS/TOYS,"EATING PLACES, RESTAURANTS"
17/04/2018,ALP EDGE OF CARE,STARBUCKS WISLEY SOUTH,4.05,EDUC VISITS/HOLS/CAMPS/TOYS,"MISC FOOD STORE-CONVENIENCE,MRKT,SPLTY,VENDNG MACS"
17/04/2018,PROPERTY OPERATIONS TEAM,THE FASCIA PLACE,20.40,PURCHASE OF BUILDING MATERIALS,"BUILDING MATERIALS, LUMBER STORES"
17/04/2018,TARGETED INTERVENTION,ALLSAINTS,5.60,EDUC VISITS/HOLS/CAMPS/TOYS,"EATING PLACES, RESTAURANTS"
17/04/2018,TRANSPORT,POST OFFICE COUNTER,57.18,POSTAGE AND COURIER CHARGES,POSTAL SERVICES-GOVERNMENT ONLY
17/04/2018,IMT CRITICAL ENVIRONMENTS,AMAZON EU,6.10,EQUIPMENT,DIRECT MARKETING-OTHER DIRECT MARKETERS/NOT ELSEW.
17/04/2018,CORPORATE GROUP - LEGAL SERVICES,AMAZON UK MARKETPLACE,70.99,EQUIPMENT,BOOK STORES
17/04/2018,TARGETED INTERVENTION,FREEDOM LEISURE,2.50,EDUC VISITS/HOLS/CAMPS/TOYS,GOVERNMENT SERVICES-NOT ELSEWHERE CLASSIFIED
17/04/2018,CORPORATE GROUP - LEGAL SERVICES,AMAZON UK MARKETPLACE,86.95,STATIONERY,BOOK STORES
17/04/2018,KARIBU COMMUNITY HOME,SAINSBURYS 0683,33.37,PURCHASE OF FOOD (RAW MATERIALS),"GROCERY STORES, SUPERMARKETS"
17/04/2018,HERITAGE STEWARDSHIP AND PRESERVATION,AMAZON UK MARKETPLACE,18.06,BOOKS,BOOK STORES
17/04/2018,SOLD ESTATES MANAGEMENT,SCREWFIX DIRECT,156.16,EQUIPMENT,"BUILDING MATERIALS, LUMBER STORES"
17/04/2018,KARIBU COMMUNITY HOME,ARGOS KILN LANE IN,32.99,EQUIPMENT,DISCOUNT STORES
17/04/2018,STREETWORKS TEAM,AMAZON UK MARKETPLACE,19.48,EQUIPMENT,BOOK STORES
17/04/2018,ALP EDGE OF CARE,TWO RIVERS CAR PK,2.20,EDUC VISITS/HOLS/CAMPS/TOYS,AUTOMOBILE PARKING LOTS AND GARAGES
17/04/2018,SURREY ARTS GENERAL,WWW.ALDAUTOMOTIVE.CO.U,364.58,HIRE OF VEHICLES,BUSINESS SERVICES-NOT ELSEWHERE CLASSIFIED
17/04/2018,TARGETED INTERVENTION,WAITROSE 216,1.40,EDUC VISITS/HOLS/CAMPS/TOYS,"GROCERY STORES, SUPERMARKETS"
17/04/2018,STREETWORKS TEAM,AMAZON EU,12.75,EQUIPMENT,DIRECT MARKETING-OTHER DIRECT MARKETERS/NOT ELSEW.
17/04/2018,ACCESS PROGRAMMES,KENDALL CARS GUILDFORD,75.00,HIRE OF VEHICLES,AUTOMOBILE RENTAL AGENCY-NOT ELSEWHERE CLASSIFIED
17/04/2018,EQUIPMENT SCC BUDGET,WINTERHALTER LTD,139.86,EQUIPMENT,"COMMERCIAL EQUIPMENT, NOT ELSEWHERE CLASSIFIED"
17/04/2018,SURREY ARTS GENERAL,BISHOPS PRINTERS LIMIT,146.00,CURRIC BOOKS,MISCELLANEOUS PUBLISHING AND PRINTING
17/04/2018,ACL CENTRAL EXPENDITURE,COOKSON PRECIOUS M,97.55,EQUIPMENT,"PRECIOUS STONES AND METALS, WATCHES AND JEWELRY"
17/04/2018,TARGETED INTERVENTION,COSTA COFFEE,9.00,EDUC VISITS/HOLS/CAMPS/TOYS,FAST FOOD RESTAURANTS
17/04/2018,ALP EDGE OF CARE,COSTA COFFEE,4.30,EDUC VISITS/HOLS/CAMPS/TOYS,FAST FOOD RESTAURANTS
17/04/2018,RUTH HOUSE,ARGOS LTD,81.94,EDUC VISITS/HOLS/CAMPS/TOYS,DISCOUNT STORES
17/04/2018,HILLSIDE,SAINSBURYS 0675,134.84,PURCHASE OF FOOD (RAW MATERIALS),"GROCERY STORES, SUPERMARKETS"
17/04/2018,TARGETED INTERVENTION,STARBUCKS,5.15,EDUC VISITS/HOLS/CAMPS/TOYS,"EATING PLACES, RESTAURANTS"
17/04/2018,TARGETED INTERVENTION,TESCO STORES-2047,7.00,EDUC VISITS/HOLS/CAMPS/TOYS,"GROCERY STORES, SUPERMARKETS"
17/04/2018,ALP EDGE OF CARE,COSTA COFFEE,4.30,EDUC VISITS/HOLS/CAMPS/TOYS,FAST FOOD RESTAURANTS
17/04/2018,TARGETED INTERVENTION,BLETCHINGLEY GOLF CLUB,2.75,EDUC VISITS/HOLS/CAMPS/TOYS,SPORTING GOODS STORES
17/04/2018,TARGETED INTERVENTION,BLETCHINGLEY GOLF CLUB,5.00,EDUC VISITS/HOLS/CAMPS/TOYS,SPORTING GOODS STORES
17/04/2018,ACL CENTRAL EXPENDITURE,AMAZON UK MARKETPLACE,12.99,EQUIPMENT,BOOK STORES
17/04/2018,PROPERTY OPERATIONS TEAM,TOOLSTATION LTD,19.72,PURCHASE OF BUILDING MATERIALS,HARDWARE STORES
17/04/2018,PROPERTY OPERATIONS TEAM,IRONMONGERY DIRECT LTD,73.08,PURCHASE OF BUILDING MATERIALS,"GLASS, PAINT, WALLPAPER STORES"
17/04/2018,ORBIS HEAD OF PROCUREMENT,WWW.PLACESFOR PEOP,449.60,VENUE COSTS (INCLUDING HIRE OF ROOMS),RECREATION SERVICES (NOT ELSEWHERE CLASSIFIED)
17/04/2018,CHILDREN'S RIGHTS TEAM,LOVE2SHOP.CO.UK,203.50,CHILDREN ACT SEC 24 PAYMENTS,"ASSOCIATIONS-CIVIC, SOCIAL, AND FRATERNAL"
17/04/2018,SOLD DAY TO DAY OPERATIONS,HILLTOP STORES,6.00,EQUIPMENT,NEWS DEALERS AND NEWSSTANDS
17/04/2018,CHILDREN'S RIGHTS TEAM,WWW.ALLCOLOURENVELOPES,154.14,STATIONERY,STATIONERY/OFFICE SUPPLIES/PRINTING & WRITING PAP.
17/04/2018,HOPE SERVICE - WEST,SAINSBURYS SACAT(4409),3.55,NEWSPAPER AND PERIODICALS,"GROCERY STORES, SUPERMARKETS"
17/04/2018,DOWNLANDS COUNTRYSIDE PROJECT,WH SMITH,15.98,EQUIPMENT,NEWS DEALERS AND NEWSSTANDS
17/04/2018,SOLD CONFRENCE,KNIGHTS,29.98,CURRICULUM CONSUMABLES,LAWN AND GARDEN SUPPLY STORES
17/04/2018,CHMHS RAP TEAM,WWW.THEWORKS.CO.UK,10.00,EDUC VISITS/HOLS/CAMPS/TOYS,DISCOUNT STORES
17/04/2018,DOWNLANDS COUNTRYSIDE PROJECT,J H LORIMER,22.48,EQUIPMENT,"OFFICE, SCHOOL SUPPLY, AND STATIONERY STORES"
17/04/2018,REDHILL & BANSTEAD CMHRS CARE,HMCTS-SURREY125,75.00,FEES,FINES
17/04/2018,CORPORATE GROUP - LEGAL SERVICES,AMAZON UK MARKETPLACE,905.87,EQUIPMENT,BOOK STORES
17/04/2018,CORPORATE GROUP - LEGAL SERVICES,AMAZON UK MARKETPLACE,839.97,EQUIPMENT,BOOK STORES
17/04/2018,MALLOW CRESCENT,TESCO STORE 2590,7.50,PURCHASE OF FOOD (RAW MATERIALS),"GROCERY STORES, SUPERMARKETS"
17/04/2018,MALLOW CRESCENT,TESCO STORE 2590,51.71,PURCHASE OF FOOD (RAW MATERIALS),"GROCERY STORES, SUPERMARKETS"
17/04/2018,CHEYNE WALK COMMUNITY HOME,WWW.DESERTSDELIVERED.C,37.99,REFRESHMENT COSTS,"MISC FOOD STORE-CONVENIENCE,MRKT,SPLTY,VENDNG MACS"
17/04/2018,FAIRCROFT COMMUNITY HOME,TESCO STORE 2812,107.60,EQUIPMENT,"GROCERY STORES, SUPERMARKETS"
17/04/2018,FAIRCROFT COMMUNITY HOME,TESCO STORE 2812,8.07,PURCHASE OF FOOD (RAW MATERIALS),"GROCERY STORES, SUPERMARKETS"
17/04/2018,CORE ACTIVITY                           ,MAILCHIMP    MONTHLY,21.25,COMPUTER SOFTWARE,DIRECT MARKETING-CONTINUITY/SUBSCRIPTION MERCHANTS
17/04/2018,SCHOOL GAMES LOC 2015-16                ,TESCO PAY AT PUMP 3981,12.58,HIRE OF VEHICLES,"FUEL DISPENSER, AUTOMATED"
18/04/2018,SOLD MANAGEMENT AND OVERHEADS,WWW.CAMPINGANDKITECENT,-199.95,FURNITURE,SPORTING GOODS STORES
18/04/2018,NW CARE - CP & COURT LAC,SURREY CC CARD PAY,-11.00,CHILDREN ACT SEC 17 PAYMENTS,COMPUTER NETWORK/INFORMATION SERVICES
18/04/2018,CHMHS RAP TEAM,PRIMARK STORES 655,18.90,VENUE COSTS (INCLUDING HIRE OF ROOMS),FAMILY CLOTHING STORES
18/04/2018,NW NIL RECOURSE TO PUBLIC FUNDS CARE,PREMIER INN,534.50,CHILDREN ACT SEC 17 PAYMENTS,PREMIER INN
18/04/2018,SOLD CATERING,MILK & MORE OFFLINE,62.40,PURCHASE OF FOOD (RAW MATERIALS),"MISC FOOD STORE-CONVENIENCE,MRKT,SPLTY,VENDNG MACS"
18/04/2018,TRANSPORT,AMAZON UK MARKETPLACE,12.41,EQUIPMENT,BOOK STORES
18/04/2018,LOCAL DELIVERY GROUP,AMAZON EU,99.96,EQUIPMENT,DIRECT MARKETING-OTHER DIRECT MARKETERS/NOT ELSEW.
18/04/2018,BURBANK COMMUNITY HOME,ASDA STORES 4823,15.00,"CLOTHING, UNIFORM AND LAUNDRY","GROCERY STORES, SUPERMARKETS"
18/04/2018,FAIRCROFT COMMUNITY HOME,CAR PARKS SPH,3.50,NON-STAFF RELATED TRANSPORT COSTS,GOVERNMENT SERVICES-NOT ELSEWHERE CLASSIFIED
18/04/2018,PROGRAMME TEAM,AMAZON UK MARKETPLACE,105.70,EQUIPMENT,BOOK STORES
18/04/2018,HEAD OF CHILDREN'S SERVICE,WWW.PAPAJOHNS.CO.U,88.46,REFRESHMENT COSTS,"EATING PLACES, RESTAURANTS"
18/04/2018,KARIBU COMMUNITY HOME,ASDA SUPERSTORE,10.00,LIBRARY RESOURCES,"GROCERY STORES, SUPERMARKETS"
18/04/2018,SOLD CONFRENCE,ASDA SUPERSTORE,40.07,CURRICULUM CONSUMABLES,"GROCERY STORES, SUPERMARKETS"
18/04/2018,CHEYNE WALK COMMUNITY HOME,ICELAND,8.30,PURCHASE OF FOOD (RAW MATERIALS),"GROCERY STORES, SUPERMARKETS"
18/04/2018,FAMILIES RUNNYMEDE,SOUTHERN CO-OP 0383,11.21,PURCHASE OF FOOD (RAW MATERIALS),DEPARTMENT STORES
18/04/2018,SOLD DAY TO DAY OPERATIONS,AMAZON UK MARKETPLACE,15.05,EQUIPMENT,BOOK STORES
18/04/2018,SOLD DAY TO DAY OPERATIONS,AMAZON UK MARKETPLACE,7.56,EQUIPMENT,BOOK STORES
18/04/2018,FAMILIES TANDRIDGE,WAITROSE 178,5.55,REFRESHMENT COSTS,"GROCERY STORES, SUPERMARKETS"
18/04/2018,HILLSIDE,SAINSBURYS SACAT 0675,14.03,PURCHASE OF FOOD (RAW MATERIALS),"GROCERY STORES, SUPERMARKETS"
18/04/2018,MALLOW CRESCENT DMHS 25-30,AO RETAIL LIMITED,274.00,EQUIPMENT,HOUSEHOLD APPLIANCE STORES
18/04/2018,RUTH HOUSE,BT BILL PAYMENT 2,45.47,TELECOMMUNICATION CHARGES,TELECOMMUNICATION EQUIPMENT INCL TELEPHONE SALES
18/04/2018,NE CARE - NON-LAC CP & COURT,TRAVELODGE,49.00,VENUE COSTS (INCLUDING HIRE OF ROOMS),TRAVELODGE
18/04/2018,TARGETED INTERVENTION,3C_ WOKING BOROUGH COU,4.20,EDUC VISITS/HOLS/CAMPS/TOYS,AUTOMOBILE PARKING LOTS AND GARAGES
18/04/2018,NE CARE - NON-LAC CP & COURT,TRAVELODGE,94.90,OTHER COMMUNITY CARE VOL,TRAVELODGE
18/04/2018,SOLD MANAGEMENT AND OVERHEADS,WWW.CAMPINGANDKITECENT,199.95,FURNITURE,SPORTING GOODS STORES
18/04/2018,SOLD MANAGEMENT AND OVERHEADS,PAYPAL  CAMPINGKITE,263.95,EQUIPMENT,SPORTING GOODS STORES
18/04/2018,SURREY ARTS PROJECT,GEMINI PRINT SOUTHERN,219.00,PRINTING,MISCELLANEOUS PUBLISHING AND PRINTING
18/04/2018,FAMILIES RUNNYMEDE,CURRYS ONLINE,349.00,EQUIPMENT,ELECTRONIC SALES
18/04/2018,ARUNDEL,TESCO STORES 5999,89.34,REFRESHMENT COSTS,"GROCERY STORES, SUPERMARKETS"
18/04/2018,WOODLANDS COMMUNITY HOME,WWW.SAFELINCS.CO.UK,20.95,FIXTURES AND FITTINGS,ELECTRICAL PARTS AND EQUIPMENT
18/04/2018,FAIRCROFT COMMUNITY HOME,SAINSBURYS SACAT 0687,10.92,PURCHASE OF FOOD (RAW MATERIALS),"GROCERY STORES, SUPERMARKETS"
18/04/2018,IMT CRITICAL ENVIRONMENTS,MILK&MORE,3.00,REFRESHMENT COSTS,DAIRY PRODUCTS STORES
18/04/2018,FAIRCROFT COMMUNITY HOME,SAINSBURYS 0687,25.00,TELECOMMUNICATION CHARGES,"GROCERY STORES, SUPERMARKETS"
18/04/2018,WOODLANDS COMMUNITY HOME,FIREPROTECT,121.91,FIXTURES AND FITTINGS,ELECTRONIC SALES
18/04/2018,KARIBU COMMUNITY HOME,TESCO STORES 5371,7.70,PURCHASE OF FOOD (RAW MATERIALS),"GROCERY STORES, SUPERMARKETS"
18/04/2018,REIGATE AND BANSTEAD LOCALITY TEAM,CURRYS ONLINE,243.87,EQUIPMENT,ELECTRONIC SALES
18/04/2018,REIGATE AND BANSTEAD LOCALITY TEAM,WWW.ARGOS.CO.UK,29.98,EQUIPMENT,DISCOUNT STORES
18/04/2018,CHEYNE WALK COMMUNITY HOME,COSTA COFFEE,6.80,PURCHASE OF FOOD (RAW MATERIALS),FAST FOOD RESTAURANTS
18/04/2018,TARGETED INTERVENTION,TESCO STORES-2047,4.20,EDUC VISITS/HOLS/CAMPS/TOYS,"GROCERY STORES, SUPERMARKETS"
18/04/2018,CHAIRMAN,AMAZON UK MARKETPLACE,253.60,STATIONERY,BOOK STORES
18/04/2018,TARGETED INTERVENTION,TESCO STORES-2047,20.95,EDUC VISITS/HOLS/CAMPS/TOYS,"GROCERY STORES, SUPERMARKETS"
18/04/2018,CYWS COMMISSIONING,GUILDFORD MUSIC,12.99,CURRICULUM CONSUMABLES,"MUSIC STORES-INSTRUMENTS, PIANOS, SHEET MUSIC"
18/04/2018,CHMHS RAP TEAM,SUPERDRUG STORES PLC,2.99,EDUC VISITS/HOLS/CAMPS/TOYS,"DRUG STORES, PHARMACIES"
18/04/2018,NW CARE - NON-LAC CP & COURT,SURREY CC CARD PAY,11.00,CHILDREN ACT SEC 17 PAYMENTS,COMPUTER NETWORK/INFORMATION SERVICES
18/04/2018,ACCOMMODATION CLEANING AND REFURBISHMENT,AMAZON UK MARKETPLACE,64.00,CLEANING AND DOMESTIC SUPPLIES,BOOK STORES
18/04/2018,NW CARE - CP & COURT LAC,SURREY CC CARD PAY,11.00,CHILDREN ACT SEC 17 PAYMENTS,COMPUTER NETWORK/INFORMATION SERVICES
18/04/2018,CHMHS RAP TEAM,THE WORKS,2.70,EDUC VISITS/HOLS/CAMPS/TOYS,DISCOUNT STORES
18/04/2018,TRAINING SURREY HIGHWAYS,B M T A,456.00,TRAINING USING EXTERNAL PROVIDERS,PROFESSIONAL SERVICES-NOT ELSEWHERE CLASSIFIED
18/04/2018,ACCOMMODATION CLEANING AND REFURBISHMENT,AMAZON UK MARKETPLACE,49.16,"CLOTHING, UNIFORM AND LAUNDRY",BOOK STORES
18/04/2018,RUTH HOUSE,G J HONOUR,259.01,PURCHASE OF FOOD (RAW MATERIALS),"MISC FOOD STORE-CONVENIENCE,MRKT,SPLTY,VENDNG MACS"
18/04/2018,ACCOMMODATION CLEANING AND REFURBISHMENT,AMAZON UK MARKETPLACE,147.47,"CLOTHING, UNIFORM AND LAUNDRY",BOOK STORES
18/04/2018,TARGETED INTERVENTION,FREEDOM LEISURE,2.50,EDUC VISITS/HOLS/CAMPS/TOYS,GOVERNMENT SERVICES-NOT ELSEWHERE CLASSIFIED
18/04/2018,PROGRESSION SURREY ARTS,AMAZON UK MARKETPLACE,49.99,EQUIPMENT,BOOK STORES
18/04/2018,TARGETED INTERVENTION,ALLSAINTS,6.00,EDUC VISITS/HOLS/CAMPS/TOYS,"EATING PLACES, RESTAURANTS"
18/04/2018,TARGETED INTERVENTION,SAINSBURYS 0687,5.10,EDUC VISITS/HOLS/CAMPS/TOYS,"GROCERY STORES, SUPERMARKETS"
18/04/2018,BURBANK COMMUNITY HOME,COSTA COFFEE 43038215,6.40,REFRESHMENT COSTS,FAST FOOD RESTAURANTS
18/04/2018,YSS YOUTH CENTRE IMPROVEMENTS,AMAZON EU,34.99,EQUIPMENT,DIRECT MARKETING-OTHER DIRECT MARKETERS/NOT ELSEW.
18/04/2018,WOODLANDS COMMUNITY HOME,TIMPSON LTD,100.00,EQUIPMENT,"HAT CLEANING SHOPS, SHOE REPAIR SHOPS, SHOE SHINE"
18/04/2018,ALP EDGE OF CARE,TWO RIVERS CAR PK,2.70,EDUC VISITS/HOLS/CAMPS/TOYS,AUTOMOBILE PARKING LOTS AND GARAGES
18/04/2018,TARGETED INTERVENTION,ASDA STORES 4823,3.30,EDUC VISITS/HOLS/CAMPS/TOYS,"GROCERY STORES, SUPERMARKETS"
18/04/2018,CHILDREN'S RIGHTS TEAM,FREEPRINTS,8.85,PUBLICITY,"PHOTO DEVELOPING, PHOTOFINISHING LABORATORIES"
18/04/2018,FAIRCROFT COMMUNITY HOME,CAR PARKS SPH,3.50,NON-STAFF RELATED TRANSPORT COSTS,GOVERNMENT SERVICES-NOT ELSEWHERE CLASSIFIED
18/04/2018,TARGETED INTERVENTION,STARBUCKS,5.20,EDUC VISITS/HOLS/CAMPS/TOYS,FAST FOOD RESTAURANTS
18/04/2018,TARGETED INTERVENTION,TWO RIVERS CAR PK,1.20,EDUC VISITS/HOLS/CAMPS/TOYS,AUTOMOBILE PARKING LOTS AND GARAGES
18/04/2018,ALP EDGE OF CARE,COSTA COFFEE,3.05,EDUC VISITS/HOLS/CAMPS/TOYS,FAST FOOD RESTAURANTS
18/04/2018,TARGETED INTERVENTION,SPORTSDIRECT 159,17.99,EXAMINATION FEES,SPORTING GOODS STORES
18/04/2018,IMT CRITICAL ENVIRONMENTS,AMAZON UK MARKETPLACE,11.98,EQUIPMENT,BOOK STORES
18/04/2018,TRANSPORT,VIRTUAL TERMINAL,49.99,"CLOTHING, UNIFORM AND LAUNDRY",ACCESSORY AND APPAREL STORES-MISCELLANEOUS
18/04/2018,WAVERLEY CMHRS CARE,TRAVELODGE,752.40,FEES,TRAVELODGE
18/04/2018,TARGETED INTERVENTION,STARBUCKS,4.95,EDUC VISITS/HOLS/CAMPS/TOYS,"EATING PLACES, RESTAURANTS"
18/04/2018,VIRTUAL SERVICE MANAGER,AMAZON UK MARKETPLACE,272.99,EQUIPMENT,BOOK STORES
18/04/2018,TARGETED INTERVENTION,BLETCHINGLEY GOLF CLUB,4.50,EDUC VISITS/HOLS/CAMPS/TOYS,SPORTING GOODS STORES
18/04/2018,IMT CRITICAL ENVIRONMENTS,SETON,197.34,EQUIPMENT,"DURABLE GOODS, NOT ELSEWHERE CLASSIFIED"
18/04/2018,BURBANK COMMUNITY HOME,COSTA COFFEE 43037185,6.80,REFRESHMENT COSTS,FAST FOOD RESTAURANTS
18/04/2018,ALP EDGE OF CARE,COSTA COFFEE,4.30,EDUC VISITS/HOLS/CAMPS/TOYS,FAST FOOD RESTAURANTS
18/04/2018,HILLSIDE,SAINSBURYS 0675,74.45,PURCHASE OF FOOD (RAW MATERIALS),"GROCERY STORES, SUPERMARKETS"
18/04/2018,HOPE SERVICE - WEST,SAINSBURYS SACAT(4409),5.75,PURCHASE OF FOOD (RAW MATERIALS),"GROCERY STORES, SUPERMARKETS"
18/04/2018,HOPE SERVICE - WEST,SAINSBURYS SACAT(4409),2.40,PURCHASE OF FOOD (RAW MATERIALS),"GROCERY STORES, SUPERMARKETS"
18/04/2018,COVEHAM,3WM LTD - VT,39.30,STATIONERY,BUSINESS SERVICES-NOT ELSEWHERE CLASSIFIED
18/04/2018,HR - ASC TRAINING OPEN PROGRAMME,DHL EXPRESS(UK)LTD,19.39,FEES,"COURIER SVC-AIR & GROUND, FREIGHT FORWARDERS"
18/04/2018,AP & AR ORBIS NORTH,WWW.MONEYCLAIM.GOV,105.00,FEES,GOVERNMENT SERVICES-NOT ELSEWHERE CLASSIFIED
18/04/2018,SOUTH WEST OUTREACH,SAINSBURYS TO YOU 0652,34.40,PURCHASE OF FOOD (RAW MATERIALS),"GROCERY STORES, SUPERMARKETS"
18/04/2018,SOUTH WEST OUTREACH,SAINSBURYS TO YOU 0652,106.70,PURCHASE OF FOOD (RAW MATERIALS),"GROCERY STORES, SUPERMARKETS"
18/04/2018,HOPE SERVICE - WEST,SAINSBURYS TO YOU 0686,69.80,PURCHASE OF FOOD (RAW MATERIALS),"GROCERY STORES, SUPERMARKETS"
18/04/2018,BURBANK COMMUNITY HOME,SAINSBURYS TO YOU 0686,299.46,PURCHASE OF FOOD (RAW MATERIALS),"GROCERY STORES, SUPERMARKETS"
18/04/2018,CHEYNE WALK COMMUNITY HOME,TESCO-STORES 6647,197.16,PURCHASE OF FOOD (RAW MATERIALS),"GROCERY STORES, SUPERMARKETS"
18/04/2018,CORPORATE GROUP - LEGAL SERVICES,AMAZON UK MARKETPLACE,279.99,EQUIPMENT,BOOK STORES
18/04/2018,CORPORATE GROUP - LEGAL SERVICES,AMAZON UK MARKETPLACE,122.36,EQUIPMENT,BOOK STORES
18/04/2018,CORPORATE GROUP - LEGAL SERVICES,AMAZON UK MARKETPLACE,122.37,EQUIPMENT,BOOK STORES
18/04/2018,CORPORATE GROUP - LEGAL SERVICES,AMZ LAPTOP OUTLET UK,-200.12,EQUIPMENT,MISCELLANEOUS AND SPECIALTY RETAIL STORES
19/04/2018,LEGAL EXPENSES CHILD ADULT EDUC TEAM,EYE NETWORK,222.00,LEGAL EXPENSES,ELECTRONIC SALES
19/04/2018,CS BUSINESS SUPPORT EAST,SURREY CC CARD PAY,-31.00,OTHER COMMUNITY CARE VOL,COMPUTER NETWORK/INFORMATION SERVICES
19/04/2018,NW CARE - NON-LAC CP & COURT,SURREY CC CARD PAY,-11.00,OTHER COMMUNITY CARE VOL,COMPUTER NETWORK/INFORMATION SERVICES
19/04/2018,SE CARE - CP & COURT LAC,SURREY CC CARD PAY,-31.00,CHILDREN ACT SEC 17 PAYMENTS,COMPUTER NETWORK/INFORMATION SERVICES
19/04/2018,PORTAGE SERVICE (SE),ELC-INTERNET,23.95,EQUIPMENT,DEPARTMENT STORES
19/04/2018,TARGETED INTERVENTION,CHERTSEY SERVICE STATI,2.50,EDUC VISITS/HOLS/CAMPS/TOYS,SERVICE STATIONS WITH OR WITHOUT ANCILLARY SERVICE
19/04/2018,LEAVING CARE PACKAGES,WWW.JOHNLEWIS.COM,69.99,OTHER COMMUNITY CARE VOL,DEPARTMENT STORES
19/04/2018,CHILDREN'S RIGHTS TEAM,CANVA FOR WORK MONTHLY,9.51,COMPUTER SOFTWARE,PHOTOGRAPHIC STUDIOS
19/04/2018,IMT CRITICAL ENVIRONMENTS,MILK&MORE,7.80,REFRESHMENT COSTS,DAIRY PRODUCTS STORES
19/04/2018,PROGRAMME TEAM,AMAZON EU,58.31,EQUIPMENT,DIRECT MARKETING-OTHER DIRECT MARKETERS/NOT ELSEW.
19/04/2018,PROGRAMME TEAM,AMAZON EU,58.31,EQUIPMENT,DIRECT MARKETING-OTHER DIRECT MARKETERS/NOT ELSEW.
19/04/2018,PROGRAMME TEAM,AMAZON EU,58.31,EQUIPMENT,DIRECT MARKETING-OTHER DIRECT MARKETERS/NOT ELSEW.
19/04/2018,PROGRAMME TEAM,AMAZON EU,58.31,EQUIPMENT,DIRECT MARKETING-OTHER DIRECT MARKETERS/NOT ELSEW.
19/04/2018,LOCAL DELIVERY GROUP,AMAZON EU,126.40,EQUIPMENT,DIRECT MARKETING-OTHER DIRECT MARKETERS/NOT ELSEW.
19/04/2018,PROGRAMME TEAM,AMAZON EU,58.31,EQUIPMENT,DIRECT MARKETING-OTHER DIRECT MARKETERS/NOT ELSEW.
19/04/2018,FAMILIES MOLE VALLEY,TESCO STORES 2812,14.80,PURCHASE OF FOOD (RAW MATERIALS),"GROCERY STORES, SUPERMARKETS"
19/04/2018,PORTAGE SERVICE (SE),AMAZON UK MARKETPLACE,12.85,EQUIPMENT,BOOK STORES
19/04/2018,COBHAM CHILDRENS CENTRE,WAITROSE 176,11.95,REFRESHMENT COSTS,"GROCERY STORES, SUPERMARKETS"
19/04/2018,CORONERS DEEPCUT2,TRAVELODGE,79.00,WITNESS/JUROR EXP,TRAVELODGE
19/04/2018,SE CARE - CP & COURT LAC,SURREY CC CARD PAY,31.00,CHILDREN ACT SEC 17 PAYMENTS,COMPUTER NETWORK/INFORMATION SERVICES
19/04/2018,TRANSPORT STUDIES TEAM,WWW.TRANSPORTXTRA.COM,144.00,SUBSCRIPTIONS,BUSINESS SERVICES-NOT ELSEWHERE CLASSIFIED
19/04/2018,SOLD CONFRENCE,KNIGHTS,7.99,CURRICULUM CONSUMABLES,LAWN AND GARDEN SUPPLY STORES
19/04/2018,NE EDUCATION PSYCHOLOGISTS,AMAZON EU,61.18,BOOKS,DIRECT MARKETING-OTHER DIRECT MARKETERS/NOT ELSEW.
19/04/2018,NW CARE - NON-LAC CP & COURT,WWW.ARGOS.CO.UK,351.91,FURNITURE,DISCOUNT STORES
19/04/2018,FAMILIES TANDRIDGE,WAITROSE 838,5.00,PURCHASE OF FOOD (RAW MATERIALS),"GROCERY STORES, SUPERMARKETS"
19/04/2018,WOODLANDS COMMUNITY HOME,HOMEBASE LTD 084,139.00,UPKEEP OF GROUNDS,"BUILDING MATERIALS, LUMBER STORES"
19/04/2018,CHEYNE WALK COMMUNITY HOME,CURRYS,289.99,EQUIPMENT,ELECTRONIC SALES
19/04/2018,SOLD DAY TO DAY OPERATIONS,AMAZON UK MARKETPLACE,9.98,COMPUTER HARDWARE,BOOK STORES
19/04/2018,DOWNLANDS COUNTRYSIDE PROJECT,MALTHURST PETROLEU,43.84,DAY TO DAY MAINTENANCE,SERVICE STATIONS WITH OR WITHOUT ANCILLARY SERVICE
19/04/2018,SOLD CONFRENCE,SAINSBURYS 0517,14.10,CURRICULUM CONSUMABLES,"GROCERY STORES, SUPERMARKETS"
19/04/2018,SOLD CONFRENCE,SAINSBURYS 0517,12.00,CURRICULUM CONSUMABLES,"GROCERY STORES, SUPERMARKETS"
19/04/2018,FINANCIAL ASSESSMENTS AND BENEFITS TEAM,WWW.GOV.UK,10.00,FEES,PROFESSIONAL SERVICES-NOT ELSEWHERE CLASSIFIED
19/04/2018,PORTAGE SERVICE (SE),DUNCANSTOYS COM,31.48,EQUIPMENT,"GAME, TOY, AND HOBBY SHOPS"
19/04/2018,FAMILIES REIGATE AND BANSTREAD,LIDL UK  HORLEY,7.31,PURCHASE OF FOOD (RAW MATERIALS),"GROCERY STORES, SUPERMARKETS"
19/04/2018,SOLD CONFRENCE,WH SMITH,12.14,CURRICULUM CONSUMABLES,NEWS DEALERS AND NEWSSTANDS
19/04/2018,SOLD CONFRENCE,ARGOS LTD,4.99,CURRICULUM CONSUMABLES,DISCOUNT STORES
19/04/2018,ARUNDEL,TESCO STORES 5999,76.71,REFRESHMENT COSTS,"GROCERY STORES, SUPERMARKETS"
19/04/2018,SOLD DAY TO DAY OPERATIONS,AMAZON UK MARKETPLACE,144.99,EQUIPMENT,BOOK STORES
19/04/2018,LEARNING ON MY DOORSTEP PROJECT,W M MORRISONS,18.19,REFRESHMENT COSTS,"GROCERY STORES, SUPERMARKETS"
19/04/2018,CHMHS RAP TEAM,PAPA JOHNS GUILDFORD,36.96,REFRESHMENT COSTS,FAST FOOD RESTAURANTS
19/04/2018,TRAINING AND DEVELOPMENT,ST MELLONS HOTEL & SPA,78.00,SUBSISTENCE AND CONFERENCE EXPENSES,"LODGING-HOTELS,MOTELS,RESORTS-NOT CLASSIFIED"
19/04/2018,FAMILIES EPSOM AND EWELL,ARGOS RETAIL GROUP,32.99,EQUIPMENT,DISCOUNT STORES
19/04/2018,ACL CENTRAL EXPENDITURE,AMAZON UK MARKETPLACE,4.10,EQUIPMENT,BOOK STORES
19/04/2018,FAMILIES WAVERLEY,APPLIANCE EXPERT,107.71,EQUIPMENT,ELECTRICAL AND SMALL APPLIANCE REPAIR SHOPS
19/04/2018,ACL CENTRAL EXPENDITURE,AMAZON UK MARKETPLACE,10.97,EQUIPMENT,BOOK STORES
19/04/2018,BURBANK COMMUNITY HOME,TESCO STORES 5706,3.00,REFRESHMENT COSTS,"GROCERY STORES, SUPERMARKETS"
19/04/2018,CENTRAL COMMUNICATIONS,GOOGLE  ADWS2060179426,500.00,PUBLICITY,DIRECT MARKETING-CONTINUITY/SUBSCRIPTION MERCHANTS
19/04/2018,SE CARE - LAC,SURREY CC CARD PAY,31.00,OTHER COMMUNITY CARE VOL,COMPUTER NETWORK/INFORMATION SERVICES
19/04/2018,FAIRCROFT COMMUNITY HOME,CAR PARKS SPH,5.00,NON-STAFF RELATED TRANSPORT COSTS,GOVERNMENT SERVICES-NOT ELSEWHERE CLASSIFIED
19/04/2018,TARGETED INTERVENTION,ASDA PETROL 4202,4.24,EDUC VISITS/HOLS/CAMPS/TOYS,SERVICE STATIONS WITH OR WITHOUT ANCILLARY SERVICE
19/04/2018,RUTH HOUSE,ROBERT DYAS HOLDNG LTD,80.63,EQUIPMENT,HARDWARE STORES
19/04/2018,TARGETED INTERVENTION,MARWELL SERVICES LTD,5.99,EDUC VISITS/HOLS/CAMPS/TOYS,TOURIST ATTRACTIONS AND EXHIBITS
19/04/2018,TARGETED INTERVENTION,MARWELL WILDLIFE,80.04,EDUC VISITS/HOLS/CAMPS/TOYS,TOURIST ATTRACTIONS AND EXHIBITS
19/04/2018,FAMILIES TANDRIDGE,WM MORRISONS,13.73,PURCHASE OF FOOD (RAW MATERIALS),"GROCERY STORES, SUPERMARKETS"
19/04/2018,PROPERTY OPERATIONS TEAM,TOOLSTATION LTD,15.02,PURCHASE OF BUILDING MATERIALS,HARDWARE STORES
19/04/2018,NE CARE - NON-LAC CP & COURT,TAXIPAY TAXI FARE,80.00,NON-STAFF RELATED TRANSPORT COSTS,LIMOUSINES AND TAXICABS
19/04/2018,MASH,AMAZON UK MARKETPLACE,16.79,EQUIPMENT,BOOK STORES
19/04/2018,TARGETED INTERVENTION,COSTA CHERTSEY,4.95,EDUC VISITS/HOLS/CAMPS/TOYS,"MISC FOOD STORE-CONVENIENCE,MRKT,SPLTY,VENDNG MACS"
19/04/2018,PROPERTY OPERATIONS TEAM,WICKES,26.94,PURCHASE OF BUILDING MATERIALS,"BUILDING MATERIALS, LUMBER STORES"
19/04/2018,TARGETED INTERVENTION,PP URBAN KITCHEN,9.00,EDUC VISITS/HOLS/CAMPS/TOYS,"MISC FOOD STORE-CONVENIENCE,MRKT,SPLTY,VENDNG MACS"
19/04/2018,IMT CRITICAL ENVIRONMENTS,AMAZON EU,17.07,EQUIPMENT,DIRECT MARKETING-OTHER DIRECT MARKETERS/NOT ELSEW.
19/04/2018,NE CARE - NON-LAC CP & COURT,VA CARS,80.00,NON-STAFF RELATED TRANSPORT COSTS,LIMOUSINES AND TAXICABS
19/04/2018,TRAINING AND DEVELOPMENT,ST MELLONS HOTEL & SPA,468.00,SUBSISTENCE AND CONFERENCE EXPENSES,"LODGING-HOTELS,MOTELS,RESORTS-NOT CLASSIFIED"
19/04/2018,HOPE SERVICE - WEST,B & Q 1029,80.99,CURRICULUM CONSUMABLES,"BUILDING MATERIALS, LUMBER STORES"
19/04/2018,PROPERTY OPERATIONS TEAM,B & Q 1029,16.42,PURCHASE OF BUILDING MATERIALS,"BUILDING MATERIALS, LUMBER STORES"
19/04/2018,TARGETED INTERVENTION,CO-OP GROUP 350033,7.45,EDUC VISITS/HOLS/CAMPS/TOYS,"GROCERY STORES, SUPERMARKETS"
19/04/2018,BURBANK COMMUNITY HOME,WWW.PHS.CO.UK,51.84,EQUIPMENT,BUSINESS SERVICES-NOT ELSEWHERE CLASSIFIED
19/04/2018,SE CARE - LAC,SURREY CC CARD PAY,31.00,OTHER COMMUNITY CARE VOL,COMPUTER NETWORK/INFORMATION SERVICES
19/04/2018,CHEYNE WALK COMMUNITY HOME,TESCO STORE 2560,15.00,EQUIPMENT,"GROCERY STORES, SUPERMARKETS"
19/04/2018,TARGETED INTERVENTION,SQUIRES GARDEN CENTRE,6.70,EDUC VISITS/HOLS/CAMPS/TOYS,LAWN AND GARDEN SUPPLY STORES
19/04/2018,CHEYNE WALK COMMUNITY HOME,TESCO STORE 2560,33.07,PURCHASE OF FOOD (RAW MATERIALS),"GROCERY STORES, SUPERMARKETS"
19/04/2018,NW CARE - NON-LAC CP & COURT,SURREY CC CARD PAY,11.00,OTHER COMMUNITY CARE VOL,COMPUTER NETWORK/INFORMATION SERVICES
19/04/2018,SE CARE - LAC,SURREY CC CARD PAY,31.00,OTHER COMMUNITY CARE VOL,COMPUTER NETWORK/INFORMATION SERVICES
19/04/2018,HILLSIDE,SAINSBURYS 0675,72.30,PURCHASE OF FOOD (RAW MATERIALS),"GROCERY STORES, SUPERMARKETS"
19/04/2018,PROPERTY OPERATIONS TEAM,BATHROOM & PLUMBING SU,14.00,PURCHASE OF BUILDING MATERIALS,"HEATING, PLUMBING, AIR CONDITIONING CONTRACTORS"
19/04/2018,PROPERTY OPERATIONS TEAM,SCREWFIX,39.46,PURCHASE OF BUILDING MATERIALS,"BUILDING MATERIALS, LUMBER STORES"
19/04/2018,FAMILIES SPELTHORNE,W M MORRISONS,4.42,REFRESHMENT COSTS,"GROCERY STORES, SUPERMARKETS"
19/04/2018,PROPERTY OPERATIONS TEAM,SELCO TRADING CTR,9.18,PURCHASE OF BUILDING MATERIALS,"BUILDING MATERIALS, LUMBER STORES"
19/04/2018,SE CARE - LAC,SURREY CC CARD PAY,31.00,OTHER COMMUNITY CARE VOL,COMPUTER NETWORK/INFORMATION SERVICES
19/04/2018,CL & S APPRENTICESHIPS,VITALSOURCE TECHNOLOGI,47.99,CURRIC BOOKS,DIGITAL GOODS AUDIOVISUAL MEDIA
19/04/2018,PROPERTY OPERATIONS TEAM,WICKES 260,17.48,PURCHASE OF BUILDING MATERIALS,HOME SUPPLY WAREHOUSE STORES
19/04/2018,COUNTY HALL,AMAZON UK MARKETPLACE,305.89,STATIONERY,BOOK STORES
19/04/2018,BURBANK COMMUNITY HOME,SURREY CC INTERNET,63.00,REFRESHMENT COSTS,PROFESSIONAL SERVICES-NOT ELSEWHERE CLASSIFIED
19/04/2018,LEAVING CARE PACKAGES,WEX PHOTOGRAPHIC,689.00,OTHER COMMUNITY CARE VOL,CAMERA AND PHOTOGRAPHIC SUPPLY STORES
19/04/2018,ACL CENTRAL EXPENDITURE,TEXTMARKETER,144.00,PUBLICITY,COMPUTER SOFTWARE STORES
19/04/2018,PE/CDT MAINTENANCE OVERHEADS,SCREWFIX DIRECT,99.97,EQUIPMENT,"BUILDING MATERIALS, LUMBER STORES"
19/04/2018,BURBANK COMMUNITY HOME,WWW.SURREYCC.GOV.UK,50.00,REFRESHMENT COSTS,GOVERNMENT SERVICES-NOT ELSEWHERE CLASSIFIED
19/04/2018,CS BUSINESS SUPPORT WEST,POUNDLAND LTD 1244,5.00,EQUIPMENT,DISCOUNT STORES
19/04/2018,BURBANK COMMUNITY HOME,WWW.SURREYCC.GOV.UK,50.00,REFRESHMENT COSTS,GOVERNMENT SERVICES-NOT ELSEWHERE CLASSIFIED
19/04/2018,ALP EDGE OF CARE,SELFSERVE TICKET,5.20,EDUC VISITS/HOLS/CAMPS/TOYS,PASSENGER RAILWAYS
19/04/2018,NE CARE - LAC,VIRGIN TRAINS,99.60,MISCELLANEOUS STAFF TRAVEL,PASSENGER RAILWAYS
19/04/2018,SW ASSESSMENT TEAM,AMAZON UK MARKETPLACE,13.98,OTHER COMMUNITY CARE VOL,BOOK STORES
19/04/2018,CONSORT HOUSE REDHILL,SCREWFIX DIRECT,52.41,EQUIPMENT,"BUILDING MATERIALS, LUMBER STORES"
19/04/2018,FIRE & RESCUE COMMUNITY SAFETY,WEBCOM/ENABLE,28.80,PUBLICITY,COMPUTER MAIN./REPAIR/SERVICES NOT ELSEWHERE CLASS
19/04/2018,ACL CENTRAL EXPENDITURE,W M MORRISONS,6.48,REFRESHMENT COSTS,"GROCERY STORES, SUPERMARKETS"
19/04/2018,ROW VOLUNTEERS EAST                     ,FAIRALLS (BUILDERS' ME,54.48,PURCHASE OF BUILDING MATERIALS,"BUILDING MATERIALS, LUMBER STORES"
19/04/2018,CENTRAL COMMUNICATIONS,ITUNES.COM/BILL,3.99,PUBLICITY,RECORD SHOPS
20/04/2018,YSS YOUTH CENTRE IMPROVEMENTS,AMAZON UK MARKETPLACE,14.78,EQUIPMENT,BOOK STORES
20/04/2018,HOLLAND CLOSE RESIDENTIAL HOME,TESCO STORE 3066,11.80,PURCHASE OF FOOD (RAW MATERIALS),"GROCERY STORES, SUPERMARKETS"
20/04/2018,WOODLANDS COMMUNITY HOME,KEELE SOU 40600314,50.01,VEHICLE RUNNING COSTS,SERVICE STATIONS WITH OR WITHOUT ANCILLARY SERVICE
20/04/2018,KARIBU COMMUNITY HOME,TESCO STORES 5371,10.59,PURCHASE OF FOOD (RAW MATERIALS),"GROCERY STORES, SUPERMARKETS"
20/04/2018,CS BUSINESS SUPPORT EAST,AMAZON UK MARKETPLACE,8.43,BOOKS,BOOK STORES
20/04/2018,SOLD DAY TO DAY OPERATIONS,SAINSBURYS 2053,27.85,EQUIPMENT,"GROCERY STORES, SUPERMARKETS"
20/04/2018,CS BUSINESS SUPPORT WEST,VIKING,119.98,VENUE COSTS (INCLUDING HIRE OF ROOMS),STATIONERY/OFFICE SUPPLIES/PRINTING & WRITING PAP.
20/04/2018,CHEYNE WALK COMMUNITY HOME,CURRYS,49.99,3RD PARTY PAYMENTS PRIVATE INDIV,ELECTRONIC SALES
20/04/2018,DEPUTYSHIP TEAM,NEW LAVENDER HOUSE DEN,59.10,3RD PARTY PAYMENTS PRIVATE INDIV,"DENTISTS, ORTHODONTISTS"
20/04/2018,ARUNDEL,ASDA SUPERSTORE,43.38,REFRESHMENT COSTS,"GROCERY STORES, SUPERMARKETS"
20/04/2018,ARUNDEL,ASDA SUPERSTORE,292.50,EQUIPMENT,"GROCERY STORES, SUPERMARKETS"
20/04/2018,HILLSIDE,SAINSBURYS SACAT 0675,38.33,PURCHASE OF FOOD (RAW MATERIALS),"GROCERY STORES, SUPERMARKETS"
20/04/2018,NE CARE - NON-LAC CP & COURT,TRAVELODGE,427.00,OTHER COMMUNITY CARE VOL,TRAVELODGE
20/04/2018,ARUNDEL,TESCO STORES 5999,127.29,REFRESHMENT COSTS,"GROCERY STORES, SUPERMARKETS"
20/04/2018,DITTONS & CLAYGATE CC,THE CONSORTIUM/WMS,94.19,STATIONERY,DIRECT MARKETING-CONTINUITY/SUBSCRIPTION MERCHANTS
20/04/2018,FAMILIES REIGATE AND BANSTREAD,LIDL UK  HORLEY,28.31,PURCHASE OF FOOD (RAW MATERIALS),"GROCERY STORES, SUPERMARKETS"
20/04/2018,TARGETED INTERVENTION,FREEDOM LEISURE,4.50,EDUC VISITS/HOLS/CAMPS/TOYS,GOVERNMENT SERVICES-NOT ELSEWHERE CLASSIFIED
20/04/2018,RUTH HOUSE,AMAZON UK MARKETPLACE,18.98,EQUIPMENT,BOOK STORES
20/04/2018,TARGETED INTERVENTION,COSTA COFFEE 43038140,11.20,EDUC VISITS/HOLS/CAMPS/TOYS,FAST FOOD RESTAURANTS
20/04/2018,COVEHAM,SAINSBURYS SACAT 0687,15.00,EQUIPMENT,"GROCERY STORES, SUPERMARKETS"
20/04/2018,TARGETED INTERVENTION,CERAMICS CAFE HERSHAM,69.40,EDUC VISITS/HOLS/CAMPS/TOYS,MISCELLANEOUS HOUSE FURNISHING SPECIALTY SHOPS
20/04/2018,PROPERTY OPERATIONS TEAM,SCREWFIX DIR. LTD,20.67,PURCHASE OF BUILDING MATERIALS,"BUILDING MATERIALS, LUMBER STORES"
20/04/2018,DEPUTYSHIP TEAM,H.S.L,"1,078.00",3RD PARTY PAYMENTS PRIVATE INDIV,"EQUIP, FURNITURE, HOME FURNSHNGS STRS (EXCPT APPL)"
20/04/2018,TARGETED INTERVENTION,3C_ WOKING BOROUGH COU,2.80,EDUC VISITS/HOLS/CAMPS/TOYS,AUTOMOBILE PARKING LOTS AND GARAGES
20/04/2018,TARGETED INTERVENTION,PRIMARK,18.00,EXAMINATION FEES,FAMILY CLOTHING STORES
20/04/2018,TRAINING AND DEVELOPMENT,WWW.CFOASERVICES.CO.UK,216.00,SUBSISTENCE AND CONFERENCE EXPENSES,"ORGANIZATIONS, MEMBERSHIP-NOT ELSEWHERE CLASSIFIED"
20/04/2018,WEST CWD NON-LAC CARE,WWW.SACOAPARTMENTS.CO.,"2,140.86",INDEPENDENT LIVING PLACEMENTS,"LODGING-HOTELS,MOTELS,RESORTS-NOT CLASSIFIED"
20/04/2018,NE CARE - NON-LAC CP & COURT,TRAVELODGE,75.00,FEES,TRAVELODGE
20/04/2018,COUNTY HALL,CATER-KWIK LTD,374.39,EQUIPMENT,"COMMERCIAL EQUIPMENT, NOT ELSEWHERE CLASSIFIED"
20/04/2018,TRANSPORT,SP SERVICES,"1,385.36",OPERATIONAL FIRE EQUIPMENT,DENTAL/LAB/MED/OPHTHALMIC HOSP EQUIP & SUPPLIES
20/04/2018,TARGETED INTERVENTION,FREEDOM LEISURE,11.50,EDUC VISITS/HOLS/CAMPS/TOYS,GOVERNMENT SERVICES-NOT ELSEWHERE CLASSIFIED
20/04/2018,TARGETED INTERVENTION,TANDRIDGE DISTRICT COU,1.50,EDUC VISITS/HOLS/CAMPS/TOYS,AUTOMOBILE PARKING LOTS AND GARAGES
20/04/2018,TRANSPORT,W B FLOOR MACHINES,169.39,EQUIPMENT,"EQUIPMENT RENTAL&LEASING SVS, FURNTURE/TOOL RENTAL"
20/04/2018,TARGETED INTERVENTION,FREEDOM LEISURE,6.75,EDUC VISITS/HOLS/CAMPS/TOYS,GOVERNMENT SERVICES-NOT ELSEWHERE CLASSIFIED
20/04/2018,TARGETED INTERVENTION,COSTA COFFEE,7.25,EDUC VISITS/HOLS/CAMPS/TOYS,FAST FOOD RESTAURANTS
20/04/2018,TARGETED INTERVENTION,SOFT WHIP ICE CREAM,7.50,EDUC VISITS/HOLS/CAMPS/TOYS,FAST FOOD RESTAURANTS
20/04/2018,CS BUSINESS SUPPORT WEST,AMAZON UK MARKETPLACE,23.98,EQUIPMENT,BOOK STORES
20/04/2018,RUTH HOUSE,PAYPAL  RITASRUSSIA,25.99,EDUC VISITS/HOLS/CAMPS/TOYS,MISCELLANEOUS AND SPECIALTY RETAIL STORES
20/04/2018,ESHER LOCAL OFFICE @ ELMBRIDGE CIVIC CTR,ARGOS RETAIL GROUP,39.99,EQUIPMENT,DISCOUNT STORES
20/04/2018,TARGETED INTERVENTION,FRENCH BROTHERS LTD,36.00,EDUC VISITS/HOLS/CAMPS/TOYS,TOURIST ATTRACTIONS AND EXHIBITS
20/04/2018,TARGETED INTERVENTION,AP SOUVENIR & GIFT,14.99,EDUC VISITS/HOLS/CAMPS/TOYS,"GIFT, CARD, NOVELTY AND SOUVENIR SHOPS"
20/04/2018,TRANSPORT,PREMIER VANGUARD L,712.80,OPERATIONAL FIRE EQUIPMENT,"OFFICE, SCHOOL SUPPLY, AND STATIONERY STORES"
20/04/2018,TARGETED INTERVENTION,STARBUCKS,10.90,EDUC VISITS/HOLS/CAMPS/TOYS,"EATING PLACES, RESTAURANTS"
20/04/2018,TARGETED INTERVENTION,COSTA @ DEBENHAMS 4303,5.75,EDUC VISITS/HOLS/CAMPS/TOYS,FAST FOOD RESTAURANTS
20/04/2018,SW CARE - CP & COURT LAC,GUILDFORD REGISTER,90.00,OTHER COMMUNITY CARE VOL,GOVERNMENT SERVICES-NOT ELSEWHERE CLASSIFIED
20/04/2018,TARGETED INTERVENTION,COSTA COFFEE,7.35,EDUC VISITS/HOLS/CAMPS/TOYS,"EATING PLACES, RESTAURANTS"
20/04/2018,TARGETED INTERVENTION,COSTA COFFEE 43038140,5.30,EDUC VISITS/HOLS/CAMPS/TOYS,FAST FOOD RESTAURANTS
20/04/2018,HOPE SERVICE - WEST,THE SCULPTURE PARK,35.00,EDUC VISITS/HOLS/CAMPS/TOYS,TOURIST ATTRACTIONS AND EXHIBITS
20/04/2018,LANGDOWN STAFF COST,G LIVE,87.50,3RD PARTY PAYMENTS PRIVATE INDIV,"THEATRICAL PRODUCERS(EXCL MOTION PIX),TICKET AGNCY"
20/04/2018,LIBERTAS COMMUNITY HOME,SAINSBURYS SACAT 0686,13.20,PURCHASE OF FOOD (RAW MATERIALS),"GROCERY STORES, SUPERMARKETS"
20/04/2018,LIBERTAS COMMUNITY HOME,SAINSBURYS SACAT 0686,11.60,EQUIPMENT,"GROCERY STORES, SUPERMARKETS"
20/04/2018,LIBERTAS COMMUNITY HOME,SAINSBURYS SACAT 0686,132.35,PURCHASE OF FOOD (RAW MATERIALS),"GROCERY STORES, SUPERMARKETS"
20/04/2018,HOPE SERVICE - WEST,WORLD OF GOLF,38.00,EDUC VISITS/HOLS/CAMPS/TOYS,RECREATION SERVICES (NOT ELSEWHERE CLASSIFIED)
20/04/2018,HILLSIDE,SAINSBURYS 0675,52.10,PURCHASE OF FOOD (RAW MATERIALS),"GROCERY STORES, SUPERMARKETS"
20/04/2018,LANGDOWN STAFF COST,EEC LTD,210.00,3RD PARTY PAYMENTS PRIVATE INDIV,"THEATRICAL PRODUCERS(EXCL MOTION PIX),TICKET AGNCY"
20/04/2018,EXTENDED HOPE,TESCO STORE 2590,66.58,PURCHASE OF FOOD (RAW MATERIALS),"GROCERY STORES, SUPERMARKETS"
20/04/2018,ROW VOLUNTEERS EAST                     ,RYALL & EDWARDS,5.99,EQUIPMENT,"BUILDING MATERIALS, LUMBER STORES"
20/04/2018,ACL CENTRAL EXPENDITURE,DIGITAL ID,21.48,PRINTING,"COMPUTERS, COMPUTER PERIPHERAL EQUIPMENT, SOFTWARE"
20/04/2018,KARIBU COMMUNITY HOME,TESCO STORE 2812,434.77,PURCHASE OF FOOD (RAW MATERIALS),"GROCERY STORES, SUPERMARKETS"
20/04/2018,RUTH HOUSE,SAINSBURYS TO YOU 0686,379.15,PURCHASE OF FOOD (RAW MATERIALS),"GROCERY STORES, SUPERMARKETS"
20/04/2018,APPLEWOOD,ASDA GROCERIES ONLINE,131.26,PURCHASE OF FOOD (RAW MATERIALS),"GROCERY STORES, SUPERMARKETS"
20/04/2018,APPLEWOOD,ASDA GROCERIES ONLINE,-.22,PURCHASE OF FOOD (RAW MATERIALS),"GROCERY STORES, SUPERMARKETS"
20/04/2018,HOPE SERVICE - WEST,BP RUSHETT CONNECT,.89,REFRESHMENT COSTS,SERVICE STATIONS WITH OR WITHOUT ANCILLARY SERVICE
20/04/2018,NW EDUCATION PSYCHOLOGISTS,AMAZON EU,32.50,BOOKS,DIRECT MARKETING-OTHER DIRECT MARKETERS/NOT ELSEW.
21/04/2018,FAIRCROFT COMMUNITY HOME,BURGER KING GUILDFORD,22.00,REFRESHMENT COSTS,FAST FOOD RESTAURANTS
21/04/2018,FAIRCROFT COMMUNITY HOME,CHOZEN NOODLE,7.45,REFRESHMENT COSTS,FAST FOOD RESTAURANTS
21/04/2018,FAIRCROFT COMMUNITY HOME,MCDONALDS,5.29,REFRESHMENT COSTS,FAST FOOD RESTAURANTS
21/04/2018,FAIRCROFT COMMUNITY HOME,NANDOS,21.90,REFRESHMENT COSTS,"EATING PLACES, RESTAURANTS"
21/04/2018,RUTH HOUSE,WICKES,13.98,EQUIPMENT,HOME SUPPLY WAREHOUSE STORES
21/04/2018,RUTH HOUSE,ARGOS LTD,3.50,EQUIPMENT,DISCOUNT STORES
21/04/2018,FAIRCROFT COMMUNITY HOME,ODEON/BOOKIT,30.00,EDUC VISITS/HOLS/CAMPS/TOYS,MOTION PICTURE THEATERS
21/04/2018,SE CARE - CP & COURT LAC,NATIONAL EXPRESS LIMIT,54.85,NON-STAFF RELATED TRANSPORT COSTS,BUS LINES
21/04/2018,PSSS VISUALLY IMPAIRED,AMAZON UK MARKETPLACE,2.50,EQUIPMENT,BOOK STORES
21/04/2018,PSSS VISUALLY IMPAIRED,AMAZON UK MARKETPLACE,2.50,EQUIPMENT,BOOK STORES
21/04/2018,NW EDUCATION PSYCHOLOGISTS,AMAZON UK MARKETPLACE,13.99,BOOKS,BOOK STORES
21/04/2018,FAMILY AND FRIENDS FOSTERING TEAM,THE LOUNGE,65.00,NON-STAFF RELATED TRANSPORT COSTS,"LODGING-HOTELS,MOTELS,RESORTS-NOT CLASSIFIED"
21/04/2018,KARIBU COMMUNITY HOME,WWW.ARGOS.CO.UK,73.90,EQUIPMENT,DISCOUNT STORES
21/04/2018,HOLLAND CLOSE RESIDENTIAL HOME,TESCO-STORES 6647,145.43,PURCHASE OF FOOD (RAW MATERIALS),"GROCERY STORES, SUPERMARKETS"
21/04/2018,COUNTRYSIDE PROJECT DEVELOPMENT,SURVEYMONKEY,29.00,SUBSCRIPTIONS,"COMP PROGRAMING,DATA PRCSNG,INTGRTD SYS DSGN SRVS"
21/04/2018,HILLSIDE,SAINSBURYS TO YOU 0675,215.30,PURCHASE OF FOOD (RAW MATERIALS),"GROCERY STORES, SUPERMARKETS"
21/04/2018,HILLSIDE,SAINSBURYS TO YOU 0675,32.15,PURCHASE OF FOOD (RAW MATERIALS),"GROCERY STORES, SUPERMARKETS"
21/04/2018,FAIRCROFT COMMUNITY HOME,TESCO DELIVERY SAVER2,6.99,PURCHASE OF FOOD (RAW MATERIALS),DIRECT MARKETING-CONTINUITY/SUBSCRIPTION MERCHANTS
21/04/2018,EXTENDED HOPE,TESCO STORE 2590,-1.25,PURCHASE OF FOOD (RAW MATERIALS),"GROCERY STORES, SUPERMARKETS"
22/04/2018,CHAIRMAN,AMAZON EU,15.68,STATIONERY,DIRECT MARKETING-OTHER DIRECT MARKETERS/NOT ELSEW.
22/04/2018,CHAIRMAN,AMAZON EU,15.68,STATIONERY,DIRECT MARKETING-OTHER DIRECT MARKETERS/NOT ELSEW.
22/04/2018,CHAIRMAN,AMAZON EU,15.68,STATIONERY,DIRECT MARKETING-OTHER DIRECT MARKETERS/NOT ELSEW.
22/04/2018,DEMOCRATIC SERVICES TEAM,AMAZON EU,15.68,CLEANING AND DOMESTIC SUPPLIES,DIRECT MARKETING-OTHER DIRECT MARKETERS/NOT ELSEW.
22/04/2018,LIBERTAS COMMUNITY HOME,TICKETOFFICESALE,62.30,NON-STAFF RELATED TRANSPORT COSTS,PASSENGER RAILWAYS
22/04/2018,CORONER,AMAZON EU,31.69,COMPUTER CONSUMABLES,DIRECT MARKETING-OTHER DIRECT MARKETERS/NOT ELSEW.
22/04/2018,TS SERVICE MANAGEMENT,AMAZON UK MARKETPLACE,46.68,EQUIPMENT,BOOK STORES
22/04/2018,TS SERVICE MANAGEMENT,AMAZON UK MARKETPLACE,9.98,EQUIPMENT,BOOK STORES
22/04/2018,PSSS VISUALLY IMPAIRED,AMAZON EU,42.99,EQUIPMENT,DIRECT MARKETING-OTHER DIRECT MARKETERS/NOT ELSEW.
22/04/2018,ACL CENTRAL EXPENDITURE,AMAZON UK MARKETPLACE,28.57,EQUIPMENT,BOOK STORES
22/04/2018,ARUNDEL,ASDA SUPERSTORE,30.00,EQUIPMENT,"GROCERY STORES, SUPERMARKETS"
22/04/2018,ARUNDEL,ASDA SUPERSTORE,10.35,REFRESHMENT COSTS,"GROCERY STORES, SUPERMARKETS"
22/04/2018,ARUNDEL,ASDA SUPERSTORE,14.85,REFRESHMENT COSTS,"GROCERY STORES, SUPERMARKETS"
22/04/2018,BURBANK COMMUNITY HOME,W M MORRISONS,34.50,EQUIPMENT,"GROCERY STORES, SUPERMARKETS"
22/04/2018,SIGNS OF SAFETY TRAINING,AMAZON EU,11.98,EQUIPMENT,DIRECT MARKETING-OTHER DIRECT MARKETERS/NOT ELSEW.
22/04/2018,EXTENDED HOPE,SHERE DELIGHTS,10.00,REFRESHMENT COSTS,"CANDY, NUT, CONFECTIONERY STORES"
22/04/2018,FAMILIES WOKING,THE RANGE,11.90,EQUIPMENT,DEPARTMENT STORES
22/04/2018,FAIRCROFT COMMUNITY HOME,SAINSBURYS SACAT(4180),6.75,PURCHASE OF FOOD (RAW MATERIALS),"GROCERY STORES, SUPERMARKETS"
22/04/2018,PORTAGE SERVICE (SE),AMAZON UK MARKETPLACE,44.79,EQUIPMENT,BOOK STORES
23/04/2018,FAMILIES EPSOM AND EWELL,VICEROY CAR HIRE,64.00,TRANSPORT SOCIAL CARE-TAXI,LIMOUSINES AND TAXICABS
23/04/2018,SIGNS OF SAFETY TRAINING,VIRGINTRAINSEC DRPU,-.52,MISCELLANEOUS STAFF TRAVEL,PASSENGER RAILWAYS
23/04/2018,SIGNS OF SAFETY TRAINING,VIRGINTRAINSEC DRPU,-51.48,MISCELLANEOUS STAFF TRAVEL,PASSENGER RAILWAYS
23/04/2018,LOCAL ASSISTANCE SCHEME,WWW.JOHNLEWIS.COM,254.00,FURNITURE,DEPARTMENT STORES
23/04/2018,WORKPLACE ACTIVITY                      ,WWW.SURREY-CHAMBERS.CO,30.00,PUBLICITY,"ORGANIZATIONS, MEMBERSHIP-NOT ELSEWHERE CLASSIFIED"
23/04/2018,NWEST FOSTERING TEAM,PREMIER INN,52.50,OTHER COMMUNITY CARE VOL,PREMIER INN
23/04/2018,YSS YOUTH CENTRE IMPROVEMENTS,TVLICENSING.CO.UK,150.50,FEES,"CONSULTING, MANAGEMENT, AND PUBLIC RELATIONS SVCS"
23/04/2018,YSS YOUTH CENTRE IMPROVEMENTS,TVLICENSING.CO.UK,150.50,FEES,"CONSULTING, MANAGEMENT, AND PUBLIC RELATIONS SVCS"
23/04/2018,YSS YOUTH CENTRE IMPROVEMENTS,TVLICENSING.CO.UK,150.50,FEES,"CONSULTING, MANAGEMENT, AND PUBLIC RELATIONS SVCS"
23/04/2018,DEPUTYSHIP TEAM,HOME APPLICANCE GUARD,6.00,3RD PARTY PAYMENTS PRIVATE INDIV,PROFESSIONAL SERVICES-NOT ELSEWHERE CLASSIFIED
23/04/2018,DEPUTYSHIP TEAM,HOME APPLICANCE GUARD,8.00,3RD PARTY PAYMENTS PRIVATE INDIV,PROFESSIONAL SERVICES-NOT ELSEWHERE CLASSIFIED
23/04/2018,DEPUTYSHIP TEAM,HOME APPLICANCE GUARD,7.00,3RD PARTY PAYMENTS PRIVATE INDIV,PROFESSIONAL SERVICES-NOT ELSEWHERE CLASSIFIED
23/04/2018,DEPUTYSHIP TEAM,HOME APPLICANCE GUARD,6.00,3RD PARTY PAYMENTS PRIVATE INDIV,PROFESSIONAL SERVICES-NOT ELSEWHERE CLASSIFIED
23/04/2018,DEPUTYSHIP TEAM,HOME APPLIANCE GUARD,5.00,3RD PARTY PAYMENTS PRIVATE INDIV,DIRECT MARKETING-CONTINUITY/SUBSCRIPTION MERCHANTS
23/04/2018,DEPUTYSHIP TEAM,HOME APPLIANCE GUARD,6.00,3RD PARTY PAYMENTS PRIVATE INDIV,PROFESSIONAL SERVICES-NOT ELSEWHERE CLASSIFIED
23/04/2018,CHEYNE WALK COMMUNITY HOME,IZ  BLACKS BURGERS,150.30,REFRESHMENT COSTS,"EATING PLACES, RESTAURANTS"
23/04/2018,RUTH HOUSE,ARGOS LTD,23.97,EQUIPMENT,DISCOUNT STORES
23/04/2018,RUTH HOUSE,ARGOS LTD,2.99,EQUIPMENT,DISCOUNT STORES
23/04/2018,RUTH HOUSE,THE CLARKS SHOP,57.00,"CLOTHING, UNIFORM AND LAUNDRY",SHOE STORES
23/04/2018,WOODLANDS COMMUNITY HOME,SAINSBURYS 0686,16.32,PURCHASE OF FOOD (RAW MATERIALS),"GROCERY STORES, SUPERMARKETS"
23/04/2018,WOODLANDS COMMUNITY HOME,SAINSBURYS 0686,17.75,PURCHASE OF FOOD (RAW MATERIALS),"GROCERY STORES, SUPERMARKETS"
23/04/2018,FAMILIES RUNNYMEDE,TESCO STORES-2017,8.40,REFRESHMENT COSTS,"GROCERY STORES, SUPERMARKETS"
23/04/2018,INSTRUMENT HIRE SHOP,DAWKES MUSIC & WINDCRA,75.29,EQUIPMENT,"MUSIC STORES-INSTRUMENTS, PIANOS, SHEET MUSIC"
23/04/2018,FOSTERING SERVICE CENTRAL COSTS,PARTRIDGE & PRINT,360.00,BOOKS,SCHOOLS & EDUCATIONAL SVC-NOT ELSEWHERE CLASSIFIED
23/04/2018,FOSTERING SERVICE CENTRAL COSTS,PARTRIDGE & PRINT,18.00,BOOKS,SCHOOLS & EDUCATIONAL SVC-NOT ELSEWHERE CLASSIFIED
23/04/2018,ENSEMBLES & TOURS,SOUTHERN PERCUSSION LT,85.50,CURRIC BOOKS,"MUSIC STORES-INSTRUMENTS, PIANOS, SHEET MUSIC"
23/04/2018,CHEYNE WALK COMMUNITY HOME,ARGOS LTD,363.93,EQUIPMENT,DISCOUNT STORES
23/04/2018,EPSOM & EWELL CMHRS CARE,HMCTS-SURREY125,75.00,FEES,FINES
23/04/2018,SOLD MANAGEMENT AND OVERHEADS,MOUNTAIN TRAINING,24.00,TRAINING EXPENSES EXTERNAL GENERAL,COMPUTER SOFTWARE STORES
23/04/2018,MALLOW CRESCENT,WWW.FURNITUREATWORK.CO,220.32,EQUIPMENT,"EQUIP, FURNITURE, HOME FURNSHNGS STRS (EXCPT APPL)"
23/04/2018,MALLOW CRESCENT,WWW.FURNITUREATWORK.CO,220.32,EQUIPMENT,"EQUIP, FURNITURE, HOME FURNSHNGS STRS (EXCPT APPL)"
23/04/2018,CYWS COMMISSIONING,SAINSBURYS SACAT 0828,13.15,PURCHASE OF FOOD (RAW MATERIALS),"GROCERY STORES, SUPERMARKETS"
23/04/2018,MALLOW CRESCENT,WWW.FURNITUREATWORK.CO,220.32,EQUIPMENT,"EQUIP, FURNITURE, HOME FURNSHNGS STRS (EXCPT APPL)"
23/04/2018,MALLOW CRESCENT,WWW.FURNITUREATWORK.CO,220.32,EQUIPMENT,"EQUIP, FURNITURE, HOME FURNSHNGS STRS (EXCPT APPL)"
23/04/2018,SE CARE - LAC,CLAYTON LEEDS ON LINE,74.10,CHILDREN ACT SEC 17 PAYMENTS,"LODGING-HOTELS,MOTELS,RESORTS-NOT CLASSIFIED"
23/04/2018,TRAINING AND DEVELOPMENT,COMPANION CONFEREN,240.00,SUBSISTENCE AND CONFERENCE EXPENSES,BUSINESS SERVICES-NOT ELSEWHERE CLASSIFIED
23/04/2018,CYWS COMMISSIONING,ROBERT DYAS HOLDNG LTD,15.98,CURRICULUM CONSUMABLES,HARDWARE STORES
23/04/2018,HILLSIDE,TESCO PFS 3924,5.38,PURCHASE OF FOOD (RAW MATERIALS),SERVICE STATIONS WITH OR WITHOUT ANCILLARY SERVICE
23/04/2018,PASSENGER TRANSPORT CO-ORDINATION CENTRE,WWW.SMYTHSTOYS.COM,69.99,EQUIPMENT,"GAME, TOY, AND HOBBY SHOPS"
23/04/2018,FAIRCROFT COMMUNITY HOME,WAITROSE 176,7.48,PURCHASE OF FOOD (RAW MATERIALS),"GROCERY STORES, SUPERMARKETS"
23/04/2018,HERITAGE PUBLIC SERVICE,BOOKER LIMITED ALDERSH,14.37,REFRESHMENT COSTS,CATERERS
23/04/2018,THE BRIDGE LEATHERHEAD,TIMPSON LTD,23.60,DAY TO DAY MAINTENANCE,"HAT CLEANING SHOPS, SHOE REPAIR SHOPS, SHOE SHINE"
23/04/2018,CS BUSINESS SUPPORT EAST,NATIONALITY DIRECTORAT,973.00,OTHER COMMUNITY CARE VOL,GOVERNMENT SERVICES-NOT ELSEWHERE CLASSIFIED
23/04/2018,GUILDFORD CMHRS CARE,HMCTS-SURREY125,75.00,FEES,FINES
23/04/2018,LIBERTAS COMMUNITY HOME,SAINSBURYS 0652,10.65,PURCHASE OF FOOD (RAW MATERIALS),"GROCERY STORES, SUPERMARKETS"
23/04/2018,LIBERTAS COMMUNITY HOME,SAINSBURYS 0652,1.25,EQUIPMENT,"GROCERY STORES, SUPERMARKETS"
23/04/2018,LIBERTAS COMMUNITY HOME,SAINSBURYS 0652,127.02,PURCHASE OF FOOD (RAW MATERIALS),"GROCERY STORES, SUPERMARKETS"
23/04/2018,HERITAGE PUBLIC SERVICE,WAITROSE 181,6.12,REFRESHMENT COSTS,"GROCERY STORES, SUPERMARKETS"
23/04/2018,LOWER MOLE COUNTRYSIDE PROJECT,AW CHAMPION LTD,24.41,PURCHASE OF BUILDING MATERIALS,"BUILDING MATERIALS, LUMBER STORES"
23/04/2018,LANGDOWN STAFF COST,GOWRINGS MOBILITY GROU,162.00,VEHICLE REPAIRS AND MAINTENANCE,"AUTO & TRUCK DLRS-SALES,SVC, REPRS,PRTS, & LEASING"
23/04/2018,CHMHS RAP TEAM,WH SMITH,70.54,STATIONERY,NEWS DEALERS AND NEWSSTANDS
23/04/2018,TARGETED INTERVENTION,TESCO STORE 2047,4.80,EDUC VISITS/HOLS/CAMPS/TOYS,"GROCERY STORES, SUPERMARKETS"
23/04/2018,CHEYNE WALK COMMUNITY HOME,TESCO STORES 2560,24.10,EQUIPMENT,"GROCERY STORES, SUPERMARKETS"
23/04/2018,TARGETED INTERVENTION,BLETCHINGLEY GOLF CLUB,6.00,EDUC VISITS/HOLS/CAMPS/TOYS,SPORTING GOODS STORES
23/04/2018,CHMHS RAP TEAM,POST OFFICE COUNTER,8.22,STATIONERY,POSTAL SERVICES-GOVERNMENT ONLY
23/04/2018,SE CARE - CP & COURT LAC,SURREY CC CARD PAY,31.00,OTHER COMMUNITY CARE VOL,COMPUTER NETWORK/INFORMATION SERVICES
23/04/2018,CS BUSINESS SUPPORT WEST,ROBERT DYAS HOLDNG LTD,5.79,EQUIPMENT,HARDWARE STORES
23/04/2018,DOWNLANDS COUNTRYSIDE PROJECT,AMAZON EU,28.00,EQUIPMENT,DIRECT MARKETING-OTHER DIRECT MARKETERS/NOT ELSEW.
23/04/2018,DOWNLANDS COUNTRYSIDE PROJECT,AMAZON EU,28.01,EQUIPMENT,DIRECT MARKETING-OTHER DIRECT MARKETERS/NOT ELSEW.
23/04/2018,SOLD DAY TO DAY OPERATIONS,AMAZON EU,60.71,EQUIPMENT,DIRECT MARKETING-OTHER DIRECT MARKETERS/NOT ELSEW.
23/04/2018,SOLD DAY TO DAY OPERATIONS,AMAZON UK MARKETPLACE,62.60,EQUIPMENT,BOOK STORES
23/04/2018,DOWNLANDS COUNTRYSIDE PROJECT,AMAZON EU,28.01,EQUIPMENT,DIRECT MARKETING-OTHER DIRECT MARKETERS/NOT ELSEW.
23/04/2018,DOWNLANDS COUNTRYSIDE PROJECT,AMAZON EU,28.01,EQUIPMENT,DIRECT MARKETING-OTHER DIRECT MARKETERS/NOT ELSEW.
23/04/2018,DEMOCRATIC SERVICES TEAM,AMAZON UK MARKETPLACE,64.95,CLEANING AND DOMESTIC SUPPLIES,BOOK STORES
23/04/2018,SE CARE - LAC,SURREY CC CARD PAY,31.00,OTHER COMMUNITY CARE VOL,COMPUTER NETWORK/INFORMATION SERVICES
23/04/2018,FAMILIES SPELTHORNE,TESCO STORE 2047,18.28,PURCHASE OF FOOD (RAW MATERIALS),"GROCERY STORES, SUPERMARKETS"
23/04/2018,ACL CENTRAL EXPENDITURE,AMAZON UK MARKETPLACE,24.48,EQUIPMENT,BOOK STORES
23/04/2018,FAMILIES SURREY HEATH,WAITROSE 514,7.83,REFRESHMENT COSTS,"GROCERY STORES, SUPERMARKETS"
23/04/2018,SE CARE - LAC,SURREY CC CARD PAY,31.00,OTHER COMMUNITY CARE VOL,COMPUTER NETWORK/INFORMATION SERVICES
23/04/2018,CHILDREN'S RIGHTS TEAM,WWW.CLOTHES2ORDER.COM,306.74,EQUIPMENT,MEN'S/WOMEN'S/CHILDREN'S UNIFORMS/COMMERCIAL CLOTH
23/04/2018,SE CARE - LAC,SURREY CC CARD PAY,31.00,OTHER COMMUNITY CARE VOL,COMPUTER NETWORK/INFORMATION SERVICES
23/04/2018,TANDRIDGE LOCALITY TEAM,JUST EAT,11.36,PURCHASE OF FOOD (RAW MATERIALS),FAST FOOD RESTAURANTS
23/04/2018,SE CARE - LAC,SURREY CC CARD PAY,11.00,OTHER COMMUNITY CARE VOL,COMPUTER NETWORK/INFORMATION SERVICES
23/04/2018,CORONERS DEEPCUT2,TRAVELODGE,79.00,WITNESS/JUROR EXP,TRAVELODGE
23/04/2018,CORONERS DEEPCUT2,TRAVELODGE,79.00,WITNESS/JUROR EXP,TRAVELODGE
23/04/2018,CHEYNE WALK COMMUNITY HOME,AMAZON UK MARKETPLACE,45.98,EQUIPMENT,BOOK STORES
23/04/2018,TRANSPORT,DIRECTA (UK)LTD,368.64,OPERATIONAL FIRE EQUIPMENT,INDUSTRIAL SUPPLIES NOT ELSEWHERE CLASSIFIED
23/04/2018,NE TEACHERS,BOOKPOINT LIMITED,133.00,BOOKS,"BOOKS,PERIODICALS AND NEWSPAPERS"
23/04/2018,HOPE SERVICE - WEST,SAINSBURYS SACAT 0683,2.00,PURCHASE OF FOOD (RAW MATERIALS),"GROCERY STORES, SUPERMARKETS"
23/04/2018,NE TEACHERS,BOOKPOINT LIMITED,57.00,BOOKS,"BOOKS,PERIODICALS AND NEWSPAPERS"
23/04/2018,HOPE SERVICE - WEST,SAINSBURYS 0683,3.10,REFRESHMENT COSTS,"GROCERY STORES, SUPERMARKETS"
23/04/2018,HOPE SERVICE - WEST,SAINSBURYS SACAT 0683,73.07,PURCHASE OF FOOD (RAW MATERIALS),"GROCERY STORES, SUPERMARKETS"
23/04/2018,LOWER MOLE COUNTRYSIDE PROJECT,TRAVIS PERKINS,103.15,PURCHASE OF BUILDING MATERIALS,"BUILDING MATERIALS, LUMBER STORES"
23/04/2018,HILLSIDE,LIDL UK CAMBERLEY,18.30,PURCHASE OF FOOD (RAW MATERIALS),"GROCERY STORES, SUPERMARKETS"
23/04/2018,SOLD DAY TO DAY OPERATIONS,SP SERVICES UK LTD,197.90,EQUIPMENT,"HEALTH PRACTITIONERS, MEDICAL SRVCS-NOT ELSEWHERE"
23/04/2018,ENSEMBLES & TOURS,MUSICROOM @BANKS MUSIC,49.99,CURRIC BOOKS,"MUSIC STORES-INSTRUMENTS, PIANOS, SHEET MUSIC"
23/04/2018,ACL CENTRAL EXPENDITURE,IANSYST LTD,153.50,EQUIPMENT,"COMP PROGRAMING,DATA PRCSNG,INTGRTD SYS DSGN SRVS"
23/04/2018,RUTH HOUSE,WWW.IKEA.COM,305.00,FURNITURE,"EQUIP, FURNITURE, HOME FURNSHNGS STRS (EXCPT APPL)"
23/04/2018,BURBANK COMMUNITY HOME,VALENTINOS,17.99,"CLOTHING, UNIFORM AND LAUNDRY",MEN'S/WOMEN'S/CHILDREN'S UNIFORMS/COMMERCIAL CLOTH
23/04/2018,LOWER MOLE COUNTRYSIDE PROJECT,MOLE COUNTRY STORES,13.62,PURCHASE OF BUILDING MATERIALS,AGRICULTURAL COOPERATIVES
23/04/2018,COVEHAM,SAINSBURYS TO YOU 0687,194.50,REFRESHMENT COSTS,"GROCERY STORES, SUPERMARKETS"
23/04/2018,RBDM - GENERAL,ROYAL CLIFTON HOTEL,86.40,SUBSISTENCE AND CONFERENCE EXPENSES,"LODGING-HOTELS,MOTELS,RESORTS-NOT CLASSIFIED"
23/04/2018,RBDM - GENERAL,ROYAL CLIFTON HOTEL,86.40,SUBSISTENCE AND CONFERENCE EXPENSES,"LODGING-HOTELS,MOTELS,RESORTS-NOT CLASSIFIED"
23/04/2018,MALLOW CRESCENT,TESCO STORE 2590,9.25,PURCHASE OF FOOD (RAW MATERIALS),"GROCERY STORES, SUPERMARKETS"
23/04/2018,MALLOW CRESCENT,TESCO STORE 2590,66.13,PURCHASE OF FOOD (RAW MATERIALS),"GROCERY STORES, SUPERMARKETS"
23/04/2018,YSS YOUTH CENTRE IMPROVEMENTS,NUKEY,10.08,DAY TO DAY MAINTENANCE,DIRECT MARKETING-CATALOG MERCHANTS
23/04/2018,MALLOW CRESCENT,TESCO STORE 2590,7.53,PURCHASE OF FOOD (RAW MATERIALS),"GROCERY STORES, SUPERMARKETS"
23/04/2018,MALLOW CRESCENT,TESCO STORE 2590,93.35,PURCHASE OF FOOD (RAW MATERIALS),"GROCERY STORES, SUPERMARKETS"
23/04/2018,EXTENDED HOPE,TESCO STORE 2590,99.98,PURCHASE OF FOOD (RAW MATERIALS),"GROCERY STORES, SUPERMARKETS"
23/04/2018,ACL CENTRAL EXPENDITURE,TESCO STORE 3149,142.42,REFRESHMENT COSTS,"GROCERY STORES, SUPERMARKETS"
23/04/2018,BURBANK COMMUNITY HOME,SAINSBURYS SACAT 0686,10.00,MEDICAL EXPENSES,"GROCERY STORES, SUPERMARKETS"
23/04/2018,ACL CENTRAL EXPENDITURE,TESCO STORE 2160,43.52,REFRESHMENT COSTS,"GROCERY STORES, SUPERMARKETS"
23/04/2018,MALLOW CRESCENT,SAINSBURYS TO YOU 0652,2.00,PURCHASE OF FOOD (RAW MATERIALS),"GROCERY STORES, SUPERMARKETS"
23/04/2018,MALLOW CRESCENT,SAINSBURYS TO YOU 0652,124.15,PURCHASE OF FOOD (RAW MATERIALS),"GROCERY STORES, SUPERMARKETS"
23/04/2018,MALLOW CRESCENT,SAINSBURYS TO YOU 0652,16.40,PURCHASE OF FOOD (RAW MATERIALS),"GROCERY STORES, SUPERMARKETS"
23/04/2018,MALLOW CRESCENT,SAINSBURYS TO YOU 0652,102.16,PURCHASE OF FOOD (RAW MATERIALS),"GROCERY STORES, SUPERMARKETS"
23/04/2018,HOPE SERVICE - WEST,SAINSBURYS TO YOU 0686,106.74,PURCHASE OF FOOD (RAW MATERIALS),"GROCERY STORES, SUPERMARKETS"
23/04/2018,LOCAL ASSISTANCE SCHEME,AMAZON SVCS EU-UK AMAZ,-48.18,FURNITURE,BOOK STORES
24/04/2018,TRANSPORT,PAYPAL  IKEALIMITED,183.00,FURNITURE,DEPARTMENT STORES
24/04/2018,TRAINING AND DEVELOPMENT,CAPITA BUSINESS SERVS,288.00,TRAINING EXPENSES EXTERNAL GENERAL,GOVERNMENT SERVICES-NOT ELSEWHERE CLASSIFIED
24/04/2018,LOCAL ASSISTANCE SCHEME,WWW.JOHNLEWIS.COM,254.00,FURNITURE,DEPARTMENT STORES
24/04/2018,SURREY ARTS GENERAL,EBUYER (UK) LTD,527.91,EQUIPMENT,HOUSEHOLD APPLIANCE STORES
24/04/2018,LOCAL ASSISTANCE SCHEME,WWW.JOHNLEWIS.COM,342.00,FURNITURE,DEPARTMENT STORES
24/04/2018,TARGETED INTERVENTION,TOP GOLF LTD,10.75,EDUC VISITS/HOLS/CAMPS/TOYS,"CLUBS-CNTRY,MBRSHIP(ATHLET,REC,SPRTS,PRIVATE GOLF"
24/04/2018,"SE REF, ASS & INT SERVICE - HUB 1",PREMIER INN,85.00,INDEPENDENT LIVING PLACEMENTS,PREMIER INN
24/04/2018,NW LOOKED AFTER TEAM,BRITISH A,666.60,MISCELLANEOUS STAFF TRAVEL,BRITISH A
24/04/2018,FAMILIES MOLE VALLEY,TESCO STORES 2812,12.76,PURCHASE OF FOOD (RAW MATERIALS),"GROCERY STORES, SUPERMARKETS"
24/04/2018,ACL CENTRAL EXPENDITURE,AMAZON UK MARKETPLACE,90.87,EQUIPMENT,BOOK STORES
24/04/2018,FAMILIES WOKING,ASDA STORES 4823,13.86,REFRESHMENT COSTS,"GROCERY STORES, SUPERMARKETS"
24/04/2018,SOLD CATERING,CO-OP GROUP FOOD,11.35,PURCHASE OF FOOD (RAW MATERIALS),"GROCERY STORES, SUPERMARKETS"
24/04/2018,TRANSPORT,PRO-TECH SAFETY SIG,428.04,OPERATIONAL FIRE EQUIPMENT,INDUSTRIAL SUPPLIES NOT ELSEWHERE CLASSIFIED
24/04/2018,TRANSPORT,LIDL UK  LEATHERHEAD,7.98,DAY TO DAY MAINTENANCE,"GROCERY STORES, SUPERMARKETS"
24/04/2018,FAIRCROFT COMMUNITY HOME,SAINSBURYS PFS0473,2.00,REFRESHMENT COSTS,SERVICE STATIONS WITH OR WITHOUT ANCILLARY SERVICE
24/04/2018,EBBISHAM CENTRE - EPSOM LIBRARY,SETON,476.40,FURNITURE,"DURABLE GOODS, NOT ELSEWHERE CLASSIFIED"
24/04/2018,LIBERTAS COMMUNITY HOME,WWW.TEAM-SPORT.CO.UK,70.00,EDUC VISITS/HOLS/CAMPS/TOYS,"AMUSEMENT PARKS,CARNIVALS,CIRCUS,FORTUNE TELLERS"
24/04/2018,ACL CENTRAL EXPENDITURE,AMAZON EU,11.26,EQUIPMENT,DIRECT MARKETING-OTHER DIRECT MARKETERS/NOT ELSEW.
24/04/2018,WOODLANDS COMMUNITY HOME,THE CARPHONE WAREH,27.99,EQUIPMENT,TELECOMMUNICATION EQUIPMENT INCL TELEPHONE SALES
24/04/2018,CHILDREN'S RIGHTS TEAM,PAYPAL  WBANDS24,104.93,EQUIPMENT,MISCELLANEOUS PUBLISHING AND PRINTING
24/04/2018,TRANSPORT,MONTROSE GUNS & TACKLE,106.49,"CLOTHING, UNIFORM AND LAUNDRY",SPORTING GOODS STORES
24/04/2018,IMT CRITICAL ENVIRONMENTS,COMMS EXP,79.20,COMPUTER HARDWARE,ELECTRONIC SALES
24/04/2018,COVEHAM,AMAZON UK MARKETPLACE,5.97,EQUIPMENT,BOOK STORES
24/04/2018,ACCOMMODATION CLEANING AND REFURBISHMENT,V A HUTCHISON FLOORING,64.42,CLEANING AND DOMESTIC SUPPLIES,FLOOR COVERING STORES
24/04/2018,TARGETED INTERVENTION,MCDONALDS,5.98,EDUC VISITS/HOLS/CAMPS/TOYS,FAST FOOD RESTAURANTS
24/04/2018,TARGETED INTERVENTION,SQUIRES GARDEN CENTRE,6.50,EDUC VISITS/HOLS/CAMPS/TOYS,LAWN AND GARDEN SUPPLY STORES
24/04/2018,TRANSPORT,IKEA LIMITED,4.00,FURNITURE,"EQUIP, FURNITURE, HOME FURNSHNGS STRS (EXCPT APPL)"
24/04/2018,TARGETED INTERVENTION,MCDONALDS,6.83,EDUC VISITS/HOLS/CAMPS/TOYS,FAST FOOD RESTAURANTS
24/04/2018,SOLD MANAGEMENT AND OVERHEADS,AMAZON UK MARKETPLACE,29.98,FURNITURE,BOOK STORES
24/04/2018,NE CARE - CP & COURT LAC,CURRYS ONLINE,249.99,OTHER COMMUNITY CARE VOL,ELECTRONIC SALES
24/04/2018,TARGETED INTERVENTION,TESCO STORES-2047,7.69,EDUC VISITS/HOLS/CAMPS/TOYS,"GROCERY STORES, SUPERMARKETS"
24/04/2018,RUTH HOUSE,TESCO STORE 2160,6.00,"CLOTHING, UNIFORM AND LAUNDRY","GROCERY STORES, SUPERMARKETS"
24/04/2018,SURREY THE GREAT WAR,NORTON  AP253128119,84.99,COMPUTER SERVICES,DIRECT MARKETING-CONTINUITY/SUBSCRIPTION MERCHANTS
24/04/2018,RUTH HOUSE,TESCO STORE 2160,17.10,"CLOTHING, UNIFORM AND LAUNDRY","GROCERY STORES, SUPERMARKETS"
24/04/2018,BURBANK COMMUNITY HOME,W M MORRISONS,15.50,EQUIPMENT,"GROCERY STORES, SUPERMARKETS"
24/04/2018,MISC EDCAT SUPPORT,WWW.PARAGON.NET.UK RT,8.63,COMPUTER SERVICES,DIRECT MARKETING-CONTINUITY/SUBSCRIPTION MERCHANTS
24/04/2018,TARGETED INTERVENTION,HALFORDS 0399,8.49,VEHICLE REPAIRS AND MAINTENANCE,BICYCLE SHOPS-SALES AND SERVICE
24/04/2018,TARGETED INTERVENTION,ARGOS GODALMING IN,40.00,EXAMINATION FEES,DISCOUNT STORES
24/04/2018,CHEYNE WALK COMMUNITY HOME,AMAZON UK MARKETPLACE,29.37,EQUIPMENT,BOOK STORES
24/04/2018,RUTH HOUSE,HOME BARGAINS BYFLEET,14.02,EQUIPMENT,HARDWARE STORES
24/04/2018,SOLD MANAGEMENT AND OVERHEADS,PAYPAL  CAMPINGLEIS,199.96,FURNITURE,SPORTING GOODS STORES
24/04/2018,TARGETED INTERVENTION,SUBWAY,4.80,EDUC VISITS/HOLS/CAMPS/TOYS,"EATING PLACES, RESTAURANTS"
24/04/2018,TARGETED INTERVENTION,SAINSBURYS SACAT 0004,3.60,EDUC VISITS/HOLS/CAMPS/TOYS,"GROCERY STORES, SUPERMARKETS"
24/04/2018,FAMILY GROUP CONFERENCES,AMAZON UK MARKETPLACE,10.16,BOOKS,BOOK STORES
24/04/2018,CHILDREN WITH DISABILITIES TEAM WEST,AMAZON UK MARKETPLACE,1.98,STATIONERY,BOOK STORES
24/04/2018,TRANSPORT,AMAZON UK MARKETPLACE,42.45,VEHICLE REPAIRS AND MAINTENANCE,BOOK STORES
24/04/2018,LOCAL ASSISTANCE SCHEME,WWW.JOHNLEWIS.COM,254.00,FURNITURE,DEPARTMENT STORES
24/04/2018,TARGETED INTERVENTION,SAINSBURYS 0670,1.94,EDUC VISITS/HOLS/CAMPS/TOYS,"GROCERY STORES, SUPERMARKETS"
24/04/2018,CHILDREN WITH DISABILITIES TEAM WEST,AMAZON UK MARKETPLACE,17.97,BOOKS,BOOK STORES
24/04/2018,TARGETED INTERVENTION,SAINSBURYS 0670,3.35,EDUC VISITS/HOLS/CAMPS/TOYS,"GROCERY STORES, SUPERMARKETS"
24/04/2018,HILLSIDE,SAINSBURYS 0675,6.00,PURCHASE OF FOOD (RAW MATERIALS),"GROCERY STORES, SUPERMARKETS"
24/04/2018,HILLSIDE,SAINSBURYS 0675,101.53,PURCHASE OF FOOD (RAW MATERIALS),"GROCERY STORES, SUPERMARKETS"
24/04/2018,SURREY ARTS GENERAL,MAGNIFICO,59.95,EQUIPMENT,"OPTICIANS,OPTICAL GOODS & EYEGLASSES"
24/04/2018,NW CARE - NON-LAC CP & COURT,GRO HM PASSPORT OFFICE,9.25,CHILDREN ACT SEC 17 PAYMENTS,GOVERNMENT SERVICES-NOT ELSEWHERE CLASSIFIED
24/04/2018,SURREY ARTS GENERAL,MAGNIFICO,108.00,EQUIPMENT,"OPTICIANS,OPTICAL GOODS & EYEGLASSES"
24/04/2018,CS BUSINESS SUPPORT EAST,AMAZON UK MARKETPLACE,10.99,EQUIPMENT,BOOK STORES
24/04/2018,MALLOW CRESCENT,WWW.FURNITUREATWORK.CO,220.32,EQUIPMENT,"EQUIP, FURNITURE, HOME FURNSHNGS STRS (EXCPT APPL)"
24/04/2018,RUTH HOUSE,W M MORRISONS,6.00,PURCHASE OF FOOD (RAW MATERIALS),"GROCERY STORES, SUPERMARKETS"
24/04/2018,RUTH HOUSE,W M MORRISONS,32.75,PURCHASE OF FOOD (RAW MATERIALS),"GROCERY STORES, SUPERMARKETS"
24/04/2018,SIGNS OF SAFETY TRAINING,AMAZON UK MARKETPLACE,"1,452.17",EQUIPMENT,BOOK STORES
24/04/2018,NE CARE - CP & COURT LAC,GRO HM PASSPORT OFFICE,27.75,OTHER COMMUNITY CARE VOL,GOVERNMENT SERVICES-NOT ELSEWHERE CLASSIFIED
24/04/2018,FAIRCROFT COMMUNITY HOME,TESCO STORE 2812,217.79,PURCHASE OF FOOD (RAW MATERIALS),"GROCERY STORES, SUPERMARKETS"
24/04/2018,ACL CENTRAL EXPENDITURE,TESCO STORE 2160,75.26,REFRESHMENT COSTS,"GROCERY STORES, SUPERMARKETS"
24/04/2018,WOODLANDS COMMUNITY HOME,SAINSBURYS TO YOU 0686,11.40,PURCHASE OF FOOD (RAW MATERIALS),"GROCERY STORES, SUPERMARKETS"
24/04/2018,WOODLANDS COMMUNITY HOME,SAINSBURYS TO YOU 0686,157.55,PURCHASE OF FOOD (RAW MATERIALS),"GROCERY STORES, SUPERMARKETS"
24/04/2018,SOLD MANAGEMENT AND OVERHEADS,AMZ DAILY BUY,-15.99,FURNITURE,MISCELLANEOUS AND SPECIALTY RETAIL STORES
24/04/2018,SPEECH & LANGUAGE THERAPY,AMZ AMAZON.CO.UK,-45.87,EDUC VISITS/HOLS/CAMPS/TOYS,MISCELLANEOUS AND SPECIALTY RETAIL STORES
24/04/2018,WARLINGHAM LIBRARY,AMAZON SVCS EU-UK AMAZ,-39.99,EQUIPMENT,BOOK STORES
24/04/2018,CHEYNE WALK COMMUNITY HOME,AMAZON UK MARKETPLACE,47.99,FURNITURE,BOOK STORES
25/04/2018,ENSEMBLES & TOURS,WWW.GAK.CO.UK,198.39,EQUIPMENT,"MUSIC STORES-INSTRUMENTS, PIANOS, SHEET MUSIC"
25/04/2018,TRANSPORT,CALLANCOTE LTD,792.00,OPERATIONAL FIRE EQUIPMENT,INDUSTRIAL SUPPLIES NOT ELSEWHERE CLASSIFIED
25/04/2018,TRANSPORT,CLEMENTS LOCKSMITH,187.80,OPERATIONAL FIRE EQUIPMENT,HARDWARE STORES
25/04/2018,TRANSPORT,ARCO LTD,27.40,"CLOTHING, UNIFORM AND LAUNDRY",INDUSTRIAL SUPPLIES NOT ELSEWHERE CLASSIFIED
25/04/2018,TARGETED INTERVENTION,PRIMARK 442,35.60,EXAMINATION FEES,FAMILY CLOTHING STORES
25/04/2018,NW NIL RECOURSE TO PUBLIC FUNDS CARE,THE WOKING HOTEL,931.28,OTHER COMMUNITY CARE VOL,"LODGING-HOTELS,MOTELS,RESORTS-NOT CLASSIFIED"
25/04/2018,LEAVING CARE TEAM,BRITISH A,130.21,NON-STAFF RELATED TRANSPORT COSTS,BRITISH A
25/04/2018,LOCAL ASSISTANCE SCHEME,WWW.JOHNLEWIS.COM,28.50,FURNITURE,DEPARTMENT STORES
25/04/2018,NW NIL RECOURSE TO PUBLIC FUNDS CARE,PREMIER INN,583.00,CHILDREN ACT SEC 17 PAYMENTS,PREMIER INN
25/04/2018,NE EDUCATION PSYCHOLOGISTS,AMAZON EU,91.76,BOOKS,DIRECT MARKETING-OTHER DIRECT MARKETERS/NOT ELSEW.
25/04/2018,WOODLANDS COMMUNITY HOME,AMAZON UK MARKETPLACE,22.38,EQUIPMENT,BOOK STORES
25/04/2018,FAMILIES SPELTHORNE,FARMFOODS- SUNBURY,8.16,REFRESHMENT COSTS,"GROCERY STORES, SUPERMARKETS"
25/04/2018,FAMILIES ELMBRIDGE,SAINSBURYS 0687,15.50,REFRESHMENT COSTS,"GROCERY STORES, SUPERMARKETS"
25/04/2018,HEAD OF CHILDREN'S SERVICE,WWW.PAPAJOHNS.CO.U,134.94,REFRESHMENT COSTS,"EATING PLACES, RESTAURANTS"
25/04/2018,RUTH HOUSE,SAINSBURYS SACAT 0652,9.00,EDUC VISITS/HOLS/CAMPS/TOYS,"GROCERY STORES, SUPERMARKETS"
25/04/2018,RUTH HOUSE,ARGOS BURPHAM,3.99,EQUIPMENT,DISCOUNT STORES
25/04/2018,RUTH HOUSE,ARGOS BURPHAM,13.98,EDUC VISITS/HOLS/CAMPS/TOYS,DISCOUNT STORES
25/04/2018,DOWNLANDS COUNTRYSIDE PROJECT,NORTHPOINT VET SERVICE,790.77,FEES,VETERINARY SERVICES
25/04/2018,ARUNDEL,TESCO STORES 5999,195.57,REFRESHMENT COSTS,"GROCERY STORES, SUPERMARKETS"
25/04/2018,ACL CENTRAL EXPENDITURE,WAITROSE 181,4.15,REFRESHMENT COSTS,"GROCERY STORES, SUPERMARKETS"
25/04/2018,COVEHAM,EPSOM PLAYHOUSE,18.00,EDUC VISITS/HOLS/CAMPS/TOYS,MISCELLANEOUS GENERAL MERCHANDISE
25/04/2018,DOWNLANDS COUNTRYSIDE PROJECT,TESCO STORE 2160,24.00,EQUIPMENT,"GROCERY STORES, SUPERMARKETS"
25/04/2018,RUTH HOUSE,SOUTHPAW,103.20,EDUC VISITS/HOLS/CAMPS/TOYS,SPORTING GOODS STORES
25/04/2018,ACL CENTRAL EXPENDITURE,CARTRIDGEPEOPLE.COM,137.50,EQUIPMENT,STATIONERY/OFFICE SUPPLIES/PRINTING & WRITING PAP.
25/04/2018,COVEHAM,ELMBRIDGE BC (CALL CTR,169.85,DAY TO DAY MAINTENANCE,GOVERNMENT SERVICES-NOT ELSEWHERE CLASSIFIED
25/04/2018,ACL CENTRAL EXPENDITURE,AMAZON EU,14.49,EQUIPMENT,DIRECT MARKETING-OTHER DIRECT MARKETERS/NOT ELSEW.
25/04/2018,ACL CENTRAL EXPENDITURE,AMAZON UK MARKETPLACE,37.98,EQUIPMENT,BOOK STORES
25/04/2018,SERVICE DELIVERY RESOURCES,PARMA INDUSTRIES,561.89,CLEANING MATERIALS,MOTOR VEHICLE SUPPLIES AND NEW PARTS
25/04/2018,LANGDOWN STAFF COST,AMAZON UK MARKETPLACE,43.00,STATIONERY,BOOK STORES
25/04/2018,KARIBU COMMUNITY HOME,ARGOS KILN LANE IN,24.99,EQUIPMENT,DISCOUNT STORES
25/04/2018,SOLD CONFRENCE,PCS SILVERLINE CARS,270.00,HIRE OF VEHICLES,LIMOUSINES AND TAXICABS
25/04/2018,SOLD DAY TO DAY OPERATIONS,AMAZON UK MARKETPLACE,25.20,EQUIPMENT,BOOK STORES
25/04/2018,NW CP & COURT TEAM,WWW.ARGOS.CO.UK,149.99,OTHER COMMUNITY CARE VOL,DISCOUNT STORES
25/04/2018,ROW AREA1 GFD SYH RNY SPL               ,SCREWFIX DIRECT,77.76,PURCHASE OF BUILDING MATERIALS,"BUILDING MATERIALS, LUMBER STORES"
25/04/2018,TRANSPORT,HOLYWELL.COM,615.48,OPERATIONAL FIRE EQUIPMENT,COMPUTER SOFTWARE STORES
25/04/2018,TARGETED INTERVENTION,HISTORIC ROYAL,3.20,EDUC VISITS/HOLS/CAMPS/TOYS,AUTOMOBILE PARKING LOTS AND GARAGES
25/04/2018,RUTH HOUSE,AMAZON EU,39.84,EDUC VISITS/HOLS/CAMPS/TOYS,DIRECT MARKETING-OTHER DIRECT MARKETERS/NOT ELSEW.
25/04/2018,RUTH HOUSE,AMAZON EU,30.83,EDUC VISITS/HOLS/CAMPS/TOYS,DIRECT MARKETING-OTHER DIRECT MARKETERS/NOT ELSEW.
25/04/2018,TARGETED INTERVENTION,SPELTHORNE BOROUGH COU,2.30,MISCELLANEOUS STAFF TRAVEL,AUTOMOBILE PARKING LOTS AND GARAGES
25/04/2018,TARGETED INTERVENTION,BURGER KING GUILDFORD,6.72,EDUC VISITS/HOLS/CAMPS/TOYS,FAST FOOD RESTAURANTS
25/04/2018,TARGETED INTERVENTION,CARD FACTORY,7.12,EXAMINATION FEES,"GIFT, CARD, NOVELTY AND SOUVENIR SHOPS"
25/04/2018,TARGETED INTERVENTION,KINGSCROFT SUBWAY,3.50,EDUC VISITS/HOLS/CAMPS/TOYS,"EATING PLACES, RESTAURANTS"
25/04/2018,TARGETED INTERVENTION,CH&CO CATERING LTD,14.60,EDUC VISITS/HOLS/CAMPS/TOYS,CATERERS
25/04/2018,TARGETED INTERVENTION,HIST ROYAL PALACES,34.05,EDUC VISITS/HOLS/CAMPS/TOYS,RECREATION SERVICES (NOT ELSEWHERE CLASSIFIED)
25/04/2018,TS SERVICE MANAGEMENT,TRADING STANDARDS INST,72.00,SUBSISTENCE AND CONFERENCE EXPENSES,DIRECT MARKETING-COMBINATION CATALOG/RETAIL MERCH.
25/04/2018,BURBANK COMMUNITY HOME,WOKINGHIGH.SURREY.SCH.,22.00,EDUC VISITS/HOLS/CAMPS/TOYS,"SCHOOLS, ELEMENTARY AND SECONDARY"
25/04/2018,TARGETED INTERVENTION,AIRHOP TRAMPELINE PARK,36.00,EDUC VISITS/HOLS/CAMPS/TOYS,RECREATIONAL AND SPORTING CAMPS
25/04/2018,SOLD DAY TO DAY OPERATIONS,AMAZON EU,43.50,EQUIPMENT,DIRECT MARKETING-OTHER DIRECT MARKETERS/NOT ELSEW.
25/04/2018,CS BUSINESS SUPPORT EAST,AMAZON UK MARKETPLACE,18.98,OTHER COMMUNITY CARE VOL,BOOK STORES
25/04/2018,CHILDREN'S RIGHTS TEAM,AMAZON UK MARKETPLACE,114.00,EQUIPMENT,BOOK STORES
25/04/2018,PROPERTY OPERATIONS TEAM,SCREWFIX GUILDFORD,91.01,PURCHASE OF BUILDING MATERIALS,"BUILDING MATERIALS, LUMBER STORES"
25/04/2018,TARGETED INTERVENTION,WELCOME BREAK STARBUCK,5.80,EDUC VISITS/HOLS/CAMPS/TOYS,"MISC FOOD STORE-CONVENIENCE,MRKT,SPLTY,VENDNG MACS"
25/04/2018,TARGETED INTERVENTION,WELCOME BREAK STARBUCK,10.00,EDUC VISITS/HOLS/CAMPS/TOYS,"MISC FOOD STORE-CONVENIENCE,MRKT,SPLTY,VENDNG MACS"
25/04/2018,SOLD CURRICULUM PROGRAMME DELIVERY,EB  THE FORGOTTEN MAJO,69.62,EDUC VISITS/HOLS/CAMPS/TOYS,BUSINESS SERVICES-NOT ELSEWHERE CLASSIFIED
25/04/2018,ALP EDGE OF CARE,TWO RIVERS CAR PK,2.20,EDUC VISITS/HOLS/CAMPS/TOYS,AUTOMOBILE PARKING LOTS AND GARAGES
25/04/2018,TARGETED INTERVENTION,SAINSBURYS 0670,5.59,EDUC VISITS/HOLS/CAMPS/TOYS,"GROCERY STORES, SUPERMARKETS"
25/04/2018,RBDM - GENERAL,AMAZON UK MARKETPLACE,93.73,STATIONERY,BOOK STORES
25/04/2018,BURBANK COMMUNITY HOME,COSTA COFFEE 43038215,5.75,REFRESHMENT COSTS,FAST FOOD RESTAURANTS
25/04/2018,HILLSIDE,SAINSBURYS 0675,68.19,PURCHASE OF FOOD (RAW MATERIALS),"GROCERY STORES, SUPERMARKETS"
25/04/2018,DOWNLANDS COUNTRYSIDE PROJECT,TESCO STORE 3066,24.00,EQUIPMENT,"GROCERY STORES, SUPERMARKETS"
25/04/2018,SE CARE - NON-LAC CP & COURT,ARGOS RETAIL GROUP,14.99,OTHER COMMUNITY CARE VOL,DISCOUNT STORES
25/04/2018,TARGETED INTERVENTION,IZ  EQUIPPERS CHUR,2.50,EDUC VISITS/HOLS/CAMPS/TOYS,"ORGANIZATIONS, CHARITABLE AND SOCIAL SERVICES"
25/04/2018,PROPERTY OPERATIONS TEAM,GUILDFORD LOCK & SAFE,19.73,PURCHASE OF BUILDING MATERIALS,HARDWARE EQUIPMENT AND SUPPLIES
25/04/2018,ALP EDGE OF CARE,COSTA COFFEE,4.30,EDUC VISITS/HOLS/CAMPS/TOYS,FAST FOOD RESTAURANTS
25/04/2018,RUTH HOUSE,AMAZON UK MARKETPLACE,29.50,EQUIPMENT,BOOK STORES
25/04/2018,BURBANK COMMUNITY HOME,COSTA COFFEE 43041615,6.65,REFRESHMENT COSTS,FAST FOOD RESTAURANTS
25/04/2018,TRANSPORT,TOOLBANK.COM V/TERM,43.51,OPERATIONAL FIRE EQUIPMENT,ELECTRICAL PARTS AND EQUIPMENT
25/04/2018,SE CARE - CP & COURT LAC,LB CROYDON,36.00,OTHER COMMUNITY CARE VOL,GOVERNMENT SERVICES-NOT ELSEWHERE CLASSIFIED
25/04/2018,ACL CENTRAL EXPENDITURE,WWW.PEARSONSGLASS.COM,49.84,EQUIPMENT,"GLASS, PAINT, WALLPAPER STORES"
25/04/2018,SE CARE - CP & COURT LAC,WWW.IKEA.COM,125.00,OTHER COMMUNITY CARE VOL,"EQUIP, FURNITURE, HOME FURNSHNGS STRS (EXCPT APPL)"
25/04/2018,APPLEWOOD,AMAZON UK MARKETPLACE,30.28,STATIONERY,BOOK STORES
25/04/2018,HOPE SERVICE - WEST,TESCO STORES 3399,11.67,PURCHASE OF FOOD (RAW MATERIALS),"GROCERY STORES, SUPERMARKETS"
25/04/2018,ACL CENTRAL EXPENDITURE,TESCO STORE 2160,63.47,REFRESHMENT COSTS,"GROCERY STORES, SUPERMARKETS"
25/04/2018,BURBANK COMMUNITY HOME,SAINSBURYS TO YOU 0686,306.84,PURCHASE OF FOOD (RAW MATERIALS),"GROCERY STORES, SUPERMARKETS"
25/04/2018,CHEYNE WALK COMMUNITY HOME,TESCO-STORES 6647,223.76,PURCHASE OF FOOD (RAW MATERIALS),"GROCERY STORES, SUPERMARKETS"
25/04/2018,FAIRCROFT COMMUNITY HOME,TESCO STORE 2812,128.90,PURCHASE OF FOOD (RAW MATERIALS),"GROCERY STORES, SUPERMARKETS"
25/04/2018,SOUTH WEST OUTREACH,SAINSBURYS TO YOU 0652,40.49,PURCHASE OF FOOD (RAW MATERIALS),"GROCERY STORES, SUPERMARKETS"
25/04/2018,SOUTH WEST OUTREACH,SAINSBURYS TO YOU 0652,75.43,PURCHASE OF FOOD (RAW MATERIALS),"GROCERY STORES, SUPERMARKETS"
25/04/2018,NE EDUCATION PSYCHOLOGISTS,AMAZON EU,90.33,BOOKS,DIRECT MARKETING-OTHER DIRECT MARKETERS/NOT ELSEW.
25/04/2018,FIRE SERVICES IT,AMAZON UK MARKETPLACE,17.97,COMPUTER HARDWARE,BOOK STORES
25/04/2018,SEND TRANSPORT COMMISSIONING,LOGMEIN GOTOMEETING,238.80,COMPUTER SOFTWARE,DIRECT MARKETING-CONTINUITY/SUBSCRIPTION MERCHANTS
25/04/2018,COVEHAM,AMZ ALMOST ANYTHING LT,-33.99,FIXTURES AND FITTINGS,MISCELLANEOUS AND SPECIALTY RETAIL STORES
25/04/2018,COVEHAM,AMAZON UK MARKETPLACE,142.00,FIXTURES AND FITTINGS,MISCELLANEOUS AND SPECIALTY RETAIL STORES
25/04/2018,SURREY ARTS GENERAL,GMAV.CO.UK,-430.80,EQUIPMENT,MISCELLANEOUS AND SPECIALTY RETAIL STORES
25/04/2018,SOLD MANAGEMENT AND OVERHEADS,PAYPAL  CAMPINGKITE,-263.95,FURNITURE,SPORTING GOODS STORES
25/04/2018,FAMILY GROUP CONFERENCES,AMAZON EU,82.30,BOOKS,DIRECT MARKETING-OTHER DIRECT MARKETERS/NOT ELSEW.
26/04/2018,SW CARE - NON-LAC CP & COURT,SURREY CC CARD PAY,-11.00,OTHER COMMUNITY CARE VOL,COMPUTER NETWORK/INFORMATION SERVICES
26/04/2018,NW CARE - LAC,SURREY CC CARD PAY,-21.00,OTHER COMMUNITY CARE VOL,COMPUTER NETWORK/INFORMATION SERVICES
26/04/2018,FAIRCROFT COMMUNITY HOME,MCDONALDS,1.98,REFRESHMENT COSTS,FAST FOOD RESTAURANTS
26/04/2018,FAIRCROFT COMMUNITY HOME,MCDONALDS,13.78,REFRESHMENT COSTS,FAST FOOD RESTAURANTS
26/04/2018,TARGETED INTERVENTION,PRIMARK 442,48.00,EXAMINATION FEES,FAMILY CLOTHING STORES
26/04/2018,LOCAL ASSISTANCE SCHEME,WWW.JOHNLEWIS.COM,254.00,FURNITURE,DEPARTMENT STORES
26/04/2018,RUTH HOUSE,PRIMARK,7.50,EQUIPMENT,FAMILY CLOTHING STORES
26/04/2018,RUTH HOUSE,PRIMARK,18.10,"CLOTHING, UNIFORM AND LAUNDRY",FAMILY CLOTHING STORES
26/04/2018,RUTH HOUSE,PRIMARK,36.50,"CLOTHING, UNIFORM AND LAUNDRY",FAMILY CLOTHING STORES
26/04/2018,LOCAL DELIVERY GROUP,AMAZON UK MARKETPLACE,32.69,EQUIPMENT,BOOK STORES
26/04/2018,LOCAL DELIVERY GROUP,AMAZON EU,75.72,EQUIPMENT,DIRECT MARKETING-OTHER DIRECT MARKETERS/NOT ELSEW.
26/04/2018,CHEYNE WALK COMMUNITY HOME,INTERIOR GOODS DIRECT,88.82,EQUIPMENT,MISCELLANEOUS HOUSE FURNISHING SPECIALTY SHOPS
26/04/2018,ACL CENTRAL EXPENDITURE,WAITROSE 181,5.70,REFRESHMENT COSTS,"GROCERY STORES, SUPERMARKETS"
26/04/2018,FAIRCROFT COMMUNITY HOME,WELCOME BREAK STARBUCK,8.09,REFRESHMENT COSTS,"MISC FOOD STORE-CONVENIENCE,MRKT,SPLTY,VENDNG MACS"
26/04/2018,FAIRCROFT COMMUNITY HOME,KFC,6.59,REFRESHMENT COSTS,FAST FOOD RESTAURANTS
26/04/2018,FAIRCROFT COMMUNITY HOME,KFC,11.08,REFRESHMENT COSTS,FAST FOOD RESTAURANTS
26/04/2018,BURBANK COMMUNITY HOME,ANDUFF CARWASH,5.00,EDUC VISITS/HOLS/CAMPS/TOYS,CAR WASHES
26/04/2018,FAMILIES MOLE VALLEY,LIDL UK  LEATHERHEAD,16.26,PURCHASE OF FOOD (RAW MATERIALS),"GROCERY STORES, SUPERMARKETS"
26/04/2018,LOCAL DELIVERY GROUP,AMAZON UK MARKETPLACE,5.15,EQUIPMENT,BOOK STORES
26/04/2018,EXTENDED HOPE,SAINSBURYS 0652,29.05,CURRICULUM CONSUMABLES,"GROCERY STORES, SUPERMARKETS"
26/04/2018,BURBANK COMMUNITY HOME,HALFORDS 0421,20.00,EDUC VISITS/HOLS/CAMPS/TOYS,BICYCLE SHOPS-SALES AND SERVICE
26/04/2018,SOLD DAY TO DAY OPERATIONS,AMAZON EU,26.73,BOOKS,DIRECT MARKETING-OTHER DIRECT MARKETERS/NOT ELSEW.
26/04/2018,TRANSPORT,AMAZON UK MARKETPLACE,84.00,"CLOTHING, UNIFORM AND LAUNDRY",BOOK STORES
26/04/2018,BURBANK COMMUNITY HOME,3C_ WOKING BOROUGH COU,1.40,MISCELLANEOUS STAFF TRAVEL,AUTOMOBILE PARKING LOTS AND GARAGES
26/04/2018,SOLD DAY TO DAY OPERATIONS,WWW.CADETDIRECT.COM,48.38,EQUIPMENT,MISCELLANEOUS AND SPECIALTY RETAIL STORES
26/04/2018,ARUNDEL,WILKO RETAIL LIMIT,9.05,EQUIPMENT,HOUSEHOLD APPLIANCE STORES
26/04/2018,LOCAL ASSISTANCE SCHEME,WWW.JOHNLEWIS.COM,76.00,FURNITURE,DEPARTMENT STORES
26/04/2018,BURBANK COMMUNITY HOME,CREAMS - WOKING KIOSK,14.40,REFRESHMENT COSTS,"EATING PLACES, RESTAURANTS"
26/04/2018,ARUNDEL,TESCO STORES 5999,85.42,REFRESHMENT COSTS,"GROCERY STORES, SUPERMARKETS"
26/04/2018,ARUNDEL,TESCO STORES 5999,12.00,REFRESHMENT COSTS,"GROCERY STORES, SUPERMARKETS"
26/04/2018,SOLD CATERING,SAINSBURYS 2053,65.15,PURCHASE OF FOOD (RAW MATERIALS),"GROCERY STORES, SUPERMARKETS"
26/04/2018,WASTE MINIMISATION,AMAZON UK MARKETPLACE,18.97,EQUIPMENT,BOOK STORES
26/04/2018,SE EDUCATION PSYCHOLOGISTS,GL-ASSESMENT.CO.UK,113.78,EQUIPMENT,BOOK STORES
26/04/2018,COBHAM CHILDRENS CENTRE,WAITROSE 176,9.55,REFRESHMENT COSTS,"GROCERY STORES, SUPERMARKETS"
26/04/2018,FAMILIES ELMBRIDGE,SAINSBURYS 2663,11.20,PURCHASE OF FOOD (RAW MATERIALS),"GROCERY STORES, SUPERMARKETS"
26/04/2018,HOPE SERVICE - WEST,AMAZON UK MARKETPLACE,40.43,BOOKS,BOOK STORES
26/04/2018,RUTH HOUSE,DUNELM ONLINE ORDER,97.95,EQUIPMENT,"DRAPERY, UPOLSTERY, AND WINDOW COVERINGS STORES"
26/04/2018,IMT CRITICAL ENVIRONMENTS,MILK&MORE,7.80,REFRESHMENT COSTS,DAIRY PRODUCTS STORES
26/04/2018,TARGETED INTERVENTION,SAINSBURYS SACAT 0686,12.00,EDUC VISITS/HOLS/CAMPS/TOYS,"GROCERY STORES, SUPERMARKETS"
26/04/2018,FAMILIES SPELTHORNE,SAINSBURYS 0679,3.80,REFRESHMENT COSTS,"GROCERY STORES, SUPERMARKETS"
26/04/2018,WASTE MINIMISATION,WWW.LETSRECYCLE.COM,238.80,PUBLICITY,ADVERTISING SERVICES
26/04/2018,SURREY WASTE PARTNERSHIP,WWW.LETSRECYCLE.COM,238.80,PUBLICITY,ADVERTISING SERVICES
26/04/2018,ACL CENTRAL EXPENDITURE,AMAZON EU,11.51,EQUIPMENT,DIRECT MARKETING-OTHER DIRECT MARKETERS/NOT ELSEW.
26/04/2018,TARGETED INTERVENTION,SPELTHORNE BOROUGH COU,1.30,MISCELLANEOUS STAFF TRAVEL,AUTOMOBILE PARKING LOTS AND GARAGES
26/04/2018,HOPE SERVICE - WEST,B & Q 1018,5.95,CURRICULUM CONSUMABLES,"BUILDING MATERIALS, LUMBER STORES"
26/04/2018,TRANSPORT,PAYPAL  USBAGRICULT,5.25,VEHICLE REPAIRS AND MAINTENANCE,LAWN AND GARDEN SUPPLY STORES
26/04/2018,FIRE & RESCUE COMMUNITY SAFETY,3C_ WOKING BOROUGH COU,6.50,MISCELLANEOUS STAFF TRAVEL,AUTOMOBILE PARKING LOTS AND GARAGES
26/04/2018,SURREY ARTS GENERAL,NESPRESSO UK/INET,198.00,REFRESHMENT COSTS,MISCELLANEOUS GENERAL MERCHANDISE
26/04/2018,CORONERS DEEPCUT2,GREATER ANGLIA TRAINS,100.00,WITNESS/JUROR EXP,PASSENGER RAILWAYS
26/04/2018,CORONERS DEEPCUT2,TRAVELODGE,79.00,WITNESS/JUROR EXP,TRAVELODGE
26/04/2018,FAMILIES SURREY HEATH,CO-OP GROUP 350033,2.83,REFRESHMENT COSTS,"GROCERY STORES, SUPERMARKETS"
26/04/2018,FAMILIES EPSOM AND EWELL,SAINSBURYS 0683,32.70,CURRICULUM CONSUMABLES,"GROCERY STORES, SUPERMARKETS"
26/04/2018,RUTH HOUSE,ASDA  STORES 4775,7.89,PURCHASE OF FOOD (RAW MATERIALS),"GROCERY STORES, SUPERMARKETS"
26/04/2018,TARGETED INTERVENTION,SQUIRES GARDEN CENTRE,5.25,EDUC VISITS/HOLS/CAMPS/TOYS,LAWN AND GARDEN SUPPLY STORES
26/04/2018,RUTH HOUSE,3C_ WOKING BOROUGH COU,2.80,VEHICLE RUNNING COSTS,AUTOMOBILE PARKING LOTS AND GARAGES
26/04/2018,TARGETED INTERVENTION,ROYAL ARMOURIES TRADIN,8.50,EDUC VISITS/HOLS/CAMPS/TOYS,"GIFT, CARD, NOVELTY AND SOUVENIR SHOPS"
26/04/2018,SW CARE - CP & COURT LAC,GRO HM PASSPORT OFFICE,9.25,OTHER COMMUNITY CARE VOL,GOVERNMENT SERVICES-NOT ELSEWHERE CLASSIFIED
26/04/2018,TRANSPORT,SURPLUS & OUTDOORS,82.99,OPERATIONAL FIRE EQUIPMENT,"SPORTS APPAREL, RIDING APPAREL STORES"
26/04/2018,SW CARE - NON-LAC CP & COURT,SURREY CC CARD PAY,21.00,OTHER COMMUNITY CARE VOL,COMPUTER NETWORK/INFORMATION SERVICES
26/04/2018,RUTH HOUSE,H&M,27.98,"CLOTHING, UNIFORM AND LAUNDRY",MEN'S AND WOMEN'S CLOTHING STORES
26/04/2018,CHEYNE WALK COMMUNITY HOME,AMFBOWLING.CO.UK,23.63,EDUC VISITS/HOLS/CAMPS/TOYS,"CLUBS-CNTRY,MBRSHIP(ATHLET,REC,SPRTS,PRIVATE GOLF"
26/04/2018,FAIRCROFT COMMUNITY HOME,AMAZON EU,20.39,EQUIPMENT,DIRECT MARKETING-OTHER DIRECT MARKETERS/NOT ELSEW.
26/04/2018,NW CARE - NON-LAC CP & COURT,WWW.ARGOS.CO.UK,179.99,EQUIPMENT,DISCOUNT STORES
26/04/2018,SE CARE - LAC,LBSUTTON,30.00,OTHER COMMUNITY CARE VOL,GOVERNMENT SERVICES-NOT ELSEWHERE CLASSIFIED
26/04/2018,SW CARE - CP & COURT LAC,SURREY CC CARD PAY,11.00,OTHER COMMUNITY CARE VOL,COMPUTER NETWORK/INFORMATION SERVICES
26/04/2018,TARGETED INTERVENTION,STARBUCKS,5.15,EDUC VISITS/HOLS/CAMPS/TOYS,FAST FOOD RESTAURANTS
26/04/2018,TARGETED INTERVENTION,STARBUCKS,8.90,EDUC VISITS/HOLS/CAMPS/TOYS,FAST FOOD RESTAURANTS
26/04/2018,TARGETED INTERVENTION,STARBUCKS,8.80,EDUC VISITS/HOLS/CAMPS/TOYS,FAST FOOD RESTAURANTS
26/04/2018,SW CARE - CP & COURT LAC,SURREY CC CARD PAY,11.00,OTHER COMMUNITY CARE VOL,COMPUTER NETWORK/INFORMATION SERVICES
26/04/2018,HILLSIDE,SAINSBURYS 0675,82.10,PURCHASE OF FOOD (RAW MATERIALS),"GROCERY STORES, SUPERMARKETS"
26/04/2018,ACL CENTRAL EXPENDITURE,MILK & MORE OFFLINE,26.73,REFRESHMENT COSTS,"MISC FOOD STORE-CONVENIENCE,MRKT,SPLTY,VENDNG MACS"
26/04/2018,TARGETED INTERVENTION,COSTA CHERTSEY,11.50,EDUC VISITS/HOLS/CAMPS/TOYS,"MISC FOOD STORE-CONVENIENCE,MRKT,SPLTY,VENDNG MACS"
26/04/2018,NW CARE - NON-LAC CP & COURT,SURREY CC CARD PAY,21.00,OTHER COMMUNITY CARE VOL,COMPUTER NETWORK/INFORMATION SERVICES
26/04/2018,TRANSPORT,WWW.ANSONUK.CO.UK,"1,768.80",OPERATIONAL FIRE EQUIPMENT,COMPUTER SOFTWARE STORES
26/04/2018,CONSORT HOUSE REDHILL,WILKO RETAIL LIMIT,8.55,CLEANING AND DOMESTIC SUPPLIES,HOUSEHOLD APPLIANCE STORES
26/04/2018,TRANSPORT,OMBINDING.CO.UK,123.55,STATIONERY,"OFFICE, SCHOOL SUPPLY, AND STATIONERY STORES"
26/04/2018,SW CARE - NON-LAC CP & COURT,SURREY CC CARD PAY,21.00,OTHER COMMUNITY CARE VOL,COMPUTER NETWORK/INFORMATION SERVICES
26/04/2018,DITTONS & CLAYGATE CC,ST JOHN AMBULANCE,222.00,EQUIPMENT,"ORGANIZATIONS, CHARITABLE AND SOCIAL SERVICES"
26/04/2018,TARGETED INTERVENTION,COSTA COFFEE 43038140,7.15,EDUC VISITS/HOLS/CAMPS/TOYS,FAST FOOD RESTAURANTS
26/04/2018,NW CARE - LAC,SURREY CC CARD PAY,11.00,OTHER COMMUNITY CARE VOL,COMPUTER NETWORK/INFORMATION SERVICES
26/04/2018,NE CARE - CP & COURT LAC,GRO HM PASSPORT OFFICE,210.60,OTHER COMMUNITY CARE VOL,GOVERNMENT SERVICES-NOT ELSEWHERE CLASSIFIED
26/04/2018,BURBANK COMMUNITY HOME,WAYFAIR STORES LIM,97.99,FURNITURE,DIRECT MARKETING-COMBINATION CATALOG/RETAIL MERCH.
26/04/2018,HOPE SERVICE - WEST,TESCO STORES 6320,4.59,PURCHASE OF FOOD (RAW MATERIALS),"GROCERY STORES, SUPERMARKETS"
26/04/2018,CENTRAL COMMUNICATIONS,WWW.QA.COM,456.00,PUBLICITY,SCHOOLS & EDUCATIONAL SVC-NOT ELSEWHERE CLASSIFIED
26/04/2018,SW CARE - LAC,RED KANGAROO,43.96,EDUC VISITS/HOLS/CAMPS/TOYS,RECREATION SERVICES (NOT ELSEWHERE CLASSIFIED)
26/04/2018,SW LOOKED AFTER TEAM,TRIP.COM CTRIPCOM,208.76,MISCELLANEOUS STAFF TRAVEL,TRAVEL AGENCIES AND TOUR OPERATORS
26/04/2018,WOODLANDS COMMUNITY HOME,WWW.FIRSTNEWS.CO.UK,32.99,NEWSPAPER AND PERIODICALS,NEWS DEALERS AND NEWSSTANDS
26/04/2018,APPLEWOOD,AMAZON UK MARKETPLACE,12.32,STATIONERY,BOOK STORES
26/04/2018,TS SERVICE MANAGEMENT,TRAVELODGE,190.00,SUBSISTENCE AND CONFERENCE EXPENSES,TRAVELODGE
26/04/2018,TS SERVICE MANAGEMENT,TRAVELODGE,10.50,SUBSISTENCE AND CONFERENCE EXPENSES,TRAVELODGE
26/04/2018,ROW MAINTENANCE,WILKO RETAIL LIMIT,16.25,"CLOTHING, UNIFORM AND LAUNDRY",HOUSEHOLD APPLIANCE STORES
26/04/2018,COUNTY HALL,WWW.JOHNLEWIS.COM,629.00,EQUIPMENT,DEPARTMENT STORES
26/04/2018,HOPE SERVICE - WEST,SAINSBURYS TO YOU 0686,76.80,PURCHASE OF FOOD (RAW MATERIALS),"GROCERY STORES, SUPERMARKETS"
26/04/2018,NW NIL RECOURSE TO PUBLIC FUNDS CARE,PREMIER INN,-477.00,CHILDREN ACT SEC 17 PAYMENTS,PREMIER INN
26/04/2018,REIGATE AND BANSTEAD LOCALITY TEAM,AMAZON UK MARKETPLACE,262.75,EQUIPMENT,BOOK STORES
27/04/2018,CHEYNE WALK COMMUNITY HOME,FRANKIE & BENNYS 5579,138.19,REFRESHMENT COSTS,"EATING PLACES, RESTAURANTS"
27/04/2018,RUTH HOUSE,DUNELM ONLINE ORDER,95.95,EQUIPMENT,"DRAPERY, UPOLSTERY, AND WINDOW COVERINGS STORES"
27/04/2018,WOODLANDS COMMUNITY HOME,WICKES,9.68,EDUC VISITS/HOLS/CAMPS/TOYS,HOME SUPPLY WAREHOUSE STORES
27/04/2018,BURBANK COMMUNITY HOME,WWW.DOMINOS.CO.UK,23.68,REFRESHMENT COSTS,"EATING PLACES, RESTAURANTS"
27/04/2018,SOLD DAY TO DAY OPERATIONS,WWW.SURPLUSANDOUTDOORS,12.98,EQUIPMENT,"SPORTS APPAREL, RIDING APPAREL STORES"
27/04/2018,RESOURCES FUND,BOOKS BEYOND WORDS,33.79,LIBRARY RESOURCES,"BOOKS,PERIODICALS AND NEWSPAPERS"
27/04/2018,BURBANK COMMUNITY HOME,3C_ WOKING BOROUGH COU,1.40,EDUC VISITS/HOLS/CAMPS/TOYS,AUTOMOBILE PARKING LOTS AND GARAGES
27/04/2018,CS BUSINESS SUPPORT WEST,PAYPAL  ADDACARDLTD,186.00,PURCHASE OF BUILDING MATERIALS,"OFFICE, SCHOOL SUPPLY, AND STATIONERY STORES"
27/04/2018,CS BUSINESS SUPPORT WEST,MILK & MORE OFFLINE,200.60,REFRESHMENT COSTS,"MISC FOOD STORE-CONVENIENCE,MRKT,SPLTY,VENDNG MACS"
27/04/2018,CHEYNE WALK COMMUNITY HOME,BOOTS 1987,6.68,EDUC VISITS/HOLS/CAMPS/TOYS,"DRUG STORES, PHARMACIES"
27/04/2018,CHEYNE WALK COMMUNITY HOME,HOBBYCRAFT,25.80,EDUC VISITS/HOLS/CAMPS/TOYS,"ARTIST SUPPLY STORES, CRAFT SHOPS"
27/04/2018,CHEYNE WALK COMMUNITY HOME,BOOTS 1987,15.51,EDUC VISITS/HOLS/CAMPS/TOYS,"DRUG STORES, PHARMACIES"
27/04/2018,NE SECTION 17 CARE,TRAVELODGE,145.00,FEES,TRAVELODGE
27/04/2018,ARUNDEL,TESCO STORES 5999,132.93,REFRESHMENT COSTS,"GROCERY STORES, SUPERMARKETS"
27/04/2018,HOLLAND CLOSE RESIDENTIAL HOME,WWW.TENPIN.CO.UK,36.15,EDUC VISITS/HOLS/CAMPS/TOYS,"CLUBS-CNTRY,MBRSHIP(ATHLET,REC,SPRTS,PRIVATE GOLF"
27/04/2018,SW ASSESSMENT TEAM,NWS UK LTD,52.55,EQUIPMENT,INDUSTRIAL SUPPLIES NOT ELSEWHERE CLASSIFIED
27/04/2018,RODNEY HOUSE STAFF COST,WHITE ROCK THEATRE,63.00,3RD PARTY PAYMENTS PRIVATE INDIV,"THEATRICAL PRODUCERS(EXCL MOTION PIX),TICKET AGNCY"
27/04/2018,TRANSPORT,MEDIMARKSCI,723.28,OPERATIONAL FIRE EQUIPMENT,VETERINARY SERVICES
27/04/2018,TRAINING AND DEVELOPMENT,FIREFIGHTER PROTECTION,"1,789.21",TRAINING EXPENSES EXTERNAL GENERAL,MEN'S AND WOMEN'S CLOTHING STORES
27/04/2018,SOLD DAY TO DAY OPERATIONS,WWW.SURPLUSANDOUTDOORS,40.95,EQUIPMENT,"SPORTS APPAREL, RIDING APPAREL STORES"
27/04/2018,HILLSIDE,TESCO STORE 3149,257.93,PURCHASE OF FOOD (RAW MATERIALS),"GROCERY STORES, SUPERMARKETS"
27/04/2018,TARGETED INTERVENTION,3C_ THE ATRIUM CAR PAR,3.40,MISCELLANEOUS STAFF TRAVEL,AUTOMOBILE PARKING LOTS AND GARAGES
27/04/2018,FAIRCROFT COMMUNITY HOME,SAINSBURYS SACAT 0687,30.05,PURCHASE OF FOOD (RAW MATERIALS),"GROCERY STORES, SUPERMARKETS"
